Organisation Name,Organisation Code,Effective Date,Directorate,Service Category,Service Category URI,Supplier Name,Payment Date,Transaction Number,Net Amount,Irrecoverable VAT,Purpose_of_the_expenditure,Merchant Category
Wyre Council,http://opendatacommunities.org/doc/district-council/wyre,29/06/2023,People and Places,Cultural and Related Services,132A,A T Graphics LTD,01/06/2023,PE149877,360.00,0.00,Full pg ad in Coach Tours UK June edition,Advertising - General
Wyre Council,http://opendatacommunities.org/doc/district-council/wyre,29/06/2023,People and Places,Cultural and Related Services,132A,Preston City Council,01/06/2023,PE149942,73.74,0.00,4 notice board posters - Marine Hall,Advertising - General
Wyre Council,http://opendatacommunities.org/doc/district-council/wyre,29/06/2023,People and Places,Cultural and Related Services,132A,Preston City Council,01/06/2023,PE149942,170.81,0.00,8 Bus stop posters for MH shows  1800x1200 full colour 1pp printed digital on 200mic poly prop,Advertising - General
Wyre Council,http://opendatacommunities.org/doc/district-council/wyre,29/06/2023,People and Places,Cultural and Related Services,132A,Preston City Council,01/06/2023,PE149942,34.75,0.00,The Beat leaflets and posters,Advertising - General
Wyre Council,http://opendatacommunities.org/doc/district-council/wyre,29/06/2023,People and Places,Cultural and Related Services,132A,Preston City Council,01/06/2023,PE149942,25.94,0.00,Three Degrees Notice Board Poster,Advertising - General
Wyre Council,http://opendatacommunities.org/doc/district-council/wyre,29/06/2023,People and Places,Cultural and Related Services,132A,Preston City Council,23/06/2023,PE150672,28.22,0.00,Brighouse and Rastrick Bus stop poster,Advertising - General
Wyre Council,http://opendatacommunities.org/doc/district-council/wyre,29/06/2023,Resources,Planning and Development Servs,132C,Daisy Communications LTD,01/06/2023,RS149279,50.70,0.00,Calls and Service Charges to 30/04/23,Advertising - General
Wyre Council,http://opendatacommunities.org/doc/district-council/wyre,29/06/2023,Resources,Planning and Development Servs,132C,Daisy Communications LTD,08/06/2023,RS149963,50.70,0.00,Calls and Service Charges to 31/05/23,Advertising - General
Wyre Council,http://opendatacommunities.org/doc/district-council/wyre,29/06/2023,Resources,Cultural and Related Services,132A,Amazon Business,14/06/2023,RS150377,33.32,0.00,Professional gimbal stabilizer for Smartphone,Advertising - General
Wyre Council,http://opendatacommunities.org/doc/district-council/wyre,29/06/2023,Resources,Support Services,135B,JGP Resourcing LTD,12/06/2023,RS150280,2677.44,0.00,Shortlisted candidates - Head of Assest,Advertising - Recruitment
Wyre Council,http://opendatacommunities.org/doc/district-council/wyre,29/06/2023,Resources,Support Services,135B,Ocean Media Group Limited,06/06/2023,RS150037,995.00,0.00,Affordable Housing Officer Advertising,Advertising - Recruitment
Wyre Council,http://opendatacommunities.org/doc/district-council/wyre,29/06/2023,People and Places,Planning and Development Servs,132C,National World Publishing Ltd,01/06/2023,PE149948,600.99,0.00,Press notice for Blackpool and Garstang publications 26.04.23,Advertising - Statutory Notices
Wyre Council,http://opendatacommunities.org/doc/district-council/wyre,29/06/2023,People and Places,Planning and Development Servs,132C,National World Publishing Ltd,01/06/2023,PE149947,554.76,0.00,Press notice for Blackpool and Garstang publications 12.04.23,Advertising - Statutory Notices
Wyre Council,http://opendatacommunities.org/doc/district-council/wyre,29/06/2023,People and Places,Planning and Development Servs,132C,National World Publishing Ltd,19/06/2023,PE150487,508.53,0.00,Press notice for Blackpool and Garstang publications 03.05.23,Advertising - Statutory Notices
Wyre Council,http://opendatacommunities.org/doc/district-council/wyre,29/06/2023,People and Places,Planning and Development Servs,132C,National World Publishing Ltd,16/06/2023,PE150485,508.53,0.00,Blackpool Gazette and Garstang Weekly press notice publications 24/05/23,Advertising - Statutory Notices
Wyre Council,http://opendatacommunities.org/doc/district-council/wyre,29/06/2023,Resources,Housing General Fund,134A,Huck Properties LTD,07/06/2023,RS150097,1800.00,0.00,Payment of invoice NO - 3929 Affordable Warmth Support,Affordable Warmth 2017/18
Wyre Council,http://opendatacommunities.org/doc/district-council/wyre,29/06/2023,People and Places,Support Services,135B,M J Wilkinson,08/06/2023,PE150134,105.60,0.00,Labour Time sheet 110718.00 hrs @ 13.20 per hour,Agency Staff
Wyre Council,http://opendatacommunities.org/doc/district-council/wyre,29/06/2023,People and Places,Support Services,135B,M J Wilkinson,08/06/2023,PE150136,211.20,0.00,Labour Time sheet 1106916>00 hours @ 13.20 per hour,Agency Staff
Wyre Council,http://opendatacommunities.org/doc/district-council/wyre,29/06/2023,People and Places,Support Services,135B,M J Wilkinson,08/06/2023,PE150135,396.00,0.00,Labour Time sheet 1107030.00 hours @ 13.20 per hour,Agency Staff
Wyre Council,http://opendatacommunities.org/doc/district-council/wyre,29/06/2023,People and Places,Support Services,135B,M J Wilkinson,08/06/2023,PE150133,211.20,0.00,Labour Time sheet no: 1107216.00 hrs @ 13.20 per hour,Agency Staff
Wyre Council,http://opendatacommunities.org/doc/district-council/wyre,29/06/2023,People and Places,Cultural and Related Services,132A,Catering Elite Ltd,14/06/2023,PE150394,310.65,0.00,Agency staff Marine Hall - 30/4/23,Agency Staff
Wyre Council,http://opendatacommunities.org/doc/district-council/wyre,29/06/2023,People and Places,Cultural and Related Services,132A,Catering Elite Ltd,14/06/2023,PE150393,273.86,0.00,MH Agency Staff - 7/5/23,Agency Staff
Wyre Council,http://opendatacommunities.org/doc/district-council/wyre,29/06/2023,People and Places,Cultural and Related Services,132A,Catering Elite Ltd,14/06/2023,PE150392,114.45,0.00,MH Agency staff 14/5/23,Agency Staff
Wyre Council,http://opendatacommunities.org/doc/district-council/wyre,29/06/2023,People and Places,Cultural and Related Services,132A,Catering Elite Ltd,14/06/2023,PE150391,527.29,0.00,MH Agency staff 21/5/23,Agency Staff
Wyre Council,http://opendatacommunities.org/doc/district-council/wyre,29/06/2023,People and Places,Cultural and Related Services,132A,Catering Elite Ltd,14/06/2023,PE150390,188.03,0.00,MH Agency staff - 28/5/23,Agency Staff
Wyre Council,http://opendatacommunities.org/doc/district-council/wyre,29/06/2023,People and Places,Cultural and Related Services,132A,Catering Elite Ltd,14/06/2023,PE150389,89.93,0.00,MH Agency staff 4/6/23,Agency Staff
Wyre Council,http://opendatacommunities.org/doc/district-council/wyre,29/06/2023,Resources,Central Services to the Public,131C,The Association Of Electoral Administrators,28/06/2023,RS150783,13070.34,0.00,AEA Consultancy Services for March 2023.12.4 days @860.06 Mileage - 1170 @45p per mile Accommodation Breck Apartments,Agency Staff
Wyre Council,http://opendatacommunities.org/doc/district-council/wyre,29/06/2023,Resources,Support Services,135B,G2V Recruitment Group Ltd T/A G2 Recruitment Solu,07/06/2023,RS150094,1664.40,0.00,Payment of invoice - NO 121882 - Period End 07/05/2023,Agency Staff
Wyre Council,http://opendatacommunities.org/doc/district-council/wyre,29/06/2023,Resources,Support Services,135B,G2V Recruitment Group Ltd T/A G2 Recruitment Solu,07/06/2023,RS150093,1660.35,0.00,"Payment of invoice no - 122219 ,  period end 14/05/2023",Agency Staff
Wyre Council,http://opendatacommunities.org/doc/district-council/wyre,29/06/2023,Resources,Support Services,135B,G2V Recruitment Group Ltd T/A G2 Recruitment Solu,07/06/2023,RS150093,-1660.35,0.00,"Payment of invoice no - 122219 , period end 14/05/2023",Agency Staff
Wyre Council,http://opendatacommunities.org/doc/district-council/wyre,29/06/2023,Resources,Support Services,135B,G2V Recruitment Group Ltd T/A G2 Recruitment Solu,13/06/2023,RS149797,1526.90,0.00,Payment of invoice - NO 122554 -  period end 21/05/2023,Agency Staff
Wyre Council,http://opendatacommunities.org/doc/district-council/wyre,29/06/2023,People and Places,Support Services,135B,G2V Recruitment Group Ltd T/A G2 Recruitment Solu,19/06/2023,PE150409,1669.80,0.00,Payment of invoice no 123737 -  Period End 11/06/2023,Agency Staff
Wyre Council,http://opendatacommunities.org/doc/district-council/wyre,29/06/2023,Resources,Support Services,135B,Park Avenue Recruitment Ltd,16/06/2023,RS150448,1109.00,0.00,Appointment of an interim Estates Surveyor,Agency Staff
Wyre Council,http://opendatacommunities.org/doc/district-council/wyre,29/06/2023,Resources,Support Services,135B,Park Avenue Recruitment Ltd,16/06/2023,RS150446,2162.60,0.00,Appointment of an interim Estates Surveyor,Agency Staff
Wyre Council,http://opendatacommunities.org/doc/district-council/wyre,29/06/2023,Resources,Support Services,135B,Park Avenue Recruitment Ltd,16/06/2023,RS150449,825.00,0.00,Appointment of an interim Estates Surveyor,Agency Staff
Wyre Council,http://opendatacommunities.org/doc/district-council/wyre,29/06/2023,Resources,Support Services,135B,Michael Page International Recruitment Limited,13/06/2023,RS150276,891.48,0.00,Building Control Manager - staffing and expense cost,Agency Staff
Wyre Council,http://opendatacommunities.org/doc/district-council/wyre,29/06/2023,Resources,Support Services,135B,Michael Page International Recruitment Limited,07/06/2023,RS150072,211.17,0.00,Building Control Manager - staffing and expense cost,Agency Staff
Wyre Council,http://opendatacommunities.org/doc/district-council/wyre,29/06/2023,Resources,Support Services,135B,Michael Page International Recruitment Limited,01/06/2023,RS149873,891.48,0.00,Building Control Manager - staffing and expense cost,Agency Staff
Wyre Council,http://opendatacommunities.org/doc/district-council/wyre,29/06/2023,Resources,Support Services,135B,Michael Page International Recruitment Limited,06/06/2023,RS150042,891.48,0.00,Building Control Manager - staffing and expense cost,Agency Staff
Wyre Council,http://opendatacommunities.org/doc/district-council/wyre,29/06/2023,Resources,Support Services,135B,Michael Page International Recruitment Limited,14/06/2023,RS150355,214.30,0.00,Building Control Manager - staffing and expense cost,Agency Staff
Wyre Council,http://opendatacommunities.org/doc/district-council/wyre,29/06/2023,Resources,Support Services,135B,Michael Page International Recruitment Limited,05/06/2023,RS149970,-2000.00,0.00,Appointment of Interim Asset Manager,Agency Staff
Wyre Council,http://opendatacommunities.org/doc/district-council/wyre,29/06/2023,Resources,Support Services,135B,Michael Page International Recruitment Limited,21/06/2023,RS150520,2500.00,0.00,Appointment of Interim Asset Manager,Agency Staff
Wyre Council,http://opendatacommunities.org/doc/district-council/wyre,29/06/2023,Resources,Support Services,135B,Michael Page International Recruitment Limited,21/06/2023,RS150182,2000.00,0.00,Appointment of Interim Asset Manager,Agency Staff
Wyre Council,http://opendatacommunities.org/doc/district-council/wyre,29/06/2023,Resources,Support Services,135B,Michael Page International Recruitment Limited,21/06/2023,RS150367,2000.00,0.00,Appointment of Interim Asset Manager,Agency Staff
Wyre Council,http://opendatacommunities.org/doc/district-council/wyre,29/06/2023,Resources,Support Services,135B,Michael Page International Recruitment Limited,21/06/2023,RS150367,500.00,0.00,Appointment of Interim Asset Manager,Agency Staff
Wyre Council,http://opendatacommunities.org/doc/district-council/wyre,29/06/2023,Resources,Support Services,135B,Michael Page International Recruitment Limited,07/06/2023,RS150043,2500.00,0.00,Appointment of Interim Asset Manager,Agency Staff
Wyre Council,http://opendatacommunities.org/doc/district-council/wyre,29/06/2023,Resources,Support Services,135B,Michael Page International Recruitment Limited,01/06/2023,RS149872,2000.00,0.00,Appointment of Interim Asset Manager,Agency Staff
Wyre Council,http://opendatacommunities.org/doc/district-council/wyre,29/06/2023,Resources,Support Services,135B,Michael Page International Recruitment Limited,02/06/2023,RS149970,2000.00,0.00,Appointment of Interim Asset Manager,Agency Staff
Wyre Council,http://opendatacommunities.org/doc/district-council/wyre,29/06/2023,People and Places,Cultural and Related Services,132A,Spencer Sutcliffe Security Ltd,14/06/2023,PE150359,370.00,0.00,MH security 27/5/23,Agency Staff
Wyre Council,http://opendatacommunities.org/doc/district-council/wyre,29/06/2023,People and Places,Cultural and Related Services,132A,Spencer Sutcliffe Security Ltd,14/06/2023,PE150360,111.00,0.00,MH security 19/5/23,Agency Staff
Wyre Council,http://opendatacommunities.org/doc/district-council/wyre,29/06/2023,People and Places,Cultural and Related Services,132A,Spencer Sutcliffe Security Ltd,14/06/2023,PE150361,481.00,0.00,MH security 22/4/23,Agency Staff
Wyre Council,http://opendatacommunities.org/doc/district-council/wyre,29/06/2023,People and Places,Cultural and Related Services,132A,Spencer Sutcliffe Security Ltd,28/06/2023,PE150790,132.27,0.00,Security at Marine Hall 23/6/23,Agency Staff
Wyre Council,http://opendatacommunities.org/doc/district-council/wyre,29/06/2023,Resources,Support Services,135B,Daisy Communications LTD,01/06/2023,RS149279,13.87,0.00,Calls and Service Charges to 30/04/23,Alarm Systems and Security - Annual
Wyre Council,http://opendatacommunities.org/doc/district-council/wyre,29/06/2023,Resources,Support Services,135B,Daisy Communications LTD,08/06/2023,RS149963,13.87,0.00,Calls and Service Charges to 31/05/23,Alarm Systems and Security - Annual
Wyre Council,http://opendatacommunities.org/doc/district-council/wyre,29/06/2023,People and Places,Support Services,135B,M D Security,19/06/2023,PE150452,60.00,0.00,Carried out emergency light test for month 06/23,Alarm Systems and Security - Annual
Wyre Council,http://opendatacommunities.org/doc/district-council/wyre,29/06/2023,People and Places,Support Services,135B,M D Security,07/06/2023,PE149815,980.00,0.00,Civic Centre: Fit smoke sensors to areas with door guards,Alarm Systems and Security - Responsive
Wyre Council,http://opendatacommunities.org/doc/district-council/wyre,29/06/2023,People and Places,Planning and Development Servs,132C,M D Security,07/06/2023,PE149814,113.00,0.00,Copse Rd Depot: replaced 1 shutter contact to zone 2013,Alarm Systems and Security - Responsive
Wyre Council,http://opendatacommunities.org/doc/district-council/wyre,29/06/2023,Finance,Support Services,135B,,26/06/2023,WPST00110679,2630.00,0.00,May 23 Total Apprenticeship Levy,Apprenticeship Levy
Wyre Council,http://opendatacommunities.org/doc/district-council/wyre,29/06/2023,People and Places,Cultural and Related Services,132A,Tony Denton Promotions Ltd,14/06/2023,PE150358,2300.00,0.00,Balance of fee - The Beat feat Ranking Jr,Artistes Fees
Wyre Council,http://opendatacommunities.org/doc/district-council/wyre,29/06/2023,People and Places,Cultural and Related Services,132A,Ska Face,28/06/2023,PE150753,500.00,0.00,Support for the Beat 27/5/23,Artistes Fees
Wyre Council,http://opendatacommunities.org/doc/district-council/wyre,29/06/2023,Resources,Corporate and Democratic Core,131A,PR Chauffeuring Services,14/06/2023,RS150380,1870.00,0.00,Monthly Mayoral Chauffeuring Jobs - May 2023,Attendant Chauffeur Service
Wyre Council,http://opendatacommunities.org/doc/district-council/wyre,29/06/2023,Finance,Corporate and Democratic Core,131A,NATWEST BANK,22/06/2023,WPST00110528,2625.59,0.00,,Bank Charges
Wyre Council,http://opendatacommunities.org/doc/district-council/wyre,29/06/2023,Finance,Corporate and Democratic Core,131A,NATWEST BANK,22/06/2023,WPST00110530,1622.52,0.00,,Bank Charges
Wyre Council,http://opendatacommunities.org/doc/district-council/wyre,29/06/2023,Finance,Corporate and Democratic Core,131A,NATWEST BANK,02/06/2023,WPST00108407,571.09,0.00,31/05/202328APR GRP 99795000,Bank Charges
Wyre Council,http://opendatacommunities.org/doc/district-council/wyre,29/06/2023,People and Places,Environmental Services,132B,N Power LTD,06/06/2023,PE150029,11.89,0.00,Unmetered Electricity Usage Town Centre CCTV 1-31 May 23,CCTV Running Costs
Wyre Council,http://opendatacommunities.org/doc/district-council/wyre,29/06/2023,People and Places,Environmental Services,132B,N Power LTD,06/06/2023,PE150029,1.61,0.00,Electricity Climate change levy for the period 01/05/23-31/05/23,CCTV Running Costs
Wyre Council,http://opendatacommunities.org/doc/district-council/wyre,29/06/2023,People and Places,Environmental Services,132B,N Power LTD,06/06/2023,PE150029,1.61,0.00,Electricity Climate change levy for the period 01/05/23-31/05/23,CCTV Running Costs
Wyre Council,http://opendatacommunities.org/doc/district-council/wyre,29/06/2023,People and Places,Environmental Services,132B,N Power LTD,06/06/2023,PE150029,119.57,0.00,Unmetered Electricity Usage Town Centre CCTV 1-31 May 23,CCTV Running Costs
Wyre Council,http://opendatacommunities.org/doc/district-council/wyre,29/06/2023,People and Places,Environmental Services,132B,N Power LTD,06/06/2023,PE150029,79.15,0.00,Unmetered Electricity Usage Town Centre CCTV 1-31 May 23,CCTV Running Costs
Wyre Council,http://opendatacommunities.org/doc/district-council/wyre,29/06/2023,People and Places,Environmental Services,132B,N Power LTD,06/06/2023,PE150029,1.61,0.00,Electricity Climate change levy for the period 01/05/23-31/05/23,CCTV Running Costs
Wyre Council,http://opendatacommunities.org/doc/district-council/wyre,29/06/2023,Resources,Support Services,135B,Key Engineering & Hygiene Supplies LTD,28/06/2023,RS150759,15.54,0.00,LIQUID SPRAY POLISH 750ML TRIGGER SPRAY,Cleaning Materials
Wyre Council,http://opendatacommunities.org/doc/district-council/wyre,29/06/2023,Resources,Support Services,135B,Key Engineering & Hygiene Supplies LTD,28/06/2023,RS150759,17.64,0.00,EVANS CYCLONE EXTRA THICK BLEACH 750ML,Cleaning Materials
Wyre Council,http://opendatacommunities.org/doc/district-council/wyre,29/06/2023,Resources,Support Services,135B,Key Engineering & Hygiene Supplies LTD,28/06/2023,RS150759,10.08,0.00,EAU-FRESH NON ACIDIC POT POURRI TOILET CLEANER/ 1 litre,Cleaning Materials
Wyre Council,http://opendatacommunities.org/doc/district-council/wyre,29/06/2023,Resources,Support Services,135B,Key Engineering & Hygiene Supplies LTD,28/06/2023,RS150759,5.67,0.00,KIND DETERGENT 5 LITRE,Cleaning Materials
Wyre Council,http://opendatacommunities.org/doc/district-council/wyre,29/06/2023,Resources,Support Services,135B,Key Engineering & Hygiene Supplies LTD,28/06/2023,RS150759,4.47,0.00,VERSATILE HARD SURFACE CLEANER 5 LITRE,Cleaning Materials
Wyre Council,http://opendatacommunities.org/doc/district-council/wyre,29/06/2023,Resources,Support Services,135B,Key Engineering & Hygiene Supplies LTD,28/06/2023,RS150759,14.58,0.00,BLUE NITRILE POWDER FREE GLOVES LARGE,Cleaning Materials
Wyre Council,http://opendatacommunities.org/doc/district-council/wyre,29/06/2023,Resources,Support Services,135B,Key Engineering & Hygiene Supplies LTD,28/06/2023,RS150759,4.86,0.00,BLUE NITRILE GLOVES EXTRA LARGE,Cleaning Materials
Wyre Council,http://opendatacommunities.org/doc/district-council/wyre,29/06/2023,Resources,Support Services,135B,Key Engineering & Hygiene Supplies LTD,28/06/2023,RS150759,21.88,0.00,BLACK REFUSE SACKS 18X29X38 90 LTR,Cleaning Materials
Wyre Council,http://opendatacommunities.org/doc/district-council/wyre,29/06/2023,Resources,Support Services,135B,Key Engineering & Hygiene Supplies LTD,28/06/2023,RS150759,4.90,0.00,20 x 15 Bleached Dishcloths,Cleaning Materials
Wyre Council,http://opendatacommunities.org/doc/district-council/wyre,29/06/2023,Resources,Support Services,135B,Key Engineering & Hygiene Supplies LTD,28/06/2023,RS150759,140.25,0.00,SOFTLUX 3 PLY TOILET ROLL(10 X 4),Cleaning Materials
Wyre Council,http://opendatacommunities.org/doc/district-council/wyre,29/06/2023,Resources,Support Services,135B,Key Engineering & Hygiene Supplies LTD,28/06/2023,RS150759,3.50,0.00,STANDARD YELLOW DUSTER 20 x 18,Cleaning Materials
Wyre Council,http://opendatacommunities.org/doc/district-council/wyre,29/06/2023,Resources,Support Services,135B,Key Engineering & Hygiene Supplies LTD,01/06/2023,RS149932,196.40,0.00,BLUE INTERFOLD HAND TOWELS 3600 SHEETS,Cleaning Materials
Wyre Council,http://opendatacommunities.org/doc/district-council/wyre,29/06/2023,Resources,Support Services,135B,Key Engineering & Hygiene Supplies LTD,01/06/2023,RS149932,17.64,0.00,EVANS CYCLONE EXTRA THICK BLEACH 750ML,Cleaning Materials
Wyre Council,http://opendatacommunities.org/doc/district-council/wyre,29/06/2023,Resources,Support Services,135B,Key Engineering & Hygiene Supplies LTD,01/06/2023,RS149932,10.08,0.00,EAU-FRESH NON ACIDIC POT POURRI TOILET CLEANER/ 1 litre,Cleaning Materials
Wyre Council,http://opendatacommunities.org/doc/district-council/wyre,29/06/2023,Resources,Support Services,135B,Key Engineering & Hygiene Supplies LTD,01/06/2023,RS149932,11.34,0.00,KIND DETERGENT 5 LITRE,Cleaning Materials
Wyre Council,http://opendatacommunities.org/doc/district-council/wyre,29/06/2023,Resources,Support Services,135B,Key Engineering & Hygiene Supplies LTD,01/06/2023,RS149932,4.47,0.00,VERSATILE HARD SURFACE CLEANER 5 LITRE,Cleaning Materials
Wyre Council,http://opendatacommunities.org/doc/district-council/wyre,29/06/2023,Resources,Support Services,135B,Key Engineering & Hygiene Supplies LTD,01/06/2023,RS149932,3.76,0.00,KEYPINE PINE DISINFECTANT 5 LITRE,Cleaning Materials
Wyre Council,http://opendatacommunities.org/doc/district-council/wyre,29/06/2023,Resources,Support Services,135B,Key Engineering & Hygiene Supplies LTD,01/06/2023,RS149932,21.88,0.00,BLACK REFUSE SACKS 18X29X38 90 LTR,Cleaning Materials
Wyre Council,http://opendatacommunities.org/doc/district-council/wyre,29/06/2023,Resources,Support Services,135B,Key Engineering & Hygiene Supplies LTD,01/06/2023,RS149932,153.00,0.00,SOFTLUX 3 PLY TOILET ROLL(10 X 4),Cleaning Materials
Wyre Council,http://opendatacommunities.org/doc/district-council/wyre,29/06/2023,Resources,Support Services,135B,Key Engineering & Hygiene Supplies LTD,01/06/2023,RS149932,5.20,0.00,20 X 15 BLEACHED DISH CLOTHS EA,Cleaning Materials
Wyre Council,http://opendatacommunities.org/doc/district-council/wyre,29/06/2023,Resources,Support Services,135B,Key Engineering & Hygiene Supplies LTD,28/06/2023,RS150763,14.58,0.00,BLUE NITRILE POWDER FREE GLOVES MEDIUM,Cleaning Materials
Wyre Council,http://opendatacommunities.org/doc/district-council/wyre,29/06/2023,Resources,Support Services,135B,Key Engineering & Hygiene Supplies LTD,28/06/2023,RS150759,171.85,0.00,BLUE INTERFOLD HAND TOWELS 3600 SHEETS,Cleaning Materials
Wyre Council,http://opendatacommunities.org/doc/district-council/wyre,29/06/2023,People and Places,Planning and Development Servs,132C,Key Engineering & Hygiene Supplies LTD,16/06/2023,PE150458,74.64,0.00,Supply and deliver as per quotation 19294Cleaning products - ken white,Cleaning Materials
Wyre Council,http://opendatacommunities.org/doc/district-council/wyre,29/06/2023,People and Places,Planning and Development Servs,132C,Key Engineering & Hygiene Supplies LTD,19/06/2023,PE150273,8.64,0.00,EAUFRESH NON ACIDIC APPLE TOILET CLEANER 1 LTR,Cleaning Materials
Wyre Council,http://opendatacommunities.org/doc/district-council/wyre,29/06/2023,People and Places,Planning and Development Servs,132C,Key Engineering & Hygiene Supplies LTD,19/06/2023,PE150273,24.72,0.00,FRESH AIR + FABRIC AEROSOL 400ML,Cleaning Materials
Wyre Council,http://opendatacommunities.org/doc/district-council/wyre,29/06/2023,People and Places,Planning and Development Servs,132C,Key Engineering & Hygiene Supplies LTD,19/06/2023,PE150273,24.72,0.00,VERSATILE HARD SURFACE CLEANER 5 LITRE,Cleaning Materials
Wyre Council,http://opendatacommunities.org/doc/district-council/wyre,29/06/2023,People and Places,Planning and Development Servs,132C,Key Engineering & Hygiene Supplies LTD,19/06/2023,PE150273,20.60,0.00,Versatile floor Cleaner 5 Litre,Cleaning Materials
Wyre Council,http://opendatacommunities.org/doc/district-council/wyre,29/06/2023,People and Places,Planning and Development Servs,132C,Key Engineering & Hygiene Supplies LTD,19/06/2023,PE150273,20.60,0.00,FLORATILE GENERAL PURPOSE  CLEANER 5 LTR,Cleaning Materials
Wyre Council,http://opendatacommunities.org/doc/district-council/wyre,29/06/2023,People and Places,Cultural and Related Services,132A,Key Engineering & Hygiene Supplies LTD,13/06/2023,PE150274,63.51,0.00,EXTRA STRONG BLACK REFUSE SACK 18X29X39 180G 90LTR (PER 200),Cleaning Materials
Wyre Council,http://opendatacommunities.org/doc/district-council/wyre,29/06/2023,People and Places,Cultural and Related Services,132A,Key Engineering & Hygiene Supplies LTD,13/06/2023,PE150274,21.08,0.00,2PLY WHITE TOILET ROLLS 320SHEETS 36PER CASE,Cleaning Materials
Wyre Council,http://opendatacommunities.org/doc/district-council/wyre,29/06/2023,People and Places,Cultural and Related Services,132A,Key Engineering & Hygiene Supplies LTD,13/06/2023,PE150274,2.54,0.00,BLUE 200GM EXEL PY MOP HEAD ( PUSH FIT),Cleaning Materials
Wyre Council,http://opendatacommunities.org/doc/district-council/wyre,29/06/2023,People and Places,Cultural and Related Services,132A,Key Engineering & Hygiene Supplies LTD,13/06/2023,PE150274,2.54,0.00,RED 200GM EXEL PY MOP HEAD ( PUSH FIT),Cleaning Materials
Wyre Council,http://opendatacommunities.org/doc/district-council/wyre,29/06/2023,People and Places,Cultural and Related Services,132A,Key Engineering & Hygiene Supplies LTD,27/06/2023,PE150701,17.40,0.00,ENSURE ALCOHOL BASED SANITISER 5 LITRE,Cleaning Materials
Wyre Council,http://opendatacommunities.org/doc/district-council/wyre,29/06/2023,People and Places,Planning and Development Servs,132C,Key Engineering & Hygiene Supplies LTD,12/06/2023,PE150275,202.05,0.00,2PLY WHITE JUMBO TOILET ROLL,Cleaning Materials
Wyre Council,http://opendatacommunities.org/doc/district-council/wyre,29/06/2023,People and Places,Planning and Development Servs,132C,Key Engineering & Hygiene Supplies LTD,12/06/2023,PE150275,21.36,0.00,KEYPINE GENERAL DISINFECTANT 5LTR,Cleaning Materials
Wyre Council,http://opendatacommunities.org/doc/district-council/wyre,29/06/2023,People and Places,Planning and Development Servs,132C,Key Engineering & Hygiene Supplies LTD,12/06/2023,PE150275,9.72,0.00,EAUFRESH NON ACIDIC APPLE TOILET CLEANER 1 LTR,Cleaning Materials
Wyre Council,http://opendatacommunities.org/doc/district-council/wyre,29/06/2023,People and Places,Planning and Development Servs,132C,Key Engineering & Hygiene Supplies LTD,12/06/2023,PE150275,15.19,0.00,DISINFECTANT PINE,Cleaning Materials
Wyre Council,http://opendatacommunities.org/doc/district-council/wyre,29/06/2023,People and Places,Planning and Development Servs,132C,Key Engineering & Hygiene Supplies LTD,12/06/2023,PE150275,20.12,0.00,LUX PEARL HAND/BODY SOAP 5 LTR,Cleaning Materials
Wyre Council,http://opendatacommunities.org/doc/district-council/wyre,29/06/2023,People and Places,Planning and Development Servs,132C,Key Engineering & Hygiene Supplies LTD,12/06/2023,PE150275,105.85,0.00,EXTRA STRONG BLACK REFUSE SACK 18X29X39 180G 90LTR (PER 200),Cleaning Materials
Wyre Council,http://opendatacommunities.org/doc/district-council/wyre,29/06/2023,People and Places,Planning and Development Servs,132C,Key Engineering & Hygiene Supplies LTD,09/06/2023,PE150141,14.60,0.00,BLUE VINYL DISPOSB GLOVES POWDERED LARGE PER100 BLUE,Cleaning Materials
Wyre Council,http://opendatacommunities.org/doc/district-council/wyre,29/06/2023,People and Places,Planning and Development Servs,132C,Key Engineering & Hygiene Supplies LTD,09/06/2023,PE150141,14.60,0.00,BLUE VINYL DISPOSB GLOVES POWDERED MEDIUM PER100 BLUE,Cleaning Materials
Wyre Council,http://opendatacommunities.org/doc/district-council/wyre,29/06/2023,People and Places,Planning and Development Servs,132C,Key Engineering & Hygiene Supplies LTD,08/06/2023,PE150127,180.15,0.00,2PLY WHITE JUMBO TOILET ROLL,Cleaning Materials
Wyre Council,http://opendatacommunities.org/doc/district-council/wyre,29/06/2023,People and Places,Planning and Development Servs,132C,Key Engineering & Hygiene Supplies LTD,19/06/2023,PE150273,180.15,0.00,2PLY WHITE JUMBO TOILET ROLL,Cleaning Materials
Wyre Council,http://opendatacommunities.org/doc/district-council/wyre,29/06/2023,People and Places,Planning and Development Servs,132C,Key Engineering & Hygiene Supplies LTD,19/06/2023,PE150273,45.72,0.00,LUX PEARL HAND/BODY SOAP 5 LTR,Cleaning Materials
Wyre Council,http://opendatacommunities.org/doc/district-council/wyre,29/06/2023,People and Places,Planning and Development Servs,132C,Key Engineering & Hygiene Supplies LTD,19/06/2023,PE150273,121.80,0.00,EXTRA STRONG BLACK REFUSE SACK 18X29X39 180G 90LTR (PER 200),Cleaning Materials
Wyre Council,http://opendatacommunities.org/doc/district-council/wyre,29/06/2023,People and Places,Planning and Development Servs,132C,Key Engineering & Hygiene Supplies LTD,19/06/2023,PE150273,45.05,0.00,BATH + TILE WASHROOM CLEANER 5L,Cleaning Materials
Wyre Council,http://opendatacommunities.org/doc/district-council/wyre,29/06/2023,People and Places,Planning and Development Servs,132C,Key Engineering & Hygiene Supplies LTD,19/06/2023,PE150273,15.95,0.00,DISINFECTANT PINE,Cleaning Materials
Wyre Council,http://opendatacommunities.org/doc/district-council/wyre,29/06/2023,People and Places,Cultural and Related Services,132A,Lyreco UK LTD,07/06/2023,PE149958,52.76,0.00,1 x 3349389 - tork white toilet tissue,Cleaning Materials
Wyre Council,http://opendatacommunities.org/doc/district-council/wyre,29/06/2023,People and Places,Environmental Services,132B,Instrom Ltd,26/06/2023,PE150695,3830.40,0.00,Provision of consultancy services in respects to the upgrade of the council`s town centre CCTV network - Phase 1 - Survey of existing network and compilation of detailed specification.,Community Development Initiatives
Wyre Council,http://opendatacommunities.org/doc/district-council/wyre,29/06/2023,Resources,Support Services,135B,CCS MEDIA LTD,19/06/2023,RS150263,651.10,0.00,Hewlett Packard Enterprise-UK703E HP 3 year Next Business Day Response Onsite Notebook Hardware Support,Comp Hardware Purchases
Wyre Council,http://opendatacommunities.org/doc/district-council/wyre,29/06/2023,Resources,Support Services,135B,CCS MEDIA LTD,19/06/2023,RS150433,6666.70,0.00,"ProBook 450 15.6 inch G9 Notebook PC,15.6``,Windows 10 Pro (available through downgrade rights from Windows 11 Pro),Intel Core i5,8GB RAM,256GB SSD,FHD",Comp Hardware Purchases
Wyre Council,http://opendatacommunities.org/doc/district-council/wyre,29/06/2023,Resources,Support Services,135B,VODAFONE LIMITED,12/06/2023,RS150170,205.49,0.00,Samsung A54 128GB BLACK 5G GOV SP.,Comp Hardware Purchases
Wyre Council,http://opendatacommunities.org/doc/district-council/wyre,29/06/2023,Resources,Support Services,135B,Amazon Business,19/06/2023,RS150443,14.49,0.00,"SOOPII USB C to USB C Cable,[2M,2 Pack],Nylon Braided Type-C Cable,100W PD Fast Charging Cable with LED Display for lPad Air/lPad Pro, MacBook Pro, Samsung Galaxy S21/S10/S9/Plus (Black).",Comp Hardware Purchases
Wyre Council,http://opendatacommunities.org/doc/district-council/wyre,29/06/2023,Resources,Support Services,135B,Amazon Business,19/06/2023,RS150404,8.24,0.00,"JSAUX 90 Degree USB C Cable 2M [2-Pack], 60W Right Angle USB-A/C to USB-C QC&PD 2-in-1 Type C Fast Charging Cord 3.1A Compatible with iPad Pro, iPad Air, MacBook, Galaxy S/Note, Pixel, Huawei, LG.",Comp Hardware Purchases
Wyre Council,http://opendatacommunities.org/doc/district-council/wyre,29/06/2023,Resources,Support Services,135B,Amazon Business,19/06/2023,RS150406,33.10,0.00,"Masterplug SRGLSU42PB-MP Four Socket Switched Inline Power Surge Protected Extension Lead with Two USB Charging Ports, 2 Metres, Gloss Black.",Comp Hardware Purchases
Wyre Council,http://opendatacommunities.org/doc/district-council/wyre,29/06/2023,Resources,Support Services,135B,Amazon Business,19/06/2023,RS150406,33.32,0.00,"Belkin USB C Portable Power Bank (10000 mAh with 1 USB C Port and 2 USB A Ports for up to 15W Charging for iPhone, Android, AirPods, iPad, and More) � Black.",Comp Hardware Purchases
Wyre Council,http://opendatacommunities.org/doc/district-council/wyre,29/06/2023,Resources,Support Services,135B,Amazon Business,19/06/2023,RS150444,13.30,0.00,"Cat 8 Ethernet Cable 3M, High Speed Gigabit Nylon Braided Lan Network Cat8 Patch Cord, 40Gbps 2000Mhz RJ45 Flat Cable Shielded, Indoor&Outdoor for Modem/Router/switch, Faster than Cat5e/Cat6/Cat7.",Comp Hardware Purchases
Wyre Council,http://opendatacommunities.org/doc/district-council/wyre,29/06/2023,Resources,Support Services,135B,Amazon Business,14/06/2023,RS150129,216.64,0.00,"Logitech Rugged Folio for iPad (10th generation) Protective Keyboard Case with Smart Connector and Durable Spill-Proof Keyboard, English Layout - Grey.",Comp Hardware Purchases
Wyre Council,http://opendatacommunities.org/doc/district-council/wyre,29/06/2023,Resources,Support Services,135B,Amazon Business,19/06/2023,RS150404,10.82,0.00,"JSAUX &#120393;&#120384;&#120402; HDMI Cable 2 Pack 2Meter [4K@60Hz,HDMI 2.0,18Gbps] 4K Flat HDMI 2.0 Cable High Speed 3M HDMI Nylon Braided Cable Support 4K 3D HDR UHD 2160p 1080p Ethernet ARC PS3/4 TV PC- Grey.",Comp Hardware Purchases
Wyre Council,http://opendatacommunities.org/doc/district-council/wyre,29/06/2023,People and Places,Environmental Services,132B,RPS,29/06/2023,PE150797,1012.50,0.00,"Review of Enabling Works Validation Report - Phase B - Bourne Road, Thornton - Application 20/00405/DIS4 June 2023.  14 hours at 75.00 per hour",Consultants Fees
Wyre Council,http://opendatacommunities.org/doc/district-council/wyre,29/06/2023,People and Places,Planning and Development Servs,132C,AFFORDABILITY RESEARCH COMMUNITIES (ARC 4),26/06/2023,PE150544,3865.57,0.00,Fylde Coast GTAA study,Consultants Fees
Wyre Council,http://opendatacommunities.org/doc/district-council/wyre,29/06/2023,Resources,Support Services,135B,Aspin and Company Ltd,07/06/2023,RS150101,8800.00,0.00,2022/23 Asset Valuations,Consultants Fees
Wyre Council,http://opendatacommunities.org/doc/district-council/wyre,29/06/2023,People and Places,Planning and Development Servs,132C,Richard Ryan Lighting,01/06/2023,PE149923,1415.00,0.00,Cleveleys Christmas Lights,Consultants Fees
Wyre Council,http://opendatacommunities.org/doc/district-council/wyre,29/06/2023,People and Places,"Cultural, Environ and Planning",137B,Halcrow Group LTD,01/06/2023,PE149919,2348.96,0.00,Current approved order based on agreed additional work. Authorised by Carl Green,Consultants Fees (New CCR)
Wyre Council,http://opendatacommunities.org/doc/district-council/wyre,29/06/2023,Resources,"Cultural, Environ and Planning",137B,Preston City Council,26/06/2023,RS150681,97.50,0.00,Beach management newsletter 3 2000 x A5 2pp,Consultants Fees (New CCR)
Wyre Council,http://opendatacommunities.org/doc/district-council/wyre,29/06/2023,People and Places,"Cultural, Environ and Planning",137B,Purcell Architecture Limited,01/06/2023,PE149938,2041.42,0.00,Fleetwood Market (RIBA 5-7) Purcell Sub Consultants (QS + Structural Eng),Consultants Fees (New CCR)
Wyre Council,http://opendatacommunities.org/doc/district-council/wyre,29/06/2023,People and Places,"Cultural, Environ and Planning",137B,Purcell Architecture Limited,01/06/2023,PE149940,464.06,0.00,"Fleetwood Market Consultants Fees 2023/24.  This Order replaces the following outstanding Orders: PEO0025404, PEO0025405, PEO0025427 and PEO0025528",Consultants Fees (New CCR)
Wyre Council,http://opendatacommunities.org/doc/district-council/wyre,29/06/2023,People and Places,"Cultural, Environ and Planning",137B,Purcell Architecture Limited,01/06/2023,PE149939,10000.00,0.00,"Fleetwood Market Consultants Fees 2023/24.  This Order replaces the following outstanding Orders: PEO0025404, PEO0025405, PEO0025427 and PEO0025528",Consultants Fees (New CCR)
Wyre Council,http://opendatacommunities.org/doc/district-council/wyre,29/06/2023,People and Places,"Cultural, Environ and Planning",137B,Purcell Architecture Limited,07/06/2023,PE150056,7350.00,0.00,Fleetwood Market.  Annex Roof Architect Fees,Consultants Fees (New CCR)
Wyre Council,http://opendatacommunities.org/doc/district-council/wyre,29/06/2023,People and Places,"Cultural, Environ and Planning",137B,Purcell Architecture Limited,01/06/2023,PE149941,2000.00,0.00,Fleetwood Market.  Consultant Fees 2023/24.  This new Order replaces PEO0025425,Consultants Fees (New CCR)
Wyre Council,http://opendatacommunities.org/doc/district-council/wyre,29/06/2023,People and Places,"Cultural, Environ and Planning",137B,Susannah Bleakley Consulting,01/06/2023,PE149892,4501.86,0.00,ECO-CoBS Project,Consultants Fees (New CCR)
Wyre Council,http://opendatacommunities.org/doc/district-council/wyre,29/06/2023,People and Places,"Cultural, Environ and Planning",137B,Susannah Bleakley Consulting,09/06/2023,PE150173,89.90,0.00,ECO-CoBS Project,Consultants Fees (New CCR)
Wyre Council,http://opendatacommunities.org/doc/district-council/wyre,29/06/2023,People and Places,"Cultural, Environ and Planning",137B,Morecambe Bay Partnership,09/06/2023,PE150156,9600.00,0.00,Annual order Our Future Coast  2023/24,Consultants Fees (New CCR)
Wyre Council,http://opendatacommunities.org/doc/district-council/wyre,29/06/2023,People and Places,"Cultural, Environ and Planning",137B,WSP Real Estate and Infrastructure Limited,23/06/2023,PE150671,4639.36,0.00,"Project Management Services    Annual amount 78,000  Potentially for 4 years.",Consultants Fees (New CCR)
Wyre Council,http://opendatacommunities.org/doc/district-council/wyre,29/06/2023,People and Places,Central Services to the Public,131C,ADR Mediation & Training CIC,23/06/2023,PE150690,880.00,0.00,"Mediation case management for a total of 4400, which equates for 10 cases at a cost of 440 per case utilising COMF",Contain Outbreak Management Fund
Wyre Council,http://opendatacommunities.org/doc/district-council/wyre,29/06/2023,People and Places,Support Services,135B,Blackpool Skip Hire LTD,02/06/2023,PE149955,225.00,0.00,Empty of skips for Cemetries in Wyre,Containers Skips and Hire
Wyre Council,http://opendatacommunities.org/doc/district-council/wyre,29/06/2023,People and Places,Support Services,135B,Blackpool Skip Hire LTD,14/06/2023,PE149979,135.00,0.00,Empty of skips for Cemetries in Wyre,Containers Skips and Hire
Wyre Council,http://opendatacommunities.org/doc/district-council/wyre,29/06/2023,People and Places,Support Services,135B,Blackpool Skip Hire LTD,22/06/2023,PE150652,120.00,0.00,Empty of skips for Cemetries in Wyre,Containers Skips and Hire
Wyre Council,http://opendatacommunities.org/doc/district-council/wyre,29/06/2023,People and Places,"Cultural, Environ and Planning",137B,DANFO (UK) LTD,07/06/2023,PE149833,25148.70,0.00,"Please Deliver and Commission WECP modular facility Prices as per specification quote Cost include of:  117 planning costs, and reduced groundworks costs of 5,510.  Agreed that Danfo will then invoice 20% against the  Order as the project initiation sum",Contract (New CCR)
Wyre Council,http://opendatacommunities.org/doc/district-council/wyre,29/06/2023,People and Places,"Cultural, Environ and Planning",137B,Marine Management Organisation,01/06/2023,PE149886,4453.00,0.00,Wyre Beach and Dune Management Scheme Phases 1 and 2,Contract (New CCR)
Wyre Council,http://opendatacommunities.org/doc/district-council/wyre,29/06/2023,People and Places,"Cultural, Environ and Planning",137B,Marine Management Organisation,27/06/2023,PE150704,6527.00,0.00,Wyre Beach and Dune Management Scheme Phases 1 and 2,Contract (New CCR)
Wyre Council,http://opendatacommunities.org/doc/district-council/wyre,29/06/2023,People and Places,Non Service Related Exp,137F,ADJ Doors Ltd T/A Keman Roller Shutters,08/06/2023,PE148967,1120.00,0.00,"To re attend to fit 2 no. 1 scissor lift hireshutters at the MOT bay following repairs to building, @300 per shutter",Contract (New CCR)
Wyre Council,http://opendatacommunities.org/doc/district-council/wyre,29/06/2023,People and Places,"Cultural, Environ and Planning",137B,Vivid Resourcing Ltd,02/06/2023,PE149944,6360.00,0.00,Fleetwood Market - Steve Solsby time,Contract (New CCR)
Wyre Council,http://opendatacommunities.org/doc/district-council/wyre,29/06/2023,People and Places,"Cultural, Environ and Planning",137B,Vivid Resourcing Ltd,29/06/2023,PE150782,3240.00,0.00,Fleetwood Market - Steve Solsby time,Contract (New CCR)
Wyre Council,http://opendatacommunities.org/doc/district-council/wyre,29/06/2023,People and Places,"Cultural, Environ and Planning",137B,F PARKINSON LTD,06/06/2023,PE150050,26873.20,0.00,Fleetwood Market Contract.  HSHAZ (Historic England) Work Elements (2023/24),Contract (New CCR)
Wyre Council,http://opendatacommunities.org/doc/district-council/wyre,29/06/2023,People and Places,"Cultural, Environ and Planning",137B,F PARKINSON LTD,06/06/2023,PE150048,103095.36,0.00,Fleetwood Market Contract Works 2023/24,Contract (New CCR)
Wyre Council,http://opendatacommunities.org/doc/district-council/wyre,29/06/2023,People and Places,"Cultural, Environ and Planning",137B,F PARKINSON LTD,06/06/2023,PE150049,13730.35,0.00,Fleetwood Market.  PSDS Works Contribution,Contract (New CCR)
Wyre Council,http://opendatacommunities.org/doc/district-council/wyre,29/06/2023,People and Places,"Cultural, Environ and Planning",137B,Balfour Beatty Civil Engineering Ltd,02/06/2023,PE149967,512334.08,0.00,"FAO Chloe SumnerBalfour Beatty Civil Engineering LtdChaddock Lane WorsleyManchesterM28 1XYTel, 0161 638 0800 Chloe.Sumner@balfourbeatty.com Wyre Beach Management Scheme Phase 1 - Construction Works.Cost 2,687,156.94",Contract (New CCR)
Wyre Council,http://opendatacommunities.org/doc/district-council/wyre,29/06/2023,People and Places,"Cultural, Environ and Planning",137B,Balfour Beatty Civil Engineering Ltd,23/06/2023,PE150680,258705.33,0.00,"FAO Chloe SumnerBalfour Beatty Civil Engineering LtdChaddock Lane WorsleyManchesterM28 1XYTel, 0161 638 0800 Chloe.Sumner@balfourbeatty.com Wyre Beach Management Scheme Phase 1 - Construction Works.Cost 2,687,156.94",Contract (New CCR)
Wyre Council,http://opendatacommunities.org/doc/district-council/wyre,29/06/2023,People and Places,Corporate and Democratic Core,131A,Apse,26/06/2023,PE150702,2337.00,0.00,"APSE Energy Membership Fee, April 2023 - March 2024",Corporate and Professional Subscriptions
Wyre Council,http://opendatacommunities.org/doc/district-council/wyre,29/06/2023,Resources,Support Services,135B,CIPFA Business LTD,22/06/2023,RS150656,930.00,0.00,TIS Online Take 5  01 April 2023 to 31 March 2024,Corporate and Professional Subscriptions
Wyre Council,http://opendatacommunities.org/doc/district-council/wyre,29/06/2023,Finance,Current Assets,130B,,06/06/2023,WPST00108848,7197.91,0.00,02/06/23 Ctax Refunds,Council Tax Refunds
Wyre Council,http://opendatacommunities.org/doc/district-council/wyre,29/06/2023,Finance,Current Assets,130B,,20/06/2023,WPST00110242,15012.44,0.00, 16/06/23 CTAXREFUNDS,Council Tax Refunds
Wyre Council,http://opendatacommunities.org/doc/district-council/wyre,29/06/2023,Finance,Current Assets,130B,,27/06/2023,WPST00110840,37279.43,0.00,Ctax Refunds,Council Tax Refunds
Wyre Council,http://opendatacommunities.org/doc/district-council/wyre,29/06/2023,Finance,Current Assets,130B,,13/06/2023,WPST00109642,10619.57,0.00,09/06/23 Ctax Refunds,Council Tax Refunds
Wyre Council,http://opendatacommunities.org/doc/district-council/wyre,29/06/2023,Resources,Cultural and Related Services,132A,Preston City Council,26/06/2023,RS150681,5.00,0.00,100 x A5 Craft and Chat leaflets,Creative People and Places Contribution
Wyre Council,http://opendatacommunities.org/doc/district-council/wyre,29/06/2023,People and Places,Cultural and Related Services,132A,Fools Paradise LTD,21/06/2023,PE150438,820.00,0.00,"For the supply of the Strolling Gardeners for the Big Green event at Wyre Country Park, on Saturday 10th June 2023 between 10am and 4pm. Artists` information to follow.  Fees: 820",Creative People and Places Contribution
Wyre Council,http://opendatacommunities.org/doc/district-council/wyre,29/06/2023,People and Places,Cultural and Related Services,132A,JULIA M SWARBRICK,29/06/2023,PE150793,900.00,0.00,Payment 1 of 2 for Market Heritage art sessions at the Market House Studios - June - August 2023.900,Creative People and Places Contribution
Wyre Council,http://opendatacommunities.org/doc/district-council/wyre,29/06/2023,People and Places,Cultural and Related Services,132A,DENISE KEEN-JUNK,12/06/2023,PE150278,500.00,0.00,"For the provision of a junk sculpture and  environmental education session, as part of the Big Green Get Together event at Stannah Country Park, on Saturday 10th June  11am till 4pm",Creative People and Places Contribution
Wyre Council,http://opendatacommunities.org/doc/district-council/wyre,29/06/2023,People and Places,Cultural and Related Services,132A,SONGSMITH RECORDS LTD,12/06/2023,PE150282,1100.00,0.00,"For the provision of the solar stage and performances from the Flat Cap Two at Wyre Country Park, as part of the Big Green Get Together event on Saturday 10th June 2023.",Creative People and Places Contribution
Wyre Council,http://opendatacommunities.org/doc/district-council/wyre,29/06/2023,Resources,Cultural and Related Services,132A,Amazon Business,01/06/2023,RS149920,20.00,0.00,Post box cut out for Big Green Get Together event,Creative People and Places Contribution
Wyre Council,http://opendatacommunities.org/doc/district-council/wyre,29/06/2023,People and Places,Cultural and Related Services,132A,FinearthHJ,21/06/2023,PE150624,500.00,0.00,For the provision of  junk instrument making sessions at The Big Green Together eventat Stannah Country Park on Saturday June 10th 11am till 4 pm.Fee 500 including all preparation and materials.,Creative People and Places Contribution
Wyre Council,http://opendatacommunities.org/doc/district-council/wyre,29/06/2023,People and Places,Support Services,135B,EK Motors Factors LTD,01/06/2023,PE149905,1.06,0.00,Parts,Daywork Materials (Excl.Tyres)
Wyre Council,http://opendatacommunities.org/doc/district-council/wyre,29/06/2023,People and Places,Planning and Development Servs,132C,EK Motors Factors LTD,01/06/2023,PE149916,9.16,0.00,Parts,Daywork Materials (Excl.Tyres)
Wyre Council,http://opendatacommunities.org/doc/district-council/wyre,29/06/2023,People and Places,Environmental Services,132B,EK Motors Factors LTD,01/06/2023,PE149918,23.26,0.00,Parts,Daywork Materials (Excl.Tyres)
Wyre Council,http://opendatacommunities.org/doc/district-council/wyre,29/06/2023,People and Places,Support Services,135B,EK Motors Factors LTD,01/06/2023,PE149898,13.38,0.00,Parts,Daywork Materials (Excl.Tyres)
Wyre Council,http://opendatacommunities.org/doc/district-council/wyre,29/06/2023,People and Places,Environmental Services,132B,EK Motors Factors LTD,01/06/2023,PE149917,26.12,0.00,Parts,Daywork Materials (Excl.Tyres)
Wyre Council,http://opendatacommunities.org/doc/district-council/wyre,29/06/2023,People and Places,Support Services,135B,EK Motors Factors LTD,01/06/2023,PE149901,23.95,0.00,Parts,Daywork Materials (Excl.Tyres)
Wyre Council,http://opendatacommunities.org/doc/district-council/wyre,29/06/2023,People and Places,Support Services,135B,EK Motors Factors LTD,01/06/2023,PE149900,20.94,0.00,Parts,Daywork Materials (Excl.Tyres)
Wyre Council,http://opendatacommunities.org/doc/district-council/wyre,29/06/2023,People and Places,Support Services,135B,EK Motors Factors LTD,01/06/2023,PE149903,91.05,0.00,Parts,Daywork Materials (Excl.Tyres)
Wyre Council,http://opendatacommunities.org/doc/district-council/wyre,29/06/2023,People and Places,Support Services,135B,EK Motors Factors LTD,01/06/2023,PE149902,29.18,0.00,Parts,Daywork Materials (Excl.Tyres)
Wyre Council,http://opendatacommunities.org/doc/district-council/wyre,29/06/2023,People and Places,Environmental Services,132B,EK Motors Factors LTD,01/06/2023,PE149912,44.53,0.00,Parts,Daywork Materials (Excl.Tyres)
Wyre Council,http://opendatacommunities.org/doc/district-council/wyre,29/06/2023,People and Places,Environmental Services,132B,EK Motors Factors LTD,01/06/2023,PE149911,17.05,0.00,Parts,Daywork Materials (Excl.Tyres)
Wyre Council,http://opendatacommunities.org/doc/district-council/wyre,29/06/2023,People and Places,Environmental Services,132B,EK Motors Factors LTD,01/06/2023,PE149915,55.97,0.00,Parts,Daywork Materials (Excl.Tyres)
Wyre Council,http://opendatacommunities.org/doc/district-council/wyre,29/06/2023,People and Places,Environmental Services,132B,EK Motors Factors LTD,01/06/2023,PE149913,67.13,0.00,Parts,Daywork Materials (Excl.Tyres)
Wyre Council,http://opendatacommunities.org/doc/district-council/wyre,29/06/2023,People and Places,Environmental Services,132B,EK Motors Factors LTD,01/06/2023,PE149910,39.07,0.00,Parts,Daywork Materials (Excl.Tyres)
Wyre Council,http://opendatacommunities.org/doc/district-council/wyre,29/06/2023,People and Places,Environmental Services,132B,EK Motors Factors LTD,01/06/2023,PE149909,217.89,0.00,Parts,Daywork Materials (Excl.Tyres)
Wyre Council,http://opendatacommunities.org/doc/district-council/wyre,29/06/2023,People and Places,Environmental Services,132B,EK Motors Factors LTD,01/06/2023,PE149908,223.61,0.00,Parts,Daywork Materials (Excl.Tyres)
Wyre Council,http://opendatacommunities.org/doc/district-council/wyre,29/06/2023,People and Places,Support Services,135B,EK Motors Factors LTD,01/06/2023,PE149899,38.61,0.00,Parts,Daywork Materials (Excl.Tyres)
Wyre Council,http://opendatacommunities.org/doc/district-council/wyre,29/06/2023,People and Places,Support Services,135B,Gunn JCB LTD,16/06/2023,PE150162,1118.42,0.00,Oil cooler and plate,Daywork Materials (Excl.Tyres)
Wyre Council,http://opendatacommunities.org/doc/district-council/wyre,29/06/2023,People and Places,Environmental Services,132B,RTS MUNI LTD,09/06/2023,PE149965,64.50,0.00,Travel,Daywork Materials (Excl.Tyres)
Wyre Council,http://opendatacommunities.org/doc/district-council/wyre,29/06/2023,People and Places,Environmental Services,132B,RTS MUNI LTD,09/06/2023,PE149965,33.00,0.00,Mileage,Daywork Materials (Excl.Tyres)
Wyre Council,http://opendatacommunities.org/doc/district-council/wyre,29/06/2023,People and Places,Environmental Services,132B,RTS MUNI LTD,09/06/2023,PE149965,128.00,0.00,Parts,Daywork Materials (Excl.Tyres)
Wyre Council,http://opendatacommunities.org/doc/district-council/wyre,29/06/2023,People and Places,Environmental Services,132B,RTS MUNI LTD,09/06/2023,PE149965,172.00,0.00,Labour,Daywork Materials (Excl.Tyres)
Wyre Council,http://opendatacommunities.org/doc/district-council/wyre,29/06/2023,People and Places,Environmental Services,132B,RENTOKIL INITIAL UK LTD,21/06/2023,PE150605,121.68,0.00,Clinical waste collection and disposal services to Wyre domestic customers.  To include provision of containers for financial year 2023/24,Disposal Costs Hazardous Waste
Wyre Council,http://opendatacommunities.org/doc/district-council/wyre,29/06/2023,People and Places,Environmental Services,132B,RENTOKIL INITIAL UK LTD,21/06/2023,PE150618,121.68,0.00,Clinical waste collection and disposal services to Wyre domestic customers.  To include provision of containers for financial year 2023/24,Disposal Costs Hazardous Waste
Wyre Council,http://opendatacommunities.org/doc/district-council/wyre,29/06/2023,People and Places,Cultural and Related Services,132A,Carlsberg UK LTD,08/06/2023,PE150119,114.00,0.00,CO2 & Mixed Gas - Marine Hall,Drinks
Wyre Council,http://opendatacommunities.org/doc/district-council/wyre,29/06/2023,People and Places,Cultural and Related Services,132A,Carlsberg UK LTD,08/06/2023,PE150118,696.81,0.00,Bar order - MH 25/5/23,Drinks
Wyre Council,http://opendatacommunities.org/doc/district-council/wyre,29/06/2023,People and Places,Cultural and Related Services,132A,Carlsberg UK LTD,14/06/2023,PE150396,660.59,0.00,Bar Order - MH,Drinks
Wyre Council,http://opendatacommunities.org/doc/district-council/wyre,29/06/2023,People and Places,Cultural and Related Services,132A,Carlsberg UK LTD,28/06/2023,PE150481,591.42,0.00,Marine Hall bar supplies,Drinks
Wyre Council,http://opendatacommunities.org/doc/district-council/wyre,29/06/2023,Resources,Current Assets,130B,Print Image Network LTD,06/06/2023,RS150051,1665.00,0.00,Wyre Parish Elections - Parish Election ballot books,Elect. - Polling Stations
Wyre Council,http://opendatacommunities.org/doc/district-council/wyre,29/06/2023,Resources,Current Assets,130B,Print Image Network LTD,07/06/2023,RS150058,347.00,0.00,Wyre Parish Election 2023 - Large print ballot papers,Elect. - Polling Stations
Wyre Council,http://opendatacommunities.org/doc/district-council/wyre,29/06/2023,Resources,Current Assets,130B,Print Image Network LTD,07/06/2023,RS150057,2946.68,0.00,Wyre Parish Elections 2023 - Econovote Plus Postal Vote Mailing972 Postal Votes,Elect. - Postal Votes
Wyre Council,http://opendatacommunities.org/doc/district-council/wyre,29/06/2023,People and Places,Cultural and Related Services,132A,EDF Energy,14/06/2023,PE150186,3111.13,0.00,"1600000125794 Garstang Swimming Pool, Birch Road, Garstang, PR3 1HT 01/05/23 to 31/05/23",Electricity
Wyre Council,http://opendatacommunities.org/doc/district-council/wyre,29/06/2023,People and Places,Cultural and Related Services,132A,EDF Energy,14/06/2023,PE149657,11724.06,0.00,"1600000162884 YMCA The Esplanade, Fleetwood, FY7 6HF 01/04/23 to 30/04/23",Electricity
Wyre Council,http://opendatacommunities.org/doc/district-council/wyre,29/06/2023,People and Places,Cultural and Related Services,132A,EDF Energy,14/06/2023,PE150188,12215.56,0.00,"1600000162884 YMCA The Esplanade, Fleetwood, FY7 6HF 01/05/23 to 31/05/23",Electricity
Wyre Council,http://opendatacommunities.org/doc/district-council/wyre,29/06/2023,People and Places,Cultural and Related Services,132A,EDF Energy,14/06/2023,PE150187,12671.02,0.00,"2500000793090 YMCA Victoria Rd East, Thornton FY5 3SX 01/05/23 to 31/05/23",Electricity
Wyre Council,http://opendatacommunities.org/doc/district-council/wyre,29/06/2023,People and Places,Cultural and Related Services,132A,EDF Energy,14/06/2023,PE150187,29.78,0.00,"2500000793090 YMCA Victoria Rd East, Thornton FY5 3SX 01/05/23 to 31/05/23 LPI",Electricity
Wyre Council,http://opendatacommunities.org/doc/district-council/wyre,29/06/2023,People and Places,Parking Services,133F,N Power LTD,07/06/2023,PE150031,452.45,0.00,Electricity Charges for the period 01/05/23- 31/05/23,Electricity
Wyre Council,http://opendatacommunities.org/doc/district-council/wyre,29/06/2023,People and Places,Parking Services,133F,N Power LTD,07/06/2023,PE150028,1631.45,0.00,Electricity Charges for the period 01-05-23 to 31/05/23,Electricity
Wyre Council,http://opendatacommunities.org/doc/district-council/wyre,29/06/2023,People and Places,Parking Services,133F,N Power LTD,07/06/2023,PE150030,2.85,0.00,Electricity Charges for the period 01/05/23-31/05/23,Electricity
Wyre Council,http://opendatacommunities.org/doc/district-council/wyre,29/06/2023,People and Places,Environmental Services,132B,N Power LTD,07/06/2023,PE150030,0.43,0.00,Electricity Charges for the period 01/05/23-31/05/23,Electricity
Wyre Council,http://opendatacommunities.org/doc/district-council/wyre,29/06/2023,People and Places,Environmental Services,132B,N Power LTD,07/06/2023,PE150030,0.08,0.00,Electricity Charges for the period 01/05/23-31/05/23,Electricity
Wyre Council,http://opendatacommunities.org/doc/district-council/wyre,29/06/2023,People and Places,Environmental Services,132B,N Power LTD,07/06/2023,PE150028,301.60,0.00,Electricity Charges for the period 01-05-23 to 31/05/23,Electricity
Wyre Council,http://opendatacommunities.org/doc/district-council/wyre,29/06/2023,People and Places,Cultural and Related Services,132A,Corona Energy Retail 4 Limited,15/06/2023,PE150419,90.45,0.00,1640000233705 Coastal Observation Point  Rossal Point Fleetwood FY78AF 01/05/23 to 31/05/23,Electricity
Wyre Council,http://opendatacommunities.org/doc/district-council/wyre,29/06/2023,People and Places,Cultural and Related Services,132A,Corona Energy Retail 4 Limited,15/06/2023,PE150421,103.71,0.00,1640000233705 Coastal Observation Point  Rossal Point Fleetwood FY78AF 01/04/23 to 30/04/23,Electricity
Wyre Council,http://opendatacommunities.org/doc/district-council/wyre,29/06/2023,People and Places,Cultural and Related Services,132A,Corona Energy Retail 4 Limited,14/06/2023,PE150320,60.01,0.00,1640000233705 Coastal Observation Point  Rossal Point Fleetwood FY78AF 01/04/23 to 30/04/23,Electricity
Wyre Council,http://opendatacommunities.org/doc/district-council/wyre,29/06/2023,People and Places,Planning and Development Servs,132C,Corona Energy Retail 4 Limited,06/06/2023,PE150012,-694.58,0.00,Aug to Nov 21 Adjustment,Electricity
Wyre Council,http://opendatacommunities.org/doc/district-council/wyre,29/06/2023,People and Places,Planning and Development Servs,132C,Corona Energy Retail 4 Limited,15/06/2023,PE150417,865.22,0.00,1640000184606 Council Depot Copse Road  Fleetwood FY76RP 01/04/23 to 30/04/23,Electricity
Wyre Council,http://opendatacommunities.org/doc/district-council/wyre,29/06/2023,People and Places,Planning and Development Servs,132C,Corona Energy Retail 4 Limited,15/06/2023,PE150422,803.72,0.00,1640000184606 Council Depot Copse Road  Fleetwood FY76RP 01/05/23 to 31/05/23,Electricity
Wyre Council,http://opendatacommunities.org/doc/district-council/wyre,29/06/2023,People and Places,Planning and Development Servs,132C,Corona Energy Retail 4 Limited,14/06/2023,PE150329,484.90,0.00,1640000184606 Council Depot Copse Road  Fleetwood FY76RP 01/04/23 to 30/04/23,Electricity
Wyre Council,http://opendatacommunities.org/doc/district-council/wyre,29/06/2023,People and Places,Central Services to the Public,131C,Corona Energy Retail 4 Limited,06/06/2023,PE148243,1703.45,0.00,1610004322012 Womens  Royal Voluntary Service Teanlowe Day Centre Poulton-Le-Fylde FY67ST 01/02/23  to 01/03/23,Electricity
Wyre Council,http://opendatacommunities.org/doc/district-council/wyre,29/06/2023,People and Places,Cultural and Related Services,132A,Corona Energy Retail 4 Limited,15/06/2023,PE150418,2399.77,0.00,1630000670291 Promenade Cafe North  Promenade Thornton-Cleveleys FY51DB 01/05/23 to 31/05/23,Electricity
Wyre Council,http://opendatacommunities.org/doc/district-council/wyre,29/06/2023,People and Places,Cultural and Related Services,132A,Corona Energy Retail 4 Limited,14/06/2023,PE150330,1590.65,0.00,1630000670291 Promendae Cafe North  Promenade Thornton-Cleveleys FY51DB 01/03/23 to 31/03/23,Electricity
Wyre Council,http://opendatacommunities.org/doc/district-council/wyre,29/06/2023,People and Places,Central Services to the Public,131C,Corona Energy Retail 4 Limited,06/06/2023,PE148112,-1517.08,0.00,1610004322012 Womens Royal Voluntary Service Teanlowe Day Centre Poulton-Le-Fylde FY67ST,Electricity
Wyre Council,http://opendatacommunities.org/doc/district-council/wyre,29/06/2023,People and Places,Central Services to the Public,131C,Corona Energy Retail 4 Limited,06/06/2023,PE150012,-1138.19,0.00,Aug to Nov 21 Adjustment,Electricity
Wyre Council,http://opendatacommunities.org/doc/district-council/wyre,29/06/2023,People and Places,Central Services to the Public,131C,Corona Energy Retail 4 Limited,28/06/2023,PE150638,2975.15,0.00,1610004322012 Womens Royal Voluntary  Service Teanlowe Day Centre Poulton-Le-Fylde FY67ST 01/05/23 to 31/05/23 Read,Electricity
Wyre Council,http://opendatacommunities.org/doc/district-council/wyre,29/06/2023,People and Places,Cultural and Related Services,132A,Corona Energy Retail 4 Limited,06/06/2023,PE148243,0.32,0.00,1610004775083 The  Windmill Fleetwood Road North Thornton Cleveleys FY54BP 01/09/22 to 01/10/22,Electricity
Wyre Council,http://opendatacommunities.org/doc/district-council/wyre,29/06/2023,People and Places,Cultural and Related Services,132A,Corona Energy Retail 4 Limited,14/06/2023,PE150327,2169.38,0.00,1630000670291 Promendae Cafe North  Promenade Thornton-Cleveleys FY51DB 01/04/23 to 30/04/23,Electricity
Wyre Council,http://opendatacommunities.org/doc/district-council/wyre,29/06/2023,People and Places,Environmental Services,132B,Corona Energy Retail 4 Limited,06/06/2023,PE148243,74.07,0.00,1610023232505 Public  Conveniences Public Conveniences Garstang PR31EA 01/02/23 to 01/03/23,Electricity
Wyre Council,http://opendatacommunities.org/doc/district-council/wyre,29/06/2023,People and Places,Environmental Services,132B,Corona Energy Retail 4 Limited,06/06/2023,PE149847,148.57,0.00,1610023232505 Public Conveniences Car Park Garstang PR31EA 01/04/23 to  30/04/23 Act,Electricity
Wyre Council,http://opendatacommunities.org/doc/district-council/wyre,29/06/2023,People and Places,Environmental Services,132B,Corona Energy Retail 4 Limited,06/06/2023,PE149850,794.52,0.00,1610004313728 Public Convenience Off  Queensway Teanlowe Centre Poulton-Le-Fylde FY67DF 01/04/23 to 30/04/23 Est,Electricity
Wyre Council,http://opendatacommunities.org/doc/district-council/wyre,29/06/2023,People and Places,Environmental Services,132B,Corona Energy Retail 4 Limited,06/06/2023,PE149852,667.45,0.00,1610004665168 Public Conven Bus Station  Thornton-Cleveleys FY51BW 01/04/23 to 30/04/23 Act,Electricity
Wyre Council,http://opendatacommunities.org/doc/district-council/wyre,29/06/2023,People and Places,Environmental Services,132B,Corona Energy Retail 4 Limited,28/06/2023,PE150634,161.54,0.00,1610023232505 Public Conveniences Car Park  Garstang PR31EA 01/05/23 to 31/05/23 Read,Electricity
Wyre Council,http://opendatacommunities.org/doc/district-council/wyre,29/06/2023,People and Places,Environmental Services,132B,Corona Energy Retail 4 Limited,28/06/2023,PE150642,672.04,0.00,1610004665168 Public Conven  Thornton-Cleveleys FY51BW 01/05/23 to 31/05/23 Read,Electricity
Wyre Council,http://opendatacommunities.org/doc/district-council/wyre,29/06/2023,People and Places,Environmental Services,132B,Corona Energy Retail 4 Limited,28/06/2023,PE150648,753.11,0.00,1610004313728 Public Convenience Off  Queensway Poulton-Le-Fylde FY67DF 01/05/23 to 31/05/23 Est,Electricity
Wyre Council,http://opendatacommunities.org/doc/district-council/wyre,29/06/2023,People and Places,Cultural and Related Services,132A,Corona Energy Retail 4 Limited,28/06/2023,PE150643,165.86,0.00,1610004318841 Jean Stansfield Bowling Green  Vicarage Road Poulton Le Fylde FY67BE 01/05/23 to 31/05/23 Est,Electricity
Wyre Council,http://opendatacommunities.org/doc/district-council/wyre,29/06/2023,People and Places,Cultural and Related Services,132A,Corona Energy Retail 4 Limited,06/06/2023,PE148243,47.75,0.00,1610004724089  Pavilion North Drive Thornton Cleveleys FY52QD 01/02/23 to 01/03/23,Electricity
Wyre Council,http://opendatacommunities.org/doc/district-council/wyre,29/06/2023,People and Places,Cultural and Related Services,132A,Corona Energy Retail 4 Limited,01/06/2023,PE149845,100.85,0.00,1610004724089 Pavilion North Drive Thornton Cleveleys FY52QD 01/04/23 to  30/04/23 Est,Electricity
Wyre Council,http://opendatacommunities.org/doc/district-council/wyre,29/06/2023,People and Places,Cultural and Related Services,132A,Corona Energy Retail 4 Limited,28/06/2023,PE150649,93.20,0.00,1610004724089 Pavilion North Drive Thornton  Cleveleys FY52QD 01/05/23 to 31/05/23 Read,Electricity
Wyre Council,http://opendatacommunities.org/doc/district-council/wyre,29/06/2023,People and Places,Environmental Services,132B,Corona Energy Retail 4 Limited,06/06/2023,PE149844,1570.33,0.00,1610004347328 East Cemetry Garstang Road  Poulton Le Fylde FY67SN 01/04/23 to 30/04/23 Est,Electricity
Wyre Council,http://opendatacommunities.org/doc/district-council/wyre,29/06/2023,People and Places,Environmental Services,132B,Corona Energy Retail 4 Limited,06/06/2023,PE148243,874.27,0.00,1610004347328 East  Cemetry Garstang Road East Poulton Le Fylde FY67SN 01/02/23 to 01/03/23,Electricity
Wyre Council,http://opendatacommunities.org/doc/district-council/wyre,29/06/2023,People and Places,Environmental Services,132B,Corona Energy Retail 4 Limited,06/06/2023,PE148112,-806.66,0.00,1610004347328 East Cemetry Garstang Road East Poulton Le Fylde FY67SN,Electricity
Wyre Council,http://opendatacommunities.org/doc/district-council/wyre,29/06/2023,People and Places,Environmental Services,132B,Corona Energy Retail 4 Limited,06/06/2023,PE150012,-515.81,0.00,Aug to Nov 21 Adjustment,Electricity
Wyre Council,http://opendatacommunities.org/doc/district-council/wyre,29/06/2023,People and Places,Environmental Services,132B,Corona Energy Retail 4 Limited,28/06/2023,PE150639,1429.39,0.00,1610004347328 East Cemetry Garstang Road  East Poulton Le Fylde FY67SN 01/05/23 to 31/05/23 Est,Electricity
Wyre Council,http://opendatacommunities.org/doc/district-council/wyre,29/06/2023,People and Places,Planning and Development Servs,132C,Corona Energy Retail 4 Limited,06/06/2023,PE150012,-965.26,0.00,Aug to Nov 21 Adjustment,Electricity
Wyre Council,http://opendatacommunities.org/doc/district-council/wyre,29/06/2023,People and Places,Planning and Development Servs,132C,Corona Energy Retail 4 Limited,15/06/2023,PE150424,804.01,0.00,1620000784666 Main Hall Adelaide Street  Fleetwood FY76AB 01/05/23 to 31/05/23,Electricity
Wyre Council,http://opendatacommunities.org/doc/district-council/wyre,29/06/2023,People and Places,Environmental Services,132B,Corona Energy Retail 4 Limited,06/06/2023,PE148112,-693.73,0.00,1610004665168 Public Conven Public Conven Thornton-Cleveleys FY51BW,Electricity
Wyre Council,http://opendatacommunities.org/doc/district-council/wyre,29/06/2023,People and Places,Environmental Services,132B,Corona Energy Retail 4 Limited,06/06/2023,PE150012,-2333.58,0.00,Aug to Nov 21 Adjustment,Electricity
Wyre Council,http://opendatacommunities.org/doc/district-council/wyre,29/06/2023,People and Places,Environmental Services,132B,Corona Energy Retail 4 Limited,06/06/2023,PE148243,471.64,0.00,1610004313728 Public  Convenience Off Queensway Poulton-Le-Fylde FY67DF 01/02/23 to 01/03/23,Electricity
Wyre Council,http://opendatacommunities.org/doc/district-council/wyre,29/06/2023,People and Places,Environmental Services,132B,Corona Energy Retail 4 Limited,06/06/2023,PE148243,782.63,0.00,1610004665168 Public  Conven Public Conven Thornton-Cleveleys FY51BW 01/02/23 to 01/03/23,Electricity
Wyre Council,http://opendatacommunities.org/doc/district-council/wyre,29/06/2023,People and Places,Cultural and Related Services,132A,Corona Energy Retail 4 Limited,06/06/2023,PE149839,72.55,0.00,1610004318841 Jean Stansfield Bowling Green  Vicarage Road Poulton Le Fylde FY67BE  01/04/23 to 30/04/23 Est,Electricity
Wyre Council,http://opendatacommunities.org/doc/district-council/wyre,29/06/2023,People and Places,Cultural and Related Services,132A,Corona Energy Retail 4 Limited,06/06/2023,PE148243,135.90,0.00,1610004318841 Jean  Stansfield Bowling Green Vicarage Road Poulton Le Fylde FY67BE 01/02/23 to  01/03/23,Electricity
Wyre Council,http://opendatacommunities.org/doc/district-council/wyre,29/06/2023,People and Places,Cultural and Related Services,132A,Corona Energy Retail 4 Limited,06/06/2023,PE148243,148.88,0.00,1610004742431  Visitors Centre River Road Thornton Cleveleys FY55LR 01/02/23 to 01/03/23,Electricity
Wyre Council,http://opendatacommunities.org/doc/district-council/wyre,29/06/2023,People and Places,Cultural and Related Services,132A,Corona Energy Retail 4 Limited,06/06/2023,PE148243,1123.38,0.00,1610004742399 River  Road Thornton Cleveleys Thornton Cleveleys FY55LR 01/02/23 to 01/03/23,Electricity
Wyre Council,http://opendatacommunities.org/doc/district-council/wyre,29/06/2023,People and Places,Cultural and Related Services,132A,Corona Energy Retail 4 Limited,06/06/2023,PE148243,8.14,0.00,1610004742404 River  Road Thornton Cleveleys Thornton Cleveleys FY55LR 01/02/23 to 01/03/23,Electricity
Wyre Council,http://opendatacommunities.org/doc/district-council/wyre,29/06/2023,People and Places,Cultural and Related Services,132A,Corona Energy Retail 4 Limited,06/06/2023,PE149840,8.14,0.00,1610004742404 River Road Thornton  Cleveleys FY55LR 01/04/23 to 30/04/23  Act,Electricity
Wyre Council,http://opendatacommunities.org/doc/district-council/wyre,29/06/2023,People and Places,Cultural and Related Services,132A,Corona Energy Retail 4 Limited,06/06/2023,PE149837,1438.09,0.00,1610004742399 River Road Thornton  Cleveleys FY55LR 01/04/23 to 30/04/23  Act,Electricity
Wyre Council,http://opendatacommunities.org/doc/district-council/wyre,29/06/2023,People and Places,Cultural and Related Services,132A,Corona Energy Retail 4 Limited,06/06/2023,PE149846,327.81,0.00,1610004742431 Visitors Centre River Road  Thornton Cleveleys FY55LR 01/04/23 to 30/04/23 Est,Electricity
Wyre Council,http://opendatacommunities.org/doc/district-council/wyre,29/06/2023,People and Places,Cultural and Related Services,132A,Corona Energy Retail 4 Limited,06/06/2023,PE148112,-566.12,0.00,1610004742399 River Road Thornton Cleveleys Thornton Cleveleys FY55LR,Electricity
Wyre Council,http://opendatacommunities.org/doc/district-council/wyre,29/06/2023,People and Places,Cultural and Related Services,132A,Corona Energy Retail 4 Limited,28/06/2023,PE150647,384.45,0.00,1610004742399 River Road Thornton Cleveleys  FY55LR 01/05/23 to 31/05/23 Read,Electricity
Wyre Council,http://opendatacommunities.org/doc/district-council/wyre,29/06/2023,People and Places,Cultural and Related Services,132A,Corona Energy Retail 4 Limited,06/06/2023,PE150012,-908.92,0.00,Aug to Nov 21 Adjustment,Electricity
Wyre Council,http://opendatacommunities.org/doc/district-council/wyre,29/06/2023,People and Places,Cultural and Related Services,132A,Corona Energy Retail 4 Limited,06/06/2023,PE149843,60.92,0.00,1610004305434 Sports Pavilion Cottam Hall  Poulton-Le-Fylde FY67RH 01/04/23 to 30/04/23 Est,Electricity
Wyre Council,http://opendatacommunities.org/doc/district-council/wyre,29/06/2023,People and Places,Cultural and Related Services,132A,Corona Energy Retail 4 Limited,06/06/2023,PE149851,52.99,0.00,1610004305443 Sports Pavilion Cottam Hall  Poulton-Le-Fylde FY67RH 01/04/23 to 30/04/23 Est,Electricity
Wyre Council,http://opendatacommunities.org/doc/district-council/wyre,29/06/2023,People and Places,Cultural and Related Services,132A,Corona Energy Retail 4 Limited,28/06/2023,PE150646,39.84,0.00,1610004305443 Sports Pavilion  Poulton-Le-Fylde FY67RH 01/05/23 to 31/05/23 Est,Electricity
Wyre Council,http://opendatacommunities.org/doc/district-council/wyre,29/06/2023,People and Places,Cultural and Related Services,132A,Corona Energy Retail 4 Limited,28/06/2023,PE150645,59.39,0.00,1610004305434 Sports Pavilion  Poulton-Le-Fylde FY67RH 01/05/23 to 31/05/23 Est,Electricity
Wyre Council,http://opendatacommunities.org/doc/district-council/wyre,29/06/2023,People and Places,Cultural and Related Services,132A,Corona Energy Retail 4 Limited,06/06/2023,PE148243,935.39,0.00,1640000960322  The Mount Lodge The Esplanade Fleetwood FY76EZ 01/02/23 to 01/03/23,Electricity
Wyre Council,http://opendatacommunities.org/doc/district-council/wyre,29/06/2023,People and Places,Cultural and Related Services,132A,Corona Energy Retail 4 Limited,06/06/2023,PE148243,987.22,0.00,1650000008330 The  Mount Pavilion Mount Road Lancashire FY76EZ 01/02/23 to 01/03/23,Electricity
Wyre Council,http://opendatacommunities.org/doc/district-council/wyre,29/06/2023,People and Places,Cultural and Related Services,132A,Corona Energy Retail 4 Limited,06/06/2023,PE149835,1897.29,0.00,1640000960322 The Mount Lodge  The Esplanade The Mount Lodge FY76EZ 01/04/23 to 30/04/23 Est,Electricity
Wyre Council,http://opendatacommunities.org/doc/district-council/wyre,29/06/2023,People and Places,Cultural and Related Services,132A,Corona Energy Retail 4 Limited,06/06/2023,PE149834,413.93,0.00,1650000008330 The Mount Pavilion  Mount Road Fleetwood FY76EZ 01/04/23 to 30/04/23 Act,Electricity
Wyre Council,http://opendatacommunities.org/doc/district-council/wyre,29/06/2023,People and Places,Cultural and Related Services,132A,Corona Energy Retail 4 Limited,20/06/2023,PE150440,320.46,0.00,1650000008330 The Mount Pavilion Mount Road  Fleetwood FY76EZ 01/05/23 to 31/05/23,Electricity
Wyre Council,http://opendatacommunities.org/doc/district-council/wyre,29/06/2023,People and Places,Cultural and Related Services,132A,Corona Energy Retail 4 Limited,20/06/2023,PE150439,807.92,0.00,1640000960322 The Mount Lodge The Esplanade  Fleetwood FY76EZ 01/05/23 to 31/05/23,Electricity
Wyre Council,http://opendatacommunities.org/doc/district-council/wyre,29/06/2023,People and Places,Cultural and Related Services,132A,Corona Energy Retail 4 Limited,15/06/2023,PE150423,5862.13,0.00,1600000162875 Marine Hall The Esplanade  Fleetwood FY76HF 01/05/23 to 31/05/23,Electricity
Wyre Council,http://opendatacommunities.org/doc/district-council/wyre,29/06/2023,People and Places,Cultural and Related Services,132A,Corona Energy Retail 4 Limited,06/06/2023,PE149848,1980.81,0.00,1610004773866 Wyre Borough Council Lecture  Hall Thornton-Cleveleys FY54AD 01/04/23 to 30/04/23 Est,Electricity
Wyre Council,http://opendatacommunities.org/doc/district-council/wyre,29/06/2023,People and Places,Cultural and Related Services,132A,Corona Energy Retail 4 Limited,06/06/2023,PE148243,1172.60,0.00,1610004773866 Wyre  Borough Council Lecture Hall Thornton-Cleveleys FY54AD 01/02/23 to 01/03/23,Electricity
Wyre Council,http://opendatacommunities.org/doc/district-council/wyre,29/06/2023,People and Places,Cultural and Related Services,132A,Corona Energy Retail 4 Limited,06/06/2023,PE148112,-1084.44,0.00,1610004773866 Wyre Borough Council Lecture Hall Thornton-Cleveleys FY54AD,Electricity
Wyre Council,http://opendatacommunities.org/doc/district-council/wyre,29/06/2023,People and Places,Cultural and Related Services,132A,Corona Energy Retail 4 Limited,06/06/2023,PE150012,-692.62,0.00,Aug to Nov 21 Adjustment,Electricity
Wyre Council,http://opendatacommunities.org/doc/district-council/wyre,29/06/2023,People and Places,Cultural and Related Services,132A,Corona Energy Retail 4 Limited,28/06/2023,PE150644,257.67,0.00,1610004863632 Beach Bungalows The Esplanade  Fleetwood FY76QD 01/05/23 to 31/05/23 Est,Electricity
Wyre Council,http://opendatacommunities.org/doc/district-council/wyre,29/06/2023,People and Places,Cultural and Related Services,132A,Corona Energy Retail 4 Limited,06/06/2023,PE149842,279.35,0.00,1610004863632 Beach Bungalows The  Esplanade Fleetwood FY76QD 01/04/23 to  30/04/23 Est,Electricity
Wyre Council,http://opendatacommunities.org/doc/district-council/wyre,29/06/2023,People and Places,Cultural and Related Services,132A,Corona Energy Retail 4 Limited,06/06/2023,PE148243,138.37,0.00,1610004863632 Beach  Bungalows The Esplanade Fleetwood FY76QD 01/02/23 to 01/03/23,Electricity
Wyre Council,http://opendatacommunities.org/doc/district-council/wyre,29/06/2023,People and Places,Cultural and Related Services,132A,Corona Energy Retail 4 Limited,06/06/2023,PE150012,-895.57,0.00,Aug to Nov 21 Adjustment,Electricity
Wyre Council,http://opendatacommunities.org/doc/district-council/wyre,29/06/2023,People and Places,Cultural and Related Services,132A,Corona Energy Retail 4 Limited,06/06/2023,PE150012,-9901.25,0.00,Aug to Nov 21 Adjustment,Electricity
Wyre Council,http://opendatacommunities.org/doc/district-council/wyre,29/06/2023,People and Places,Cultural and Related Services,132A,Corona Energy Retail 4 Limited,28/06/2023,PE150633,1897.37,0.00,1610004773866 Wyre Borough Council Lecture  Hall Thornton-Cleveleys FY54AD 01/05/23 to 31/05/23 Est,Electricity
Wyre Council,http://opendatacommunities.org/doc/district-council/wyre,29/06/2023,People and Places,Cultural and Related Services,132A,Corona Energy Retail 4 Limited,06/06/2023,PE148243,44.46,0.00,1610004305434 Sports  Pavilion Sports Pavilion Poulton-Le-Fylde FY67RH 01/02/23 to 01/03/23,Electricity
Wyre Council,http://opendatacommunities.org/doc/district-council/wyre,29/06/2023,People and Places,Cultural and Related Services,132A,Corona Energy Retail 4 Limited,06/06/2023,PE148243,26.28,0.00,1610004305443 Sports  Pavilion Sports Pavilion Poulton-Le-Fylde FY67RH 01/02/23 to 01/03/23,Electricity
Wyre Council,http://opendatacommunities.org/doc/district-council/wyre,29/06/2023,People and Places,Environmental Services,132B,Corona Energy Retail 4 Limited,28/06/2023,PE150641,401.28,0.00,1610004742413 Stanah Pumphouse 11 River  Road Thornton Cleveleys FY55LR 01/05/23 to 31/05/23 Est,Electricity
Wyre Council,http://opendatacommunities.org/doc/district-council/wyre,29/06/2023,People and Places,Environmental Services,132B,Corona Energy Retail 4 Limited,06/06/2023,PE149836,418.87,0.00,1610004742413 Stanah Pumphouse 11 River  Road Thornton Cleveleys FY55LR  01/04/23 to 30/04/23 Est,Electricity
Wyre Council,http://opendatacommunities.org/doc/district-council/wyre,29/06/2023,People and Places,Central Services to the Public,131C,Corona Energy Retail 4 Limited,06/06/2023,PE148111,-902.43,0.00,1610004322012 Womens Royal Voluntary Service Teanlowe Day Centre Poulton-Le-Fylde FY67ST,Electricity
Wyre Council,http://opendatacommunities.org/doc/district-council/wyre,29/06/2023,People and Places,Central Services to the Public,131C,Corona Energy Retail 4 Limited,06/06/2023,PE149849,3278.01,0.00,1610004322012 WRVS Teanlowe Day Centre Poulton-Le-Fylde FY67ST 01/04/23 to  30/04/23 Act,Electricity
Wyre Council,http://opendatacommunities.org/doc/district-council/wyre,29/06/2023,People and Places,Support Services,135B,Corona Energy Retail 4 Limited,15/06/2023,PE150425,12064.12,0.00,1600000162857 Civic Centre Breck Road  Blackpool FY39DT 01/05/23 to 31/05/23,Electricity
Wyre Council,http://opendatacommunities.org/doc/district-council/wyre,29/06/2023,People and Places,Cultural and Related Services,132A,Corona Energy Retail 4 Limited,28/06/2023,PE150637,232.62,0.00,1610004742431 Visitors Centre River Road  Thornton Cleveleys FY55LR 01/05/23 to 31/05/23 Est,Electricity
Wyre Council,http://opendatacommunities.org/doc/district-council/wyre,29/06/2023,People and Places,Cultural and Related Services,132A,Corona Energy Retail 4 Limited,28/06/2023,PE150635,8.14,0.00,1610004742404 River Road Thornton Cleveleys  FY55LR 01/05/23 to 31/05/23 Read,Electricity
Wyre Council,http://opendatacommunities.org/doc/district-council/wyre,29/06/2023,People and Places,Environmental Services,132B,Corona Energy Retail 4 Limited,06/06/2023,PE149841,25.74,0.00,1610004421042 Pumping Station;1 New  Lane Thornton Cleveleys FY55NS  01/04/23 to 30/04/23 Est,Electricity
Wyre Council,http://opendatacommunities.org/doc/district-council/wyre,29/06/2023,People and Places,Environmental Services,132B,Corona Energy Retail 4 Limited,06/06/2023,PE148243,24.42,0.00,1610004421042 Pumping  Station;1 New Lane Thornton Cleveleys FY55NS 01/02/23 to 01/03/23,Electricity
Wyre Council,http://opendatacommunities.org/doc/district-council/wyre,29/06/2023,People and Places,Environmental Services,132B,Corona Energy Retail 4 Limited,06/06/2023,PE148243,20.43,0.00,1610004421200 Pumping  Station 2 New Lane Thornton Cleveleys FY55NH 01/02/23 to 01/03/23,Electricity
Wyre Council,http://opendatacommunities.org/doc/district-council/wyre,29/06/2023,People and Places,Environmental Services,132B,Corona Energy Retail 4 Limited,06/06/2023,PE149838,28.96,0.00,1610004421200 Pumping Station 2 New  Lane Thornton Cleveleys FY55NH  01/04/23 to 30/04/23 Est,Electricity
Wyre Council,http://opendatacommunities.org/doc/district-council/wyre,29/06/2023,People and Places,Environmental Services,132B,Corona Energy Retail 4 Limited,15/06/2023,PE150415,39.34,0.00,1600000023675 Royles Brook Pumping Station  Off Victoria Road East Thornton FY55OX 01/05/23 to 31/05/23,Electricity
Wyre Council,http://opendatacommunities.org/doc/district-council/wyre,29/06/2023,People and Places,Environmental Services,132B,Corona Energy Retail 4 Limited,14/06/2023,PE150323,161.50,0.00,1600000023675 Royles Brook Pumping Station  Off Victoria Road East Thornton FY55OX 01/03/23 to 31/03/23,Electricity
Wyre Council,http://opendatacommunities.org/doc/district-council/wyre,29/06/2023,People and Places,Environmental Services,132B,Corona Energy Retail 4 Limited,14/06/2023,PE150321,91.76,0.00,1600000023675 Royles Brook Pumping Station  Off Victoria Road East Thornton FY55OX 01/04/23 to 30/04/23,Electricity
Wyre Council,http://opendatacommunities.org/doc/district-council/wyre,29/06/2023,People and Places,Environmental Services,132B,Corona Energy Retail 4 Limited,28/06/2023,PE150640,25.74,0.00,1610004421042 Pumping Station;1 New Lane  Thornton Cleveleys FY55NS 01/05/23 to 31/05/23 Est,Electricity
Wyre Council,http://opendatacommunities.org/doc/district-council/wyre,29/06/2023,People and Places,Environmental Services,132B,Corona Energy Retail 4 Limited,28/06/2023,PE150636,26.66,0.00,1610004421200 Pumping Station 2 New Lane  Thornton Cleveleys FY55NH 01/05/23 to 31/05/23 Est,Electricity
Wyre Council,http://opendatacommunities.org/doc/district-council/wyre,29/06/2023,People and Places,Planning and Development Servs,132C,Drax Energy Solutions Limited,07/06/2023,PE150088,148.62,0.00,"Unit 7B, Dock Ave, Fleetwood, FY7 6PS  01/05/23 to 31/05/23 3200000534764 Act",Electricity
Wyre Council,http://opendatacommunities.org/doc/district-council/wyre,29/06/2023,People and Places,Planning and Development Servs,132C,Drax Energy Solutions Limited,07/06/2023,PE150087,137.15,0.00,"Unit 7A, Dock Ave, Fleetwood, FY7 6PS  01/05/23 to 31/05/23 3200000534755 Act",Electricity
Wyre Council,http://opendatacommunities.org/doc/district-council/wyre,29/06/2023,People and Places,Planning and Development Servs,132C,Drax Energy Solutions Limited,07/06/2023,PE150086,138.17,0.00,"Unit 6, Dock Ave, Fleetwood, FY7 6PS  01/05/23 to 31/05/23 3200000534746 Act",Electricity
Wyre Council,http://opendatacommunities.org/doc/district-council/wyre,29/06/2023,People and Places,Planning and Development Servs,132C,Drax Energy Solutions Limited,07/06/2023,PE150085,136.82,0.00,"Unit 5, Dock Ave, Fleetwood, FY7 6PS  01/05/23 to 31/05/23 3200000534737 Act",Electricity
Wyre Council,http://opendatacommunities.org/doc/district-council/wyre,29/06/2023,People and Places,Planning and Development Servs,132C,Drax Energy Solutions Limited,07/06/2023,PE150084,137.83,0.00,"Unit 4, Dock Ave, Fleetwood, FY7 6PS  01/05/23 to 31/05/23 3200000534728 Act",Electricity
Wyre Council,http://opendatacommunities.org/doc/district-council/wyre,29/06/2023,People and Places,Planning and Development Servs,132C,Drax Energy Solutions Limited,07/06/2023,PE150083,132.43,0.00,"Unit 3, Dock Ave, Fleetwood, FY7 6PS  01/05/23 to 31/05/23 3200000534719 Est",Electricity
Wyre Council,http://opendatacommunities.org/doc/district-council/wyre,29/06/2023,People and Places,Planning and Development Servs,132C,Drax Energy Solutions Limited,07/06/2023,PE150082,132.43,0.00,"Unit 2, Dock Ave, Fleetwood, FY7 6PS  01/05/23 to 31/05/23 3200000534700 Est",Electricity
Wyre Council,http://opendatacommunities.org/doc/district-council/wyre,29/06/2023,People and Places,Planning and Development Servs,132C,Drax Energy Solutions Limited,07/06/2023,PE150092,126.36,0.00,"LL Supply c/o ABP Port Office, Dock Ave,  Fleetwood, FY7 6PS 01/05/23 to 31/05/23 3200000534807 Act",Electricity
Wyre Council,http://opendatacommunities.org/doc/district-council/wyre,29/06/2023,People and Places,Planning and Development Servs,132C,Drax Energy Solutions Limited,07/06/2023,PE150091,132.77,0.00,"Unit 10, Dock Ave, Fleetwood, FY7 6PS  01/05/23 to 31/05/23 3200000534791 Act",Electricity
Wyre Council,http://opendatacommunities.org/doc/district-council/wyre,29/06/2023,People and Places,Planning and Development Servs,132C,Drax Energy Solutions Limited,07/06/2023,PE150090,132.77,0.00,"Unit 9, Dock Ave, Fleetwood, FY7 6PS  01/05/23 to 31/05/23 3200000534782 Act",Electricity
Wyre Council,http://opendatacommunities.org/doc/district-council/wyre,29/06/2023,People and Places,Planning and Development Servs,132C,Drax Energy Solutions Limited,07/06/2023,PE150089,141.54,0.00,"Unit 8, Dock Ave, Fleetwood, FY7 6PS  01/05/23 to 31/05/23 3200000534773 Act",Electricity
Wyre Council,http://opendatacommunities.org/doc/district-council/wyre,29/06/2023,People and Places,Planning and Development Servs,132C,Drax Energy Solutions Limited,13/06/2023,PE150168,776.67,0.00,"3200000534694 1 Dock Ave, Fleetwood, FY7  6PS 01/03/23 to 31/03/23",Electricity
Wyre Council,http://opendatacommunities.org/doc/district-council/wyre,29/06/2023,People and Places,Planning and Development Servs,132C,Drax Energy Solutions Limited,13/06/2023,PE150168,3.33,0.00,"3200000534694 1 Dock Ave, Fleetwood, FY7 6PS 01/03/23 to 31/03/23",Electricity
Wyre Council,http://opendatacommunities.org/doc/district-council/wyre,29/06/2023,People and Places,Planning and Development Servs,132C,Drax Energy Solutions Limited,13/06/2023,PE150167,704.31,0.00,"3200000534694 1 Dock Ave, Fleetwood, FY7  6PS 01/02/23 to 28/02/23",Electricity
Wyre Council,http://opendatacommunities.org/doc/district-council/wyre,29/06/2023,People and Places,Planning and Development Servs,132C,Drax Energy Solutions Limited,13/06/2023,PE150167,3.33,0.00,"3200000534694 1 Dock Ave, Fleetwood, FY7 6PS 01/02/23 to 28/02/23",Electricity
Wyre Council,http://opendatacommunities.org/doc/district-council/wyre,29/06/2023,People and Places,Planning and Development Servs,132C,Drax Energy Solutions Limited,13/06/2023,PE150166,796.95,0.00,"3200000534694 1 Dock Ave, Fleetwood, FY7  6PS 01/01/23 to 31/01/23",Electricity
Wyre Council,http://opendatacommunities.org/doc/district-council/wyre,29/06/2023,People and Places,Planning and Development Servs,132C,Drax Energy Solutions Limited,13/06/2023,PE150166,3.33,0.00,"3200000534694 1 Dock Ave, Fleetwood, FY7 6PS 01/01/23 to 31/01/23",Electricity
Wyre Council,http://opendatacommunities.org/doc/district-council/wyre,29/06/2023,People and Places,Planning and Development Servs,132C,Drax Energy Solutions Limited,14/06/2023,PE150169,1078.43,0.00,"3200000534694 1 Dock Ave, Fleetwood, FY7  6PS 01/04/23 to 30/04/23",Electricity
Wyre Council,http://opendatacommunities.org/doc/district-council/wyre,29/06/2023,People and Places,Planning and Development Servs,132C,Drax Energy Solutions Limited,14/06/2023,PE150169,3.33,0.00,"3200000534694 1 Dock Ave, Fleetwood, FY7 6PS 01/04/23 to 30/04/23",Electricity
Wyre Council,http://opendatacommunities.org/doc/district-council/wyre,29/06/2023,People and Places,Cultural and Related Services,132A,Engie Power Limited,14/06/2023,PE150257,116.83,0.00,"01/05/23-31/05/23Garstang Tourist Info Ctr, Unit 1, Cherestanc Sq, Preston, PR3 1EF",Electricity
Wyre Council,http://opendatacommunities.org/doc/district-council/wyre,29/06/2023,People and Places,Cultural and Related Services,132A,Engie Power Limited,14/06/2023,PE150247,405.63,0.00,"01/05/23-31/05/23Ladies Bowls Pavilion, Memorial Park, Fleetwood, FY7 7AE",Electricity
Wyre Council,http://opendatacommunities.org/doc/district-council/wyre,29/06/2023,People and Places,Cultural and Related Services,132A,Engie Power Limited,14/06/2023,PE150246,101.71,0.00,"01/05/23-31/05/23Bowls House, Memorial Park, Fleetwood, FY7 7AE",Electricity
Wyre Council,http://opendatacommunities.org/doc/district-council/wyre,29/06/2023,People and Places,Cultural and Related Services,132A,Engie Power Limited,14/06/2023,PE150253,225.84,0.00,"01/05/23-31/05/23Tennis Pavillion, Memorial Park, Fleetwood, FY7 7AE",Electricity
Wyre Council,http://opendatacommunities.org/doc/district-council/wyre,29/06/2023,People and Places,Cultural and Related Services,132A,Engie Power Limited,14/06/2023,PE150248,91.35,0.00,"01/05/23-31/05/23King Georges Field, Boradwater, Fleetwood Road, Fleetwood, Lancashire, FY7 8BD",Electricity
Wyre Council,http://opendatacommunities.org/doc/district-council/wyre,29/06/2023,People and Places,Cultural and Related Services,132A,Engie Power Limited,14/06/2023,PE150236,73.70,0.00,"01/05/23-31/05/23Valve House, Marine Lake, Laidleys Walk, Fleetwood, FY7 7JL",Electricity
Wyre Council,http://opendatacommunities.org/doc/district-council/wyre,29/06/2023,People and Places,Cultural and Related Services,132A,Engie Power Limited,14/06/2023,PE150233,557.04,0.00,"01/05/23-31/05/23Central Toilets Kiosk, The Esplanade, Fleetwood, FY7 7BE",Electricity
Wyre Council,http://opendatacommunities.org/doc/district-council/wyre,29/06/2023,People and Places,Cultural and Related Services,132A,Engie Power Limited,14/06/2023,PE150232,405.63,0.00,"01/05/23-31/05/23Pitch & Putt Kiosk, Carr Rd, The Esplanade, Fleetwood, FY7 6QE",Electricity
Wyre Council,http://opendatacommunities.org/doc/district-council/wyre,29/06/2023,People and Places,Cultural and Related Services,132A,Engie Power Limited,14/06/2023,PE150231,343.05,0.00,"01/05/23-31/05/23Pump Station, The Esplanade, Fleetwood, FY7 6HF",Electricity
Wyre Council,http://opendatacommunities.org/doc/district-council/wyre,29/06/2023,People and Places,Cultural and Related Services,132A,Engie Power Limited,14/06/2023,PE150235,306.38,0.00,"01/05/23-31/05/23Pump House, Model Yacht Pond, Laidleys Walk, Fleetwood, FY7 7JL",Electricity
Wyre Council,http://opendatacommunities.org/doc/district-council/wyre,29/06/2023,People and Places,Cultural and Related Services,132A,Engie Power Limited,14/06/2023,PE150255,342.98,0.00,"01/05/23-31/05/23Mount Hotel, Mount Rd, Fleetwood, FY7 6RA",Electricity
Wyre Council,http://opendatacommunities.org/doc/district-council/wyre,29/06/2023,People and Places,Cultural and Related Services,132A,Engie Power Limited,14/06/2023,PE150256,143.10,0.00,"01/05/23-31/05/23Mount Hotel, Mount Rd, Fleetwood, FY7 6RA",Electricity
Wyre Council,http://opendatacommunities.org/doc/district-council/wyre,29/06/2023,People and Places,Cultural and Related Services,132A,Engie Power Limited,14/06/2023,PE150250,143.02,0.00,"01/05/23-31/05/23Mount Pavilion, Mount Rd, Fleetwood, FY7 6EZ",Electricity
Wyre Council,http://opendatacommunities.org/doc/district-council/wyre,29/06/2023,People and Places,Cultural and Related Services,132A,Engie Power Limited,14/06/2023,PE150252,405.97,0.00,"01/05/23-31/05/23Fishermans Walk, Lord St, Fleetwood, FY7 6DU",Electricity
Wyre Council,http://opendatacommunities.org/doc/district-council/wyre,29/06/2023,People and Places,Cultural and Related Services,132A,Engie Power Limited,14/06/2023,PE150225,280.63,0.00,"01/05/23-31/05/23Feeder Pillar, Vicarage Rd, Poulton le Fylde, FY6 7BE",Electricity
Wyre Council,http://opendatacommunities.org/doc/district-council/wyre,29/06/2023,People and Places,Planning and Development Servs,132C,Engie Power Limited,14/06/2023,PE150219,137.67,0.00,"01/05/23-31/05/23Kiosk 4, Fleetwood Market, Adelaide St, Fleetwood, FY7 6AB",Electricity
Wyre Council,http://opendatacommunities.org/doc/district-council/wyre,29/06/2023,People and Places,Planning and Development Servs,132C,Engie Power Limited,14/06/2023,PE150218,56.21,0.00,"01/05/23-31/05/23Kiosk 3, Fleetwood Market, Adelaide St, Fleetwood, FY7 6AB",Electricity
Wyre Council,http://opendatacommunities.org/doc/district-council/wyre,29/06/2023,People and Places,Planning and Development Servs,132C,Engie Power Limited,14/06/2023,PE150228,56.15,0.00,"01/05/23-31/05/23Kiosk 8, Fleetwood Market, Adelaide St, Fleetwood, FY7 6AB",Electricity
Wyre Council,http://opendatacommunities.org/doc/district-council/wyre,29/06/2023,People and Places,Planning and Development Servs,132C,Engie Power Limited,14/06/2023,PE150226,55.39,0.00,"01/05/23-31/05/23Kiosk 2, Fleetwood Market, Adelaie St, Fleetwood, FY7 6AB",Electricity
Wyre Council,http://opendatacommunities.org/doc/district-council/wyre,29/06/2023,People and Places,Planning and Development Servs,132C,Engie Power Limited,14/06/2023,PE150230,49.47,0.00,"01/05/23-31/05/23Landlord Supply, Fleetwood Market, Adelaide St, Fleetwood, FY7 6AB",Electricity
Wyre Council,http://opendatacommunities.org/doc/district-council/wyre,29/06/2023,People and Places,Planning and Development Servs,132C,Engie Power Limited,14/06/2023,PE150229,294.72,0.00,"01/05/23-31/05/23Kiosk 7, Fleetwood Market, Adelaide St, Fleetwood, FY7 6AB",Electricity
Wyre Council,http://opendatacommunities.org/doc/district-council/wyre,29/06/2023,People and Places,Planning and Development Servs,132C,Engie Power Limited,14/06/2023,PE150222,52.60,0.00,"01/05/23-31/05/23Kiosk 6, Fleetwood Market, Adelaide St, Fleetwood, FY7 6AB",Electricity
Wyre Council,http://opendatacommunities.org/doc/district-council/wyre,29/06/2023,People and Places,Planning and Development Servs,132C,Engie Power Limited,14/06/2023,PE150224,55.42,0.00,"1640000947136A01/05/23-31/05/23Kiosk 1, Fleetwood Market, Adelaide St, Fleetwood, FY7 6AB",Electricity
Wyre Council,http://opendatacommunities.org/doc/district-council/wyre,29/06/2023,People and Places,Planning and Development Servs,132C,Engie Power Limited,14/06/2023,PE150220,76.07,0.00,"01/05/23-31/05/23Kiosk 5, Fleetwood Market, Adelaide St, Fleetwood, FY7 6AB",Electricity
Wyre Council,http://opendatacommunities.org/doc/district-council/wyre,29/06/2023,People and Places,Cultural and Related Services,132A,Engie Power Limited,14/06/2023,PE150258,103.87,0.00,"01/05/23-31/05/23Feeder Pillar, Hawthorne Park, Hawthorne Rd, Thornton Cleveleys, FY5 5DH",Electricity
Wyre Council,http://opendatacommunities.org/doc/district-council/wyre,29/06/2023,People and Places,Cultural and Related Services,132A,Engie Power Limited,14/06/2023,PE150254,73.53,0.00,"01/05/23-31/05/23Tourist Information Office, The Esplanade, Fleetwood, FY7 6DL",Electricity
Wyre Council,http://opendatacommunities.org/doc/district-council/wyre,29/06/2023,People and Places,Environmental Services,132B,Engie Power Limited,14/06/2023,PE150243,135.10,0.00,"01/05/23-31/05/23Public Conveniences, Barton Square, Knott End on Sea, Lancashire, FY6 0AG",Electricity
Wyre Council,http://opendatacommunities.org/doc/district-council/wyre,29/06/2023,People and Places,Environmental Services,132B,Engie Power Limited,14/06/2023,PE150242,181.17,0.00,"01/05/23-31/05/23PC, The Weind, Great Eccleston, PR3 0ZU",Electricity
Wyre Council,http://opendatacommunities.org/doc/district-council/wyre,29/06/2023,People and Places,Environmental Services,132B,Engie Power Limited,14/06/2023,PE150251,373.73,0.00,"1610004885487E01/05/23-31/05/23PC, Preston St, Fleetwood, FY7 6JA",Electricity
Wyre Council,http://opendatacommunities.org/doc/district-council/wyre,29/06/2023,People and Places,Environmental Services,132B,Engie Power Limited,14/06/2023,PE150245,257.74,0.00,"1610023251891E01/05/23-31/05/23PC, Gubberford Lane, Scorton, PR3 1BL",Electricity
Wyre Council,http://opendatacommunities.org/doc/district-council/wyre,29/06/2023,People and Places,Environmental Services,132B,Engie Power Limited,14/06/2023,PE150244,203.73,0.00,"01/05/23-31/05/23PC, Smallwood Hey, Pilling, Preston, PR3 6HJ",Electricity
Wyre Council,http://opendatacommunities.org/doc/district-council/wyre,29/06/2023,People and Places,Environmental Services,132B,Engie Power Limited,14/06/2023,PE150259,109.93,0.00,"01/05/23-31/05/23PC, Thornton Centre, Victoria Rd East, FY5 5DZ",Electricity
Wyre Council,http://opendatacommunities.org/doc/district-council/wyre,29/06/2023,People and Places,Environmental Services,132B,Engie Power Limited,14/06/2023,PE150262,130.69,0.00,"01/05/23-31/05/23Public Conveniences, Cherestanc Square, Garstang, Lancashire, PR3 1EF",Electricity
Wyre Council,http://opendatacommunities.org/doc/district-council/wyre,29/06/2023,People and Places,Environmental Services,132B,Engie Power Limited,14/06/2023,PE150261,239.40,0.00,"01/05/23-31/05/23PC, Wyreside, Knott End on Sea, FY6 0AA",Electricity
Wyre Council,http://opendatacommunities.org/doc/district-council/wyre,29/06/2023,People and Places,Environmental Services,132B,Engie Power Limited,14/06/2023,PE150260,198.08,0.00,"01/05/23-31/05/23PC, rear of Tesco, Rough Lea Rd, Thornton Cleveleys, FY5 1BW",Electricity
Wyre Council,http://opendatacommunities.org/doc/district-council/wyre,29/06/2023,People and Places,Cultural and Related Services,132A,Engie Power Limited,14/06/2023,PE150223,80.98,0.00,"01/05/23-31/05/24PC, River Road, Thornton Cleveleys, FY5 5LR",Electricity
Wyre Council,http://opendatacommunities.org/doc/district-council/wyre,29/06/2023,People and Places,Environmental Services,132B,Engie Power Limited,14/06/2023,PE150249,194.20,0.00,"01/05/23-31/05/23Springfield Pumping Station 17, Fleeetwood Road, Fleetwood, Lancashire, FY7 8TW",Electricity
Wyre Council,http://opendatacommunities.org/doc/district-council/wyre,29/06/2023,People and Places,Environmental Services,132B,Engie Power Limited,14/06/2023,PE150239,501.15,0.00,"01/05/23-31/05/23Council Depot, Chatsworth Day Centre, Chatsworth Ave, Fleetwood, FY7 8AP",Electricity
Wyre Council,http://opendatacommunities.org/doc/district-council/wyre,29/06/2023,People and Places,Environmental Services,132B,Engie Power Limited,14/06/2023,PE150234,130.00,0.00,"01/05/23-31/05/23PC, Beach Rd, Fleetwood, FY7 8PH",Electricity
Wyre Council,http://opendatacommunities.org/doc/district-council/wyre,29/06/2023,People and Places,Environmental Services,132B,Engie Power Limited,14/06/2023,PE150237,207.75,0.00,"01/05/23-31/05/23Boating Lake, Laidleys Walk, Fleetwood, FY7 7HU",Electricity
Wyre Council,http://opendatacommunities.org/doc/district-council/wyre,29/06/2023,People and Places,Environmental Services,132B,Engie Power Limited,14/06/2023,PE150227,154.58,0.00,"01/05/23-31/05/23PC, Bold St, Fleetwood, FY7 6BW",Electricity
Wyre Council,http://opendatacommunities.org/doc/district-council/wyre,29/06/2023,People and Places,Environmental Services,132B,Engie Power Limited,14/06/2023,PE150221,119.87,0.00,"01/05/23-31/05/23PC, River Road, Thornton Cleveleys, FY5 5LR",Electricity
Wyre Council,http://opendatacommunities.org/doc/district-council/wyre,29/06/2023,People and Places,Cultural and Related Services,132A,Engie Power Limited,14/06/2023,PE150238,297.94,0.00,"01/05/23-31/05/23The Windmill, Fleetwood Road North, Thornton Cleveleys, FY5 4BP",Electricity
Wyre Council,http://opendatacommunities.org/doc/district-council/wyre,29/06/2023,Resources,Cultural and Related Services,132A,Engie Power Limited,14/06/2023,RS150292,110.07,0.00,"01/05/23-31/05/23The Windmill, Fleetwood Rd North, Thornton Cleveleys, FY5 4BP",Electricity
Wyre Council,http://opendatacommunities.org/doc/district-council/wyre,29/06/2023,People and Places,Environmental Services,132B,Engie Power Limited,14/06/2023,PE150241,299.06,0.00,"01/05/23-31/05/23Fleetwood Corp Cemetery, Beach Rd, Fleetwood, FY7 8PH",Electricity
Wyre Council,http://opendatacommunities.org/doc/district-council/wyre,29/06/2023,People and Places,Environmental Services,132B,Engie Power Limited,14/06/2023,PE150240,92.70,0.00,"01/05/23-31/05/23Fleetwood Corp Cemetery, Beach Rd, Fleetwood, FY7 8PH",Electricity
Wyre Council,http://opendatacommunities.org/doc/district-council/wyre,29/06/2023,Finance,Central Services to the Public,131C,,29/06/2023,WPST00111055,800.00,0.00,Energy Bills Support Scheme Alternative,Energy Rebate Payment
Wyre Council,http://opendatacommunities.org/doc/district-council/wyre,29/06/2023,Finance,Central Services to the Public,131C,,27/06/2023,WPST00110888,800.00,0.00,Energy Bills Support Scheme Alternative,Energy Rebate Payment
Wyre Council,http://opendatacommunities.org/doc/district-council/wyre,29/06/2023,Finance,Central Services to the Public,131C,,13/06/2023,WPST00109644,14400.00,0.00,Energy bills support schm alt funding,Energy Rebate Payment
Wyre Council,http://opendatacommunities.org/doc/district-council/wyre,29/06/2023,Finance,Central Services to the Public,131C,,13/06/2023,WPST00109643,10000.00,0.00,Energy bills support schm alt funding,Energy Rebate Payment
Wyre Council,http://opendatacommunities.org/doc/district-council/wyre,29/06/2023,Finance,Central Services to the Public,131C,,20/06/2023,WPST00110241,4800.00,0.00,Energy bills upp schm alt funding,Energy Rebate Payment
Wyre Council,http://opendatacommunities.org/doc/district-council/wyre,29/06/2023,Finance,Central Services to the Public,131C,,20/06/2023,WPST00110240,3000.00,0.00,Energy bills supp schm alt funding,Energy Rebate Payment
Wyre Council,http://opendatacommunities.org/doc/district-council/wyre,29/06/2023,Resources,Housing General Fund,134A,Jacobs Enforcement Agency,12/06/2023,RS150203,395.96,0.00,15% commission on 2639.72 recovered,Enforcement Agents` Fees
Wyre Council,http://opendatacommunities.org/doc/district-council/wyre,29/06/2023,Resources,Housing General Fund,134A,Jacobs Enforcement Agency,20/06/2023,RS150464,291.39,0.00,"15.00% commission on 1,942.57 recovered",Enforcement Agents` Fees
Wyre Council,http://opendatacommunities.org/doc/district-council/wyre,29/06/2023,People and Places,Support Services,135B,J W Shaw Amusements,28/06/2023,PE150765,1000.00,0.00,"Payment for the return of the bond/deposit for the funfair at Thornton Gala, following clear ground inspection",Event Hospitality
Wyre Council,http://opendatacommunities.org/doc/district-council/wyre,29/06/2023,People and Places,Planning and Development Servs,132C,Gag Reflex ltd,19/06/2023,PE150519,1222.50,0.00,Entertainment for the WBA 2023 - Steve Royle,Event Hospitality
Wyre Council,http://opendatacommunities.org/doc/district-council/wyre,29/06/2023,People and Places,Cultural and Related Services,132A,Fools Paradise LTD,21/06/2023,PE150438,1360.00,0.00,"For the hire of Piff Paff`s Seed show x 2 shows at noon and 2pm at Wyre Country Park, Stannah on Saturday 10th June 2023Fee including stay 1,360Artist information to follow from Chris Wyatt 07954 692505 chris.wyatt@wyre.gov.uk",Exhibitions and Events
Wyre Council,http://opendatacommunities.org/doc/district-council/wyre,29/06/2023,Resources,Housing General Fund,134A,KPMG LLP,27/06/2023,RS150737,5489.50,0.00,2021/22 HB Audit Base Fee 50% Balance Due,External Audit Fees
Wyre Council,http://opendatacommunities.org/doc/district-council/wyre,29/06/2023,Resources,Housing General Fund,134A,KPMG LLP,27/06/2023,RS150737,6930.00,0.00,2021/22 HB Audit Initial Workbooks,External Audit Fees
Wyre Council,http://opendatacommunities.org/doc/district-council/wyre,29/06/2023,Resources,Housing General Fund,134A,KPMG LLP,27/06/2023,RS150737,5250.00,0.00,2021/22 HB Audit 40 plus Workbooks,External Audit Fees
Wyre Council,http://opendatacommunities.org/doc/district-council/wyre,29/06/2023,People and Places,Cultural and Related Services,132A,Play Inclusion Project,13/06/2023,PE150210,693.96,0.00,Saturday SEND club delivery at YMCA Fleetwood (twice monthly).,External Coaching
Wyre Council,http://opendatacommunities.org/doc/district-council/wyre,29/06/2023,People and Places,Cultural and Related Services,132A,Play Inclusion Project,14/06/2023,PE150398,693.96,0.00,Saturday SEND club delivery at YMCA Fleetwood (twice monthly).,External Coaching
Wyre Council,http://opendatacommunities.org/doc/district-council/wyre,29/06/2023,People and Places,Cultural and Related Services,132A,Fleetwood Town Community Trust,06/06/2023,PE150036,4644.10,0.00,Holiday and Food Club Easter 2023 - Fleetwood Town Football Club Community TrustPLACES110 places x 4 days = 440 x 12.50 per head = 5500.00FOOD440 x 5 = 2200 TOTAL = 7700,External Coaching
Wyre Council,http://opendatacommunities.org/doc/district-council/wyre,29/06/2023,People and Places,Cultural and Related Services,132A,Fleetwood Town Community Trust,21/06/2023,PE150609,7390.00,0.00,"TRYSPORT contract delivery Quarter 3, April - June 2023",External Coaching
Wyre Council,http://opendatacommunities.org/doc/district-council/wyre,29/06/2023,People and Places,Cultural and Related Services,132A,Lords Deli,21/06/2023,PE150498,-2015.00,0.00,Internal credit note raised due to incorrect vat on original invoice - holiday and food club easter food order - Lords dlei absolute futbol Fleetwood/Thornton YMCA,External Coaching
Wyre Council,http://opendatacommunities.org/doc/district-council/wyre,29/06/2023,People and Places,Cultural and Related Services,132A,Absolute Futbol Ltd,08/06/2023,PE150144,-15645.00,0.00,Holiday & Food Club Easter 2023 - Absolute Futbol Manor Beach PLACES 50 x 4 = 200 x 21 = 4200 FOOD 5 x 200 = 1000 Manor Beach Total = 5200.00 Over Wyre/Thornton PLACES 105 x 4 = 420 x 21 = 8820 FOOD 5.00 x 420 = 2100.00 Over Wyre/,External Coaching
Wyre Council,http://opendatacommunities.org/doc/district-council/wyre,29/06/2023,People and Places,Cultural and Related Services,132A,Greg Robinson Countryside Services,29/06/2023,PE150800,1680.00,0.00,2023 seasonal mowing Brock and Delph,External Contractor
Wyre Council,http://opendatacommunities.org/doc/district-council/wyre,29/06/2023,People and Places,Cultural and Related Services,132A,Non Slip Shop Ltd,09/06/2023,PE150063,-1897.80,0.00,400 white grip strips,External Contractor
Wyre Council,http://opendatacommunities.org/doc/district-council/wyre,29/06/2023,People and Places,Environmental Services,132B,NWIFCA      N W Inshore Fisheries and Conservation,15/06/2023,PE150293,623.00,0.00,Shellfish Collection  23/24,Food and Drug Etc Samples
Wyre Council,http://opendatacommunities.org/doc/district-council/wyre,29/06/2023,People and Places,Environmental Services,132B,NWIFCA      N W Inshore Fisheries and Conservation,12/06/2023,PE149720,623.00,0.00,Shellfish Collection  23/24,Food and Drug Etc Samples
Wyre Council,http://opendatacommunities.org/doc/district-council/wyre,29/06/2023,People and Places,Support Services,135B,Allstar Business Solutions LTD,21/06/2023,PE149962,456.46,0.00,Fuel to 30/05/23,Fuel
Wyre Council,http://opendatacommunities.org/doc/district-council/wyre,29/06/2023,People and Places,Support Services,135B,Allstar Business Solutions LTD,16/06/2023,PE150468,148.94,0.00,Fuel to 13/06/23,Fuel
Wyre Council,http://opendatacommunities.org/doc/district-council/wyre,29/06/2023,People and Places,Support Services,135B,Allstar Business Solutions LTD,16/06/2023,PE150468,176.36,0.00,Fuel to 13/06/23,Fuel
Wyre Council,http://opendatacommunities.org/doc/district-council/wyre,29/06/2023,People and Places,Support Services,135B,Allstar Business Solutions LTD,21/06/2023,PE149962,356.71,0.00,Fuel to 30/05/23,Fuel
Wyre Council,http://opendatacommunities.org/doc/district-council/wyre,29/06/2023,Resources,Cultural and Related Services,132A,Preston City Council,26/06/2023,RS150681,74.93,0.00,2 x GWF Generic pull up banners standard (free - credit note from Preston) 1 x GWF Generic pull up banner wide 1200mm,Garstang Walking Festival
Wyre Council,http://opendatacommunities.org/doc/district-council/wyre,29/06/2023,People and Places,Cultural and Related Services,132A,British Gas,06/06/2023,PE149880,653.24,0.00,"603764149 - Victoria Road East, Thornton  Little Theatre 07/04/23 to 06/05/23",Gas
Wyre Council,http://opendatacommunities.org/doc/district-council/wyre,29/06/2023,People and Places,Planning and Development Servs,132C,British Gas,06/06/2023,PE149880,1402.86,0.00,"603764162 - Adelaide Street, Wyre  Borough Council 07/04/23 to 27/04/23",Gas
Wyre Council,http://opendatacommunities.org/doc/district-council/wyre,29/06/2023,People and Places,Support Services,135B,British Gas,06/06/2023,PE149880,3429.28,0.00,"603764151 - Wyre Borough Council,  Wyre Civic Centre 07/04/23 to 28/04/23",Gas
Wyre Council,http://opendatacommunities.org/doc/district-council/wyre,29/06/2023,People and Places,Planning and Development Servs,132C,British Gas,06/06/2023,PE149880,78.46,0.00,"603764150 - Copse Road, Copse Road  Depot 07/04/23 to 06/05/23",Gas
Wyre Council,http://opendatacommunities.org/doc/district-council/wyre,29/06/2023,People and Places,Cultural and Related Services,132A,Tina Dempsey,05/06/2023,PE149990,400.00,0.00,For the contribution of art work and community engagement towards the production of the Little Book Of Hope - Inspired Minds arts and health project.400 to be invoiced between April and June 2023 on completion of the engagement work within communit,Healthier Fleetwood Events & Activities
Wyre Council,http://opendatacommunities.org/doc/district-council/wyre,29/06/2023,People and Places,Cultural and Related Services,132A,Nathan Parker,12/06/2023,PE150215,500.00,0.00,For the commission of new poetry and community engagement towards contributing to the Little Book of Hope Project -Inspired Minds arts and health project 4.1.2 - 500 to be invoiced between April and June 2023 on completion of the engagement work with,Healthier Fleetwood Events & Activities
Wyre Council,http://opendatacommunities.org/doc/district-council/wyre,29/06/2023,Resources,Support Services,135B,Konica Minolta Business Solutions UK LTD,06/06/2023,RS149728,1045.02,0.00,Copy and print charges Equipment   number: 26/02/2023-25/02/2024  1825856503   1825856487   1825843155   1825856493   1825856455   1825856489   1825856490   1825843157   1825856492   1825863267   1825856491   1825856452,Hire of Tools or Equipment
Wyre Council,http://opendatacommunities.org/doc/district-council/wyre,29/06/2023,Resources,Support Services,135B,Konica Minolta Business Solutions UK LTD,06/06/2023,RS149816,1510.65,0.00,"Bizhub C300i - Equipment numbers   1825856503,1825856487, 1825843155,   1825856493, 1825856455, 1825856489,   1825856490,1825843157, 1825856492,   1825863267, 1825858491, 1825856452,   1900083122, 190083356, 190083035   Contract number 420746628 - 29th Ma",Hire of Tools or Equipment
Wyre Council,http://opendatacommunities.org/doc/district-council/wyre,29/06/2023,Resources,Support Services,135B,Konica Minolta Business Solutions UK LTD,06/06/2023,RS149812,644.58,0.00,Copy and Print charges 1st March 2023-28th February 2024 1823533444 - Bizhub PRO 1100 1823440258 - Bizhub C458,Hire of Tools or Equipment
Wyre Council,http://opendatacommunities.org/doc/district-council/wyre,29/06/2023,Resources,Support Services,135B,Konica Minolta Business Solutions UK LTD,14/06/2023,RS150174,723.45,0.00, 1823533444 Bizhub pro 1100 1823440258 Bizhub C458  1-6-23-31/5/24,Hire of Tools or Equipment
Wyre Council,http://opendatacommunities.org/doc/district-council/wyre,29/06/2023,People and Places,Support Services,135B,M J Wilkinson,08/06/2023,PE150142,50.00,0.00,Roller19/4/23 - 19/4/23 @ 50.00,Hire of Tools or Equipment
Wyre Council,http://opendatacommunities.org/doc/district-council/wyre,29/06/2023,People and Places,Support Services,135B,M J Wilkinson,08/06/2023,PE150142,52.50,0.00, 30 litres of Diesel @ 1.75,Hire of Tools or Equipment
Wyre Council,http://opendatacommunities.org/doc/district-council/wyre,29/06/2023,People and Places,Support Services,135B,M J Wilkinson,08/06/2023,PE150142,25.00,0.00,Delivery charge,Hire of Tools or Equipment
Wyre Council,http://opendatacommunities.org/doc/district-council/wyre,29/06/2023,People and Places,Support Services,135B,M J Wilkinson,08/06/2023,PE150142,25.00,0.00,Collection charge,Hire of Tools or Equipment
Wyre Council,http://opendatacommunities.org/doc/district-council/wyre,29/06/2023,People and Places,Environmental Services,132B,Poulton Pets LTD,19/06/2023,PE150473,1615.50,0.00,Provision of stray dog kennelling service 2023/24,Impounded Dogs Costs
Wyre Council,http://opendatacommunities.org/doc/district-council/wyre,29/06/2023,Resources,Support Services,135B,Blackpool Council,30/06/2023,RS150817,3000.00,0.00,"
Gigabit Internet Connection to Corpse Road Depot 01/04/23-31/03/24",Internet and Telephone Charges
Wyre Council,http://opendatacommunities.org/doc/district-council/wyre,29/06/2023,Resources,Cultural and Related Services,132A,Daisy Communications LTD,01/06/2023,RS149279,13.87,0.00,Calls and Service Charges to 30/04/23,Internet and Telephone Charges
Wyre Council,http://opendatacommunities.org/doc/district-council/wyre,29/06/2023,Resources,Cultural and Related Services,132A,Daisy Communications LTD,08/06/2023,RS149963,13.87,0.00,Calls and Service Charges to 31/05/23,Internet and Telephone Charges
Wyre Council,http://opendatacommunities.org/doc/district-council/wyre,29/06/2023,Resources,Cultural and Related Services,132A,Daisy Communications LTD,08/06/2023,RS149963,33.25,0.00,Calls and Service Charges to 31/05/23,Internet and Telephone Charges
Wyre Council,http://opendatacommunities.org/doc/district-council/wyre,29/06/2023,Resources,Cultural and Related Services,132A,Daisy Communications LTD,01/06/2023,RS149279,33.25,0.00,Calls and Service Charges to 30/04/23,Internet and Telephone Charges
Wyre Council,http://opendatacommunities.org/doc/district-council/wyre,29/06/2023,Resources,Corporate and Democratic Core,131A,Daisy Communications LTD,01/06/2023,RS149279,13.87,0.00,Calls and Service Charges to 30/04/23,Internet and Telephone Charges
Wyre Council,http://opendatacommunities.org/doc/district-council/wyre,29/06/2023,Resources,Corporate and Democratic Core,131A,Daisy Communications LTD,08/06/2023,RS149963,13.87,0.00,Calls and Service Charges to 31/05/23,Internet and Telephone Charges
Wyre Council,http://opendatacommunities.org/doc/district-council/wyre,29/06/2023,Resources,Support Services,135B,Daisy Communications LTD,01/06/2023,RS149279,19.39,0.00,Calls and Service Charges to 30/04/23,Internet and Telephone Charges
Wyre Council,http://opendatacommunities.org/doc/district-council/wyre,29/06/2023,Resources,Support Services,135B,Daisy Communications LTD,08/06/2023,RS149963,19.39,0.00,Calls and Service Charges to 31/05/23,Internet and Telephone Charges
Wyre Council,http://opendatacommunities.org/doc/district-council/wyre,29/06/2023,Resources,Support Services,135B,Daisy Communications LTD,08/06/2023,RS149963,80.86,0.00,Calls and Service Charges to 31/05/23,Internet and Telephone Charges
Wyre Council,http://opendatacommunities.org/doc/district-council/wyre,29/06/2023,Resources,Support Services,135B,Daisy Communications LTD,01/06/2023,RS149279,80.86,0.00,Calls and Service Charges to 30/04/23,Internet and Telephone Charges
Wyre Council,http://opendatacommunities.org/doc/district-council/wyre,29/06/2023,People and Places,Support Services,135B,8x8 UK Limited,05/06/2023,PE149950,251.00,0.00,Additional Local Number,Internet and Telephone Charges
Wyre Council,http://opendatacommunities.org/doc/district-council/wyre,29/06/2023,People and Places,Support Services,135B,8x8 UK Limited,05/06/2023,PE149950,1117.20,0.00,SVC: X Series - X1 UK Government,Internet and Telephone Charges
Wyre Council,http://opendatacommunities.org/doc/district-council/wyre,29/06/2023,People and Places,Support Services,135B,8x8 UK Limited,05/06/2023,PE149950,218.40,0.00,X Series - X2,Internet and Telephone Charges
Wyre Council,http://opendatacommunities.org/doc/district-council/wyre,29/06/2023,People and Places,Support Services,135B,8x8 UK Limited,05/06/2023,PE149950,580.00,0.00,X Series - X4,Internet and Telephone Charges
Wyre Council,http://opendatacommunities.org/doc/district-council/wyre,29/06/2023,People and Places,Cultural and Related Services,132A,Northern Citrus Products LTD,01/06/2023,PE149928,960.50,0.00,Marine Hall kiosk stock.,Kiosk stock
Wyre Council,http://opendatacommunities.org/doc/district-council/wyre,29/06/2023,Resources,Support Services,135B,Forbes Solicitors,14/06/2023,RS150388,787.50,0.00,Legal Fees,Legal Fees
Wyre Council,http://opendatacommunities.org/doc/district-council/wyre,29/06/2023,People and Places,Planning and Development Servs,132C,COWLEY FIRE,19/06/2023,PE150183,235.76,0.00,"Van Fleet, Council Yard, Fleetwood: service fire equipment",Maintenance of Tools or Equipment
Wyre Council,http://opendatacommunities.org/doc/district-council/wyre,29/06/2023,People and Places,Highways,133B,HMA Tree Care,28/06/2023,PE150762,120.00,0.00,"Quote No: 317Site Address highway trees, ascot road , Thornton Cleveleys , Lancashire , FY5 5HNT13 (additional works ) CherryFell to ground level and remove all arisings including stump to below ground level.Removal due to severe decay identif",Maintenance of Trees and Shrubs
Wyre Council,http://opendatacommunities.org/doc/district-council/wyre,29/06/2023,People and Places,Housing General Fund,134A,St Gobain Building Distribution LTD,13/06/2023,PE150216,118.76,0.00,Invoice 00124138 - tools,Materials and Consumables
Wyre Council,http://opendatacommunities.org/doc/district-council/wyre,29/06/2023,Resources,Housing General Fund,134A,St Gobain Building Distribution LTD,20/06/2023,RS150537,117.42,0.00,Payment of invoice 0963/00124523,Materials and Consumables
Wyre Council,http://opendatacommunities.org/doc/district-council/wyre,29/06/2023,Resources,Housing General Fund,134A,St Gobain Building Distribution LTD,07/06/2023,RS150095,300.72,0.00,Payment of invoice  - NO 0963/00123714,Materials and Consumables
Wyre Council,http://opendatacommunities.org/doc/district-council/wyre,29/06/2023,People and Places,Support Services,135B,EAS Electrical Mechanical,09/06/2023,RS150165,237.00,0.00,"Attended site to see what toilets seats were required for the type of pan, delivered x6 sta-tite toilet seat to caretakers office",Materials and Consumables
Wyre Council,http://opendatacommunities.org/doc/district-council/wyre,29/06/2023,People and Places,Support Services,135B,EK Motors Factors LTD,16/06/2023,PE150035,77.60,0.00,Bulbs,Materials and Consumables
Wyre Council,http://opendatacommunities.org/doc/district-council/wyre,29/06/2023,People and Places,Support Services,135B,EK Motors Factors LTD,01/06/2023,PE149906,14.44,0.00,Parts,Materials and Consumables
Wyre Council,http://opendatacommunities.org/doc/district-council/wyre,29/06/2023,People and Places,Support Services,135B,EK Motors Factors LTD,01/06/2023,PE149907,42.08,0.00,Parts,Materials and Consumables
Wyre Council,http://opendatacommunities.org/doc/district-council/wyre,29/06/2023,People and Places,Environmental Services,132B,Glasdon UK LTD,06/06/2023,PE149699,556.26,0.00,6 no Blanking cap  Ken White,Materials and Consumables
Wyre Council,http://opendatacommunities.org/doc/district-council/wyre,29/06/2023,People and Places,Environmental Services,132B,Glasdon UK LTD,01/06/2023,PE149871,456.30,0.00,Phoenix seat Product code 133/1500 Ken White,Materials and Consumables
Wyre Council,http://opendatacommunities.org/doc/district-council/wyre,29/06/2023,People and Places,Environmental Services,132B,Glasdon UK LTD,22/06/2023,PE150632,985.28,0.00,"Supply and delivery of quotation EQ70087277, 8/6/23  Delivery to Wyre Council, Copse Road, Fleetwood, FY7 6RP",Materials and Consumables
Wyre Council,http://opendatacommunities.org/doc/district-council/wyre,29/06/2023,People and Places,Environmental Services,132B, Travis Perkins Trading CO LTD,16/06/2023,PE149647,506.91,0.00,Bitumen,Materials and Consumables
Wyre Council,http://opendatacommunities.org/doc/district-council/wyre,29/06/2023,Resources,Housing General Fund,134A,Huck Properties LTD,29/06/2023,RS150794,320.00,0.00,"6 Greenacres , WC Unit",Materials and Consumables
Wyre Council,http://opendatacommunities.org/doc/district-council/wyre,29/06/2023,People and Places,Support Services,135B,Agrovista UK LTD,07/06/2023,PE150076,592.02,0.00,Supply and deliver as per your quotation 9 x Sportnem H (chafers) @ 65.78 per 500m2 pack,Materials and Consumables
Wyre Council,http://opendatacommunities.org/doc/district-council/wyre,29/06/2023,People and Places,Support Services,135B,Agrovista UK LTD,06/06/2023,PE149952,124.50,0.00,2 x Icade @ 62.25 / 1L,Materials and Consumables
Wyre Council,http://opendatacommunities.org/doc/district-council/wyre,29/06/2023,People and Places,Support Services,135B,Agrovista UK LTD,06/06/2023,PE149952,294.50,0.00,"5 x Katana @ 58.90 / 50gm  Delivery to Wyre Council, Copse Road Depot, Copse Road, Fleetwood, FY7 6RP",Materials and Consumables
Wyre Council,http://opendatacommunities.org/doc/district-council/wyre,29/06/2023,People and Places,Support Services,135B,Aitch Tools & Fasteners LTD,09/06/2023,PE150180,214.56,0.00,Monthly order May 2023Materials Playgrounds 107.28Memorial Park 107.28Engineers 802.20,Materials and Consumables
Wyre Council,http://opendatacommunities.org/doc/district-council/wyre,29/06/2023,People and Places,Environmental Services,132B,Aitch Tools & Fasteners LTD,09/06/2023,PE150180,802.20,0.00,Monthly order May 2023Materials Playgrounds 107.28Memorial Park 107.28Engineers 802.20,Materials and Consumables
Wyre Council,http://opendatacommunities.org/doc/district-council/wyre,29/06/2023,People and Places,Support Services,135B,Walkers Nurseries & Plant Centre,27/06/2023,PE150739,5664.97,0.00,"Supply Summer Bedding 2023 as per your quotation   Delivery to Wyre Council, Copse Road Depot, Copse Road, Fleetwood, Lancashire, FY7 6RP  Agreed and authorised by Jane Ferguson - dates to be confirmed with Jane",Materials and Consumables
Wyre Council,http://opendatacommunities.org/doc/district-council/wyre,29/06/2023,People and Places,Support Services,135B,Walkers Nurseries & Plant Centre,27/06/2023,PE150739,126.00,0.00,additional order By jane furguson to be delivered with the summer bedding ( PEO0025599 ) of 600 French yellow marigolds,Materials and Consumables
Wyre Council,http://opendatacommunities.org/doc/district-council/wyre,29/06/2023,People and Places,Support Services,135B,RTS MUNI LTD,09/06/2023,PE149825,50.00,0.00,Loler Inspection,Materials and Consumables
Wyre Council,http://opendatacommunities.org/doc/district-council/wyre,29/06/2023,People and Places,Support Services,135B,RTS MUNI LTD,09/06/2023,PE149825,86.00,0.00,Travel,Materials and Consumables
Wyre Council,http://opendatacommunities.org/doc/district-council/wyre,29/06/2023,People and Places,Support Services,135B,RTS MUNI LTD,09/06/2023,PE149825,38.50,0.00,Mileage,Materials and Consumables
Wyre Council,http://opendatacommunities.org/doc/district-council/wyre,29/06/2023,People and Places,Cultural and Related Services,132A,HUWS GRAY LTD,19/06/2023,PE150281,213.48,0.00,various  Timber for caf� fence Screws Staple gun and staples,Materials and Consumables
Wyre Council,http://opendatacommunities.org/doc/district-council/wyre,29/06/2023,People and Places,Cultural and Related Services,132A,HUWS GRAY LTD,26/06/2023,PE150720,38.44,0.00,rails for cafe 2 by 4 x4,Materials and Consumables
Wyre Council,http://opendatacommunities.org/doc/district-council/wyre,29/06/2023,People and Places,Cultural and Related Services,132A,HUWS GRAY LTD,26/06/2023,PE150719,79.36,0.00,posts for brock,Materials and Consumables
Wyre Council,http://opendatacommunities.org/doc/district-council/wyre,29/06/2023,People and Places,Support Services,135B,HUWS GRAY LTD,09/06/2023,PE149883,124.64,0.00,Grip decking Keith Urwin,Materials and Consumables
Wyre Council,http://opendatacommunities.org/doc/district-council/wyre,29/06/2023,People and Places,Environmental Services,132B,HUWS GRAY LTD,23/06/2023,PE150665,168.52,0.00,2023/2024 Direct Works/ Sea Wall Engineer purchases for works around the Borough,Materials and Consumables
Wyre Council,http://opendatacommunities.org/doc/district-council/wyre,29/06/2023,People and Places,Environmental Services,132B,HUWS GRAY LTD,19/06/2023,PE150518,76.00,0.00,2023/2024 Direct Works/ Sea Wall Engineer purchases for works around the Borough,Materials and Consumables
Wyre Council,http://opendatacommunities.org/doc/district-council/wyre,29/06/2023,People and Places,Environmental Services,132B,HUWS GRAY LTD,09/06/2023,PE150061,87.45,0.00,2023/2024 Direct Works/ Sea Wall Engineer purchases for works around the Borough,Materials and Consumables
Wyre Council,http://opendatacommunities.org/doc/district-council/wyre,29/06/2023,Resources,Housing General Fund,134A,HUWS GRAY LTD,07/06/2023,RS150096,107.18,0.00,Payment of invoice - NO IE481493,Materials and Consumables
Wyre Council,http://opendatacommunities.org/doc/district-council/wyre,29/06/2023,People and Places,Cultural and Related Services,132A,Amazon Business,19/06/2023,PE150069,259.02,0.00,"display panels , gaffer tape , Velcro , for countryside rangers - the big green event",Materials and Consumables
Wyre Council,http://opendatacommunities.org/doc/district-council/wyre,29/06/2023,People and Places,Cultural and Related Services,132A,Amazon Business,21/06/2023,PE150547,81.36,0.00,"display panels , gaffer tape , Velcro , for countryside rangers - the big green event",Materials and Consumables
Wyre Council,http://opendatacommunities.org/doc/district-council/wyre,29/06/2023,People and Places,Support Services,135B,Amazon Business,19/06/2023,PE150500,5.82,0.00,Remote Copse Road Depot,Materials and Consumables
Wyre Council,http://opendatacommunities.org/doc/district-council/wyre,29/06/2023,Resources,Support Services,135B,Amazon Business,19/06/2023,RS150385,6.66,0.00,"Black Electrical Tape 6 Pcs  19 mm x 20 m Vinyl PVC Black Insulation Tape, Strong Adhesive, Waterproof Electric Tape for Masking, Insulating and Repair Loose or Broken Wires, DIY Projects.",Materials and Consumables
Wyre Council,http://opendatacommunities.org/doc/district-council/wyre,29/06/2023,Resources,Support Services,135B,Amazon Business,19/06/2023,RS150512,4.99,0.00,"Clay Roberts Microfibre Cleaning Cloths, 40cm x 30cm - Pack of 5, Machine Washable, Polishing, Waxing & Dusting Cloth, Lint-Free, Scratch-Free.",Materials and Consumables
Wyre Council,http://opendatacommunities.org/doc/district-council/wyre,29/06/2023,People and Places,Cultural and Related Services,132A,Non Slip Shop Ltd,09/06/2023,PE150064,-1897.80,0.00,400 white non slip grip strips,Materials and Consumables
Wyre Council,http://opendatacommunities.org/doc/district-council/wyre,29/06/2023,Resources,Housing General Fund,134A,Huck Properties LTD,29/06/2023,RS150799,780.00,0.00,REDACT,Minor Adaptations
Wyre Council,http://opendatacommunities.org/doc/district-council/wyre,29/06/2023,Resources,Housing General Fund,134A,Huck Properties LTD,21/06/2023,RS150607,460.00,0.00,REDACT,Minor Adaptations
Wyre Council,http://opendatacommunities.org/doc/district-council/wyre,29/06/2023,Resources,Housing General Fund,134A,Mobility Care Services,01/06/2023,RS149937,480.00,0.00,REDACT,Minor Adaptations
Wyre Council,http://opendatacommunities.org/doc/district-council/wyre,29/06/2023,Resources,Housing General Fund,134A,Mobility Care Services,01/06/2023,RS149936,133.00,0.00,REDACT,Minor Adaptations
Wyre Council,http://opendatacommunities.org/doc/district-council/wyre,29/06/2023,Resources,Housing General Fund,134A,Mobility Care Services,01/06/2023,RS149935,75.00,0.00,REDACT,Minor Adaptations
Wyre Council,http://opendatacommunities.org/doc/district-council/wyre,29/06/2023,Resources,Housing General Fund,134A,Mobility Care Services,01/06/2023,RS149934,255.00,0.00,REDACT,Minor Adaptations
Wyre Council,http://opendatacommunities.org/doc/district-council/wyre,29/06/2023,Resources,Housing General Fund,134A,Mobility Care Services,01/06/2023,RS149933,860.00,0.00,REDACT,Minor Adaptations
Wyre Council,http://opendatacommunities.org/doc/district-council/wyre,29/06/2023,Resources,Housing General Fund,134A,Mobility Care Services,21/06/2023,RS150553,920.00,0.00,REDACT,Minor Adaptations
Wyre Council,http://opendatacommunities.org/doc/district-council/wyre,29/06/2023,Resources,Housing General Fund,134A,Mobility Care Services,21/06/2023,RS150551,880.00,0.00,REDACT,Minor Adaptations
Wyre Council,http://opendatacommunities.org/doc/district-council/wyre,29/06/2023,Resources,Housing General Fund,134A,Mobility Care Services,21/06/2023,RS150554,900.00,0.00,REDACT,Minor Adaptations
Wyre Council,http://opendatacommunities.org/doc/district-council/wyre,29/06/2023,People and Places,Housing General Fund,134A,J A DICKENS LIMITED,02/06/2023,PE149975,147.00,0.00,REDACT,Minor Adaptations
Wyre Council,http://opendatacommunities.org/doc/district-council/wyre,29/06/2023,People and Places,Housing General Fund,134A,J A DICKENS LIMITED,02/06/2023,PE149975,140.00,0.00,REDACT,Minor Adaptations
Wyre Council,http://opendatacommunities.org/doc/district-council/wyre,29/06/2023,People and Places,Housing General Fund,134A,J A DICKENS LIMITED,02/06/2023,PE149976,140.00,0.00,REDACT,Minor Adaptations
Wyre Council,http://opendatacommunities.org/doc/district-council/wyre,29/06/2023,People and Places,Housing General Fund,134A,J A DICKENS LIMITED,02/06/2023,PE149976,168.00,0.00,REDACT,Minor Adaptations
Wyre Council,http://opendatacommunities.org/doc/district-council/wyre,29/06/2023,People and Places,Housing General Fund,134A,J A DICKENS LIMITED,02/06/2023,PE149977,80.00,0.00,REDACT,Minor Adaptations
Wyre Council,http://opendatacommunities.org/doc/district-council/wyre,29/06/2023,People and Places,Housing General Fund,134A,J A DICKENS LIMITED,02/06/2023,PE149977,74.00,0.00,REDACT,Minor Adaptations
Wyre Council,http://opendatacommunities.org/doc/district-council/wyre,29/06/2023,People and Places,Housing General Fund,134A,J A DICKENS LIMITED,09/06/2023,PE150176,400.00,0.00,REDACT,Minor Adaptations
Wyre Council,http://opendatacommunities.org/doc/district-council/wyre,29/06/2023,People and Places,Housing General Fund,134A,J A DICKENS LIMITED,09/06/2023,PE150176,400.00,0.00,REDACT,Minor Adaptations
Wyre Council,http://opendatacommunities.org/doc/district-council/wyre,29/06/2023,Resources,Housing General Fund,134A,J A DICKENS LIMITED,15/06/2023,RS149995,390.00,0.00,REDACT,Minor Adaptations
Wyre Council,http://opendatacommunities.org/doc/district-council/wyre,29/06/2023,Resources,Housing General Fund,134A,J A DICKENS LIMITED,15/06/2023,RS149995,400.00,0.00,REDACT,Minor Adaptations
Wyre Council,http://opendatacommunities.org/doc/district-council/wyre,29/06/2023,Resources,Housing General Fund,134A,J A DICKENS LIMITED,05/06/2023,RS150009,320.00,0.00,REDACT,Minor Adaptations
Wyre Council,http://opendatacommunities.org/doc/district-council/wyre,29/06/2023,Resources,Housing General Fund,134A,J A DICKENS LIMITED,05/06/2023,RS150009,440.00,0.00,REDACT,Minor Adaptations
Wyre Council,http://opendatacommunities.org/doc/district-council/wyre,29/06/2023,Resources,Housing General Fund,134A,J A DICKENS LIMITED,05/06/2023,RS149996,200.00,0.00,REDACT,Minor Adaptations
Wyre Council,http://opendatacommunities.org/doc/district-council/wyre,29/06/2023,Resources,Housing General Fund,134A,J A DICKENS LIMITED,05/06/2023,RS149996,241.00,0.00,REDACT,Minor Adaptations
Wyre Council,http://opendatacommunities.org/doc/district-council/wyre,29/06/2023,Resources,Housing General Fund,134A,J A DICKENS LIMITED,05/06/2023,RS149986,120.00,0.00,REDACT,Minor Adaptations
Wyre Council,http://opendatacommunities.org/doc/district-council/wyre,29/06/2023,Resources,Housing General Fund,134A,J A DICKENS LIMITED,05/06/2023,RS149986,167.00,0.00,REDACT,Minor Adaptations
Wyre Council,http://opendatacommunities.org/doc/district-council/wyre,29/06/2023,Resources,Housing General Fund,134A,J A DICKENS LIMITED,05/06/2023,RS149987,80.00,0.00,REDACT,Minor Adaptations
Wyre Council,http://opendatacommunities.org/doc/district-council/wyre,29/06/2023,Resources,Housing General Fund,134A,J A DICKENS LIMITED,05/06/2023,RS149987,53.00,0.00,REDACT,Minor Adaptations
Wyre Council,http://opendatacommunities.org/doc/district-council/wyre,29/06/2023,Resources,Housing General Fund,134A,J A DICKENS LIMITED,05/06/2023,RS149984,200.00,0.00,REDACT,Minor Adaptations
Wyre Council,http://opendatacommunities.org/doc/district-council/wyre,29/06/2023,Resources,Housing General Fund,134A,J A DICKENS LIMITED,05/06/2023,RS149984,290.00,0.00,REDACT,Minor Adaptations
Wyre Council,http://opendatacommunities.org/doc/district-council/wyre,29/06/2023,Resources,Housing General Fund,134A,J A DICKENS LIMITED,05/06/2023,RS149985,148.00,0.00,REDACT,Minor Adaptations
Wyre Council,http://opendatacommunities.org/doc/district-council/wyre,29/06/2023,Resources,Housing General Fund,134A,J A DICKENS LIMITED,05/06/2023,RS149985,160.00,0.00,REDACT,Minor Adaptations
Wyre Council,http://opendatacommunities.org/doc/district-council/wyre,29/06/2023,Resources,Housing General Fund,134A,J A DICKENS LIMITED,05/06/2023,RS150005,160.00,0.00,REDACT,Minor Adaptations
Wyre Council,http://opendatacommunities.org/doc/district-council/wyre,29/06/2023,Resources,Housing General Fund,134A,J A DICKENS LIMITED,05/06/2023,RS150005,148.00,0.00,REDACT,Minor Adaptations
Wyre Council,http://opendatacommunities.org/doc/district-council/wyre,29/06/2023,Resources,Housing General Fund,134A,J A DICKENS LIMITED,05/06/2023,RS150006,160.00,0.00,REDACT,Minor Adaptations
Wyre Council,http://opendatacommunities.org/doc/district-council/wyre,29/06/2023,Resources,Housing General Fund,134A,J A DICKENS LIMITED,05/06/2023,RS150006,148.00,0.00,REDACT,Minor Adaptations
Wyre Council,http://opendatacommunities.org/doc/district-council/wyre,29/06/2023,Resources,Housing General Fund,134A,J A DICKENS LIMITED,05/06/2023,RS150007,160.00,0.00,REDACT,Minor Adaptations
Wyre Council,http://opendatacommunities.org/doc/district-council/wyre,29/06/2023,Resources,Housing General Fund,134A,J A DICKENS LIMITED,05/06/2023,RS150007,148.00,0.00,REDACT,Minor Adaptations
Wyre Council,http://opendatacommunities.org/doc/district-council/wyre,29/06/2023,Resources,Housing General Fund,134A,J A DICKENS LIMITED,05/06/2023,RS150008,308.00,0.00,REDACT,Minor Adaptations
Wyre Council,http://opendatacommunities.org/doc/district-council/wyre,29/06/2023,Resources,Housing General Fund,134A,J A DICKENS LIMITED,05/06/2023,RS150008,133.00,0.00,REDACT,Minor Adaptations
Wyre Council,http://opendatacommunities.org/doc/district-council/wyre,29/06/2023,Resources,Housing General Fund,134A,J A DICKENS LIMITED,22/06/2023,RS150631,140.00,0.00,REDACT,Minor Adaptations
Wyre Council,http://opendatacommunities.org/doc/district-council/wyre,29/06/2023,Resources,Housing General Fund,134A,J A DICKENS LIMITED,22/06/2023,RS150631,168.00,0.00,REDACT,Minor Adaptations
Wyre Council,http://opendatacommunities.org/doc/district-council/wyre,29/06/2023,Resources,Housing General Fund,134A,J A DICKENS LIMITED,22/06/2023,RS150626,40.00,0.00,REDACT,Minor Adaptations
Wyre Council,http://opendatacommunities.org/doc/district-council/wyre,29/06/2023,Resources,Housing General Fund,134A,J A DICKENS LIMITED,22/06/2023,RS150626,114.00,0.00,REDACT,Minor Adaptations
Wyre Council,http://opendatacommunities.org/doc/district-council/wyre,29/06/2023,Resources,Housing General Fund,134A,J A DICKENS LIMITED,22/06/2023,RS150628,40.00,0.00,REDACT,Minor Adaptations
Wyre Council,http://opendatacommunities.org/doc/district-council/wyre,29/06/2023,Resources,Housing General Fund,134A,J A DICKENS LIMITED,22/06/2023,RS150628,114.00,0.00,REDACT,Minor Adaptations
Wyre Council,http://opendatacommunities.org/doc/district-council/wyre,29/06/2023,Resources,Housing General Fund,134A,J A DICKENS LIMITED,22/06/2023,RS150629,148.00,0.00,REDACT,Minor Adaptations
Wyre Council,http://opendatacommunities.org/doc/district-council/wyre,29/06/2023,Resources,Housing General Fund,134A,J A DICKENS LIMITED,22/06/2023,RS150629,160.00,0.00,REDACT,Minor Adaptations
Wyre Council,http://opendatacommunities.org/doc/district-council/wyre,29/06/2023,Resources,Housing General Fund,134A,J A DICKENS LIMITED,22/06/2023,RS150630,140.00,0.00,REDACT,Minor Adaptations
Wyre Council,http://opendatacommunities.org/doc/district-council/wyre,29/06/2023,Resources,Housing General Fund,134A,J A DICKENS LIMITED,22/06/2023,RS150630,168.00,0.00,REDACT,Minor Adaptations
Wyre Council,http://opendatacommunities.org/doc/district-council/wyre,29/06/2023,Resources,Housing General Fund,134A,J A DICKENS LIMITED,07/06/2023,RS150010,430.00,0.00,REDACT,Minor Adaptations
Wyre Council,http://opendatacommunities.org/doc/district-council/wyre,29/06/2023,Resources,Housing General Fund,134A,J A DICKENS LIMITED,07/06/2023,RS150010,440.00,0.00,REDACT,Minor Adaptations
Wyre Council,http://opendatacommunities.org/doc/district-council/wyre,29/06/2023,Resources,Housing General Fund,134A,J A DICKENS LIMITED,21/06/2023,RS150608,140.00,0.00,REDACT,Minor Adaptations
Wyre Council,http://opendatacommunities.org/doc/district-council/wyre,29/06/2023,Resources,Housing General Fund,134A,J A DICKENS LIMITED,21/06/2023,RS150608,168.00,0.00,REDACT,Minor Adaptations
Wyre Council,http://opendatacommunities.org/doc/district-council/wyre,29/06/2023,Resources,Housing General Fund,134A,J A DICKENS LIMITED,21/06/2023,RS150610,200.00,0.00,REDACT,Minor Adaptations
Wyre Council,http://opendatacommunities.org/doc/district-council/wyre,29/06/2023,Resources,Housing General Fund,134A,J A DICKENS LIMITED,21/06/2023,RS150610,262.00,0.00,REDACT,Minor Adaptations
Wyre Council,http://opendatacommunities.org/doc/district-council/wyre,29/06/2023,Resources,Housing General Fund,134A,J A DICKENS LIMITED,21/06/2023,RS150611,400.00,0.00,REDACT,Minor Adaptations
Wyre Council,http://opendatacommunities.org/doc/district-council/wyre,29/06/2023,Resources,Housing General Fund,134A,J A DICKENS LIMITED,21/06/2023,RS150611,490.00,0.00,REDACT,Minor Adaptations
Wyre Council,http://opendatacommunities.org/doc/district-council/wyre,29/06/2023,Resources,Housing General Fund,134A,J A DICKENS LIMITED,21/06/2023,RS150612,200.00,0.00,REDACT,Minor Adaptations
Wyre Council,http://opendatacommunities.org/doc/district-council/wyre,29/06/2023,Resources,Housing General Fund,134A,J A DICKENS LIMITED,21/06/2023,RS150612,241.00,0.00,REDACT,Minor Adaptations
Wyre Council,http://opendatacommunities.org/doc/district-council/wyre,29/06/2023,Resources,Housing General Fund,134A,J A DICKENS LIMITED,21/06/2023,RS150613,360.00,0.00,REDACT,Minor Adaptations
Wyre Council,http://opendatacommunities.org/doc/district-council/wyre,29/06/2023,Resources,Housing General Fund,134A,J A DICKENS LIMITED,21/06/2023,RS150613,380.00,0.00,REDACT,Minor Adaptations
Wyre Council,http://opendatacommunities.org/doc/district-council/wyre,29/06/2023,Resources,Housing General Fund,134A,J A DICKENS LIMITED,21/06/2023,RS150614,83.00,0.00,REDACT,Minor Adaptations
Wyre Council,http://opendatacommunities.org/doc/district-council/wyre,29/06/2023,Resources,Housing General Fund,134A,J A DICKENS LIMITED,21/06/2023,RS150614,50.00,0.00,REDACT,Minor Adaptations
Wyre Council,http://opendatacommunities.org/doc/district-council/wyre,29/06/2023,Resources,Housing General Fund,134A,J A DICKENS LIMITED,21/06/2023,RS150615,300.00,0.00,REDACT,Minor Adaptations
Wyre Council,http://opendatacommunities.org/doc/district-council/wyre,29/06/2023,Resources,Housing General Fund,134A,J A DICKENS LIMITED,21/06/2023,RS150615,440.00,0.00,REDACT,Minor Adaptations
Wyre Council,http://opendatacommunities.org/doc/district-council/wyre,29/06/2023,Resources,Housing General Fund,134A,J A DICKENS LIMITED,06/06/2023,RS150024,140.00,0.00,REDACT,Minor Adaptations
Wyre Council,http://opendatacommunities.org/doc/district-council/wyre,29/06/2023,Resources,Housing General Fund,134A,J A DICKENS LIMITED,06/06/2023,RS150024,147.00,0.00,REDACT,Minor Adaptations
Wyre Council,http://opendatacommunities.org/doc/district-council/wyre,29/06/2023,Resources,Housing General Fund,134A,J A DICKENS LIMITED,06/06/2023,RS150025,140.00,0.00,REDACT,Minor Adaptations
Wyre Council,http://opendatacommunities.org/doc/district-council/wyre,29/06/2023,Resources,Housing General Fund,134A,J A DICKENS LIMITED,06/06/2023,RS150025,147.00,0.00,REDACT,Minor Adaptations
Wyre Council,http://opendatacommunities.org/doc/district-council/wyre,29/06/2023,Resources,Housing General Fund,134A,J A DICKENS LIMITED,06/06/2023,RS150020,74.00,0.00,REDACT,Minor Adaptations
Wyre Council,http://opendatacommunities.org/doc/district-council/wyre,29/06/2023,Resources,Housing General Fund,134A,J A DICKENS LIMITED,06/06/2023,RS150020,80.00,0.00,REDACT,Minor Adaptations
Wyre Council,http://opendatacommunities.org/doc/district-council/wyre,29/06/2023,Resources,Housing General Fund,134A,J A DICKENS LIMITED,06/06/2023,RS150021,74.00,0.00,REDACT,Minor Adaptations
Wyre Council,http://opendatacommunities.org/doc/district-council/wyre,29/06/2023,Resources,Housing General Fund,134A,J A DICKENS LIMITED,06/06/2023,RS150021,80.00,0.00,REDACT,Minor Adaptations
Wyre Council,http://opendatacommunities.org/doc/district-council/wyre,29/06/2023,Resources,Housing General Fund,134A,J A DICKENS LIMITED,06/06/2023,RS150022,74.00,0.00,REDACT,Minor Adaptations
Wyre Council,http://opendatacommunities.org/doc/district-council/wyre,29/06/2023,Resources,Housing General Fund,134A,J A DICKENS LIMITED,06/06/2023,RS150022,80.00,0.00,REDACT,Minor Adaptations
Wyre Council,http://opendatacommunities.org/doc/district-council/wyre,29/06/2023,Resources,Housing General Fund,134A,J A DICKENS LIMITED,06/06/2023,RS150023,74.00,0.00,REDACT,Minor Adaptations
Wyre Council,http://opendatacommunities.org/doc/district-council/wyre,29/06/2023,Resources,Housing General Fund,134A,J A DICKENS LIMITED,06/06/2023,RS150023,80.00,0.00,REDACT,Minor Adaptations
Wyre Council,http://opendatacommunities.org/doc/district-council/wyre,29/06/2023,Resources,Current Liabilities,130C,North West Blood Bike Lancs and Lakes,14/06/2023,RS150353,3500.00,0.00,Mayor`s Charity payment 2022/23 - North West Blood Bikes,Miscellaneous Debits
Wyre Council,http://opendatacommunities.org/doc/district-council/wyre,29/06/2023,Resources,Central Services to the Public,131C,VODAFONE LIMITED,14/06/2023,RS150366,12.00,0.00,Monthly Charges for mobile phones/tablets/digital screens,Mobile Devices
Wyre Council,http://opendatacommunities.org/doc/district-council/wyre,29/06/2023,Resources,Support Services,135B,VODAFONE LIMITED,14/06/2023,RS150366,193.00,0.00,Monthly Charges for mobile phones/tablets/digital screens,Mobile Devices
Wyre Council,http://opendatacommunities.org/doc/district-council/wyre,29/06/2023,Resources,Support Services,135B,VODAFONE LIMITED,14/06/2023,RS150366,12.00,0.00,Monthly Charges for mobile phones/tablets/digital screens,Mobile Devices
Wyre Council,http://opendatacommunities.org/doc/district-council/wyre,29/06/2023,Resources,Corporate and Democratic Core,131A,VODAFONE LIMITED,14/06/2023,RS150366,28.00,0.00,Monthly Charges for mobile phones/tablets/digital screens,Mobile Devices
Wyre Council,http://opendatacommunities.org/doc/district-council/wyre,29/06/2023,Resources,Cultural and Related Services,132A,VODAFONE LIMITED,14/06/2023,RS150366,24.00,0.00,Monthly Charges for mobile phones/tablets/digital screens,Mobile Devices
Wyre Council,http://opendatacommunities.org/doc/district-council/wyre,29/06/2023,Resources,Environmental Services,132B,VODAFONE LIMITED,14/06/2023,RS150366,84.00,0.00,Monthly Charges for mobile phones/tablets/digital screens,Mobile Devices
Wyre Council,http://opendatacommunities.org/doc/district-council/wyre,29/06/2023,Resources,Support Services,135B,VODAFONE LIMITED,14/06/2023,RS150366,28.00,0.00,Monthly Charges for mobile phones/tablets/digital screens,Mobile Devices
Wyre Council,http://opendatacommunities.org/doc/district-council/wyre,29/06/2023,Resources,Support Services,135B,VODAFONE LIMITED,14/06/2023,RS150366,208.33,0.00,Monthly Charges for mobile phones/tablets/digital screens,Mobile Devices
Wyre Council,http://opendatacommunities.org/doc/district-council/wyre,29/06/2023,Resources,Support Services,135B,VODAFONE LIMITED,14/06/2023,RS150366,24.00,0.00,Monthly Charges for mobile phones/tablets/digital screens,Mobile Devices
Wyre Council,http://opendatacommunities.org/doc/district-council/wyre,29/06/2023,Resources,Central Services to the Public,131C,VODAFONE LIMITED,14/06/2023,RS150366,24.00,0.00,Monthly Charges for mobile phones/tablets/digital screens,Mobile Devices
Wyre Council,http://opendatacommunities.org/doc/district-council/wyre,29/06/2023,Resources,Support Services,135B,VODAFONE LIMITED,14/06/2023,RS150366,168.99,0.00,Monthly Charges for mobile phones/tablets/digital screens,Mobile Devices
Wyre Council,http://opendatacommunities.org/doc/district-council/wyre,29/06/2023,Resources,Cultural and Related Services,132A,VODAFONE LIMITED,14/06/2023,RS150366,24.00,0.00,Monthly Charges for mobile phones/tablets/digital screens,Mobile Devices
Wyre Council,http://opendatacommunities.org/doc/district-council/wyre,29/06/2023,Resources,Housing General Fund,134A,VODAFONE LIMITED,14/06/2023,RS150366,78.28,0.00,Monthly Charges for mobile phones/tablets/digital screens,Mobile Devices
Wyre Council,http://opendatacommunities.org/doc/district-council/wyre,29/06/2023,Resources,Housing General Fund,134A,VODAFONE LIMITED,14/06/2023,RS150366,32.00,0.00,Monthly Charges for mobile phones/tablets/digital screens,Mobile Devices
Wyre Council,http://opendatacommunities.org/doc/district-council/wyre,29/06/2023,Resources,Support Services,135B,VODAFONE LIMITED,14/06/2023,RS150366,36.00,0.00,Monthly Charges for mobile phones/tablets/digital screens,Mobile Devices
Wyre Council,http://opendatacommunities.org/doc/district-council/wyre,29/06/2023,Resources,Support Services,135B,VODAFONE LIMITED,14/06/2023,RS150366,305.00,0.00,Monthly Charges for mobile phones/tablets/digital screens,Mobile Devices
Wyre Council,http://opendatacommunities.org/doc/district-council/wyre,29/06/2023,Resources,Support Services,135B,VODAFONE LIMITED,14/06/2023,RS150366,12.00,0.00,Monthly Charges for mobile phones/tablets/digital screens,Mobile Devices
Wyre Council,http://opendatacommunities.org/doc/district-council/wyre,29/06/2023,Resources,Support Services,135B,VODAFONE LIMITED,14/06/2023,RS150366,45.00,0.00,Monthly Charges for mobile phones/tablets/digital screens,Mobile Devices
Wyre Council,http://opendatacommunities.org/doc/district-council/wyre,29/06/2023,Resources,Support Services,135B,VODAFONE LIMITED,14/06/2023,RS150366,36.00,0.00,Monthly Charges for mobile phones/tablets/digital screens,Mobile Devices
Wyre Council,http://opendatacommunities.org/doc/district-council/wyre,29/06/2023,Resources,Support Services,135B,VODAFONE LIMITED,14/06/2023,RS150366,20.00,0.00,Monthly Charges for mobile phones/tablets/digital screens,Mobile Devices
Wyre Council,http://opendatacommunities.org/doc/district-council/wyre,29/06/2023,Resources,Support Services,135B,VODAFONE LIMITED,14/06/2023,RS150366,12.00,0.00,Monthly Charges for mobile phones/tablets/digital screens,Mobile Devices
Wyre Council,http://opendatacommunities.org/doc/district-council/wyre,29/06/2023,Resources,Support Services,135B,VODAFONE LIMITED,14/06/2023,RS150366,129.85,0.00,Monthly Charges for mobile phones/tablets/digital screens,Mobile Devices
Wyre Council,http://opendatacommunities.org/doc/district-council/wyre,29/06/2023,Resources,Support Services,135B,VODAFONE LIMITED,14/06/2023,RS150366,60.00,0.00,Monthly Charges for mobile phones/tablets/digital screens,Mobile Devices
Wyre Council,http://opendatacommunities.org/doc/district-council/wyre,29/06/2023,Resources,Support Services,135B,VODAFONE LIMITED,14/06/2023,RS150366,156.33,0.00,Monthly Charges for mobile phones/tablets/digital screens,Mobile Devices
Wyre Council,http://opendatacommunities.org/doc/district-council/wyre,29/06/2023,Resources,Cultural and Related Services,132A,VODAFONE LIMITED,14/06/2023,RS150366,12.00,0.00,Monthly Charges for mobile phones/tablets/digital screens,Mobile Devices
Wyre Council,http://opendatacommunities.org/doc/district-council/wyre,29/06/2023,Resources,Environmental Services,132B,VODAFONE LIMITED,14/06/2023,RS150366,29.00,0.00,Monthly Charges for mobile phones/tablets/digital screens,Mobile Devices
Wyre Council,http://opendatacommunities.org/doc/district-council/wyre,29/06/2023,Resources,Housing General Fund,134A,VODAFONE LIMITED,14/06/2023,RS150366,36.00,0.00,Monthly Charges for mobile phones/tablets/digital screens,Mobile Devices
Wyre Council,http://opendatacommunities.org/doc/district-council/wyre,29/06/2023,Resources,Support Services,135B,VODAFONE LIMITED,14/06/2023,RS150366,36.00,0.00,Monthly Charges for mobile phones/tablets/digital screens,Mobile Devices
Wyre Council,http://opendatacommunities.org/doc/district-council/wyre,29/06/2023,Resources,Cultural and Related Services,132A,VODAFONE LIMITED,14/06/2023,RS150366,12.00,0.00,Monthly Charges for mobile phones/tablets/digital screens,Mobile Devices
Wyre Council,http://opendatacommunities.org/doc/district-council/wyre,29/06/2023,Resources,Support Services,135B,VODAFONE LIMITED,14/06/2023,RS150366,48.00,0.00,Monthly Charges for mobile phones/tablets/digital screens,Mobile Devices
Wyre Council,http://opendatacommunities.org/doc/district-council/wyre,29/06/2023,Resources,Support Services,135B,VODAFONE LIMITED,14/06/2023,RS150366,80.48,0.00,Monthly Charges for mobile phones/tablets/digital screens,Mobile Devices
Wyre Council,http://opendatacommunities.org/doc/district-council/wyre,29/06/2023,Resources,Support Services,135B,VODAFONE LIMITED,14/06/2023,RS150366,64.00,0.00,Monthly Charges for mobile phones/tablets/digital screens,Mobile Devices
Wyre Council,http://opendatacommunities.org/doc/district-council/wyre,29/06/2023,Finance,Current Assets,130B,,06/06/2023,WPST00108849,5525.73,0.00,02/06/23 NDR Refunds,NNDR Refunds
Wyre Council,http://opendatacommunities.org/doc/district-council/wyre,29/06/2023,Finance,Current Assets,130B,,27/06/2023,WPST00110864,2552.43,0.00,NNDR Refund,NNDR Refunds
Wyre Council,http://opendatacommunities.org/doc/district-council/wyre,29/06/2023,Finance,Current Assets,130B,,13/06/2023,WPST00109641,1024.13,0.00,09/06/23 NDR Refunds,NNDR Refunds
Wyre Council,http://opendatacommunities.org/doc/district-council/wyre,29/06/2023,Finance,Collection Fund Revenue Accts,138A,DEPARTMENT FOR COMMUNITIES AND LOCAL GOVERNMENT,21/06/2023,WPST00110324,1150592.00,0.00,DLUHC - Bus Rates Central Share 19/06/23,NNDR Tariff to Government
Wyre Council,http://opendatacommunities.org/doc/district-council/wyre,29/06/2023,Finance,General Fund below the line,136A,DEPARTMENT FOR COMMUNITIES AND LOCAL GOVERNMENT,21/06/2023,WPST00110382,724320.00,0.00,19/06/2023R V B C GENERAL,NNDR Tariff to Government
Wyre Council,http://opendatacommunities.org/doc/district-council/wyre,29/06/2023,People and Places,Support Services,135B,People Asset Management LTD,13/06/2023,PE149994,616.93,0.00,May 23 PAYG Charges,Occupational Health Fees
Wyre Council,http://opendatacommunities.org/doc/district-council/wyre,29/06/2023,Resources,Support Services,135B,Karen Openshaw Consultancy,07/06/2023,RS149960,520.00,0.00,To the provision of the Listening Service and Mindfulness practice on behalf of Wyre Borough Council April 2023 to end March 2024,Occupational Health Fees
Wyre Council,http://opendatacommunities.org/doc/district-council/wyre,29/06/2023,People and Places,Central Services to the Public,131C,Police and Crime Commissioner for Lancashire,07/06/2023,PE150071,250.00,0.00,Contribution towards Lancs. Emergency Radio  Area network Link 2023/24,Other Contributions
Wyre Council,http://opendatacommunities.org/doc/district-council/wyre,29/06/2023,People and Places,Central Services to the Public,131C,Police and Crime Commissioner for Lancashire,26/06/2023,PE150541,978.53,0.00,Contributions towards LRF Secretary Post 2023/2024,Other Contributions
Wyre Council,http://opendatacommunities.org/doc/district-council/wyre,29/06/2023,People and Places,Environmental Services,132B,DANFO (UK) LTD,20/06/2023,PE150397,-8386.78,0.00,coins income collected Jan to March 23,Other Establishments
Wyre Council,http://opendatacommunities.org/doc/district-council/wyre,29/06/2023,People and Places,Environmental Services,132B,DANFO (UK) LTD,13/06/2023,PE149893,23387.86,0.00,Public Conveniences - Maintenance and Cleaning 2023/24,Other Establishments
Wyre Council,http://opendatacommunities.org/doc/district-council/wyre,29/06/2023,Resources,Central Services to the Public,131C,Citizens Advice Lancashire,13/06/2023,RS150288,30000.00,0.00,"Citizens Advice Services to Wyre Council from June 23 to May 24 for 30,000",Other Grants
Wyre Council,http://opendatacommunities.org/doc/district-council/wyre,29/06/2023,Finance,Collection Fund Revenue Accts,138A,LANCASHIRE FIRE AUTHORITY,02/06/2023,WPST00108266,25569.00,0.00,Lancs Fire 23/24 Business Rates,Other Local Authorities
Wyre Council,http://opendatacommunities.org/doc/district-council/wyre,29/06/2023,Finance,Collection Fund Revenue Accts,138A,LANCASHIRE COUNTY COUNCIL,02/06/2023,WPST00108262,230119.00,0.00,LCC 23/24 Business Rates,Other Local Authorities
Wyre Council,http://opendatacommunities.org/doc/district-council/wyre,29/06/2023,Finance,Collection Fund Revenue Accts,138A,,02/06/2023,WPST00108269,46481.00,0.00,Police & CC for Lancs 22/23 Council Tax,Other Local Authorities
Wyre Council,http://opendatacommunities.org/doc/district-council/wyre,29/06/2023,Finance,Collection Fund Revenue Accts,138A,LANCASHIRE COUNTY COUNCIL,02/06/2023,WPST00108260,6061941.00,0.00,LCC 23/24 Council Tax,Other Local Authorities
Wyre Council,http://opendatacommunities.org/doc/district-council/wyre,29/06/2023,Finance,Collection Fund Revenue Accts,138A,LANCASHIRE FIRE AUTHORITY,02/06/2023,WPST00108261,297674.00,0.00,LCC 22/23 Council Tax Surplus,Other Local Authorities
Wyre Council,http://opendatacommunities.org/doc/district-council/wyre,29/06/2023,Finance,Collection Fund Revenue Accts,138A,LANCASHIRE FIRE AUTHORITY,02/06/2023,WPST00108264,316703.00,0.00,Lancs Fire 23/24 Council Tax,Other Local Authorities
Wyre Council,http://opendatacommunities.org/doc/district-council/wyre,29/06/2023,Finance,Collection Fund Revenue Accts,138A,,02/06/2023,WPST00108265,15190.00,0.00,Lancs Fire 22/23 Council Tax Surplus,Other Local Authorities
Wyre Council,http://opendatacommunities.org/doc/district-council/wyre,29/06/2023,Finance,Collection Fund Revenue Accts,138A,,02/06/2023,WPST00108268,967972.00,0.00,Police &CC for Lancs 23/24 Council Tax,Other Local Authorities
Wyre Council,http://opendatacommunities.org/doc/district-council/wyre,29/06/2023,People and Places,Parking Services,133F,Park Now Limited,19/06/2023,PE150265,653.62,0.00,RingGo Fees for 1 April 2023 - 31 March 2024 - service charges - text summary charges - text reminder charges - card processing fess,Other Parking Fees and Commission
Wyre Council,http://opendatacommunities.org/doc/district-council/wyre,29/06/2023,People and Places,Environmental Services,132B,D Hollowell & Sons LTD,19/06/2023,PE150212,1032.00,0.00,REDACT,Other Rechargeable Services
Wyre Council,http://opendatacommunities.org/doc/district-council/wyre,29/06/2023,People and Places,Parking Services,133F,TARMAC TRADING LTD,09/06/2023,PE150011,554.92,0.00,Aggregate limestone  Ticket no 1003306829 23.05.2023,"Paths, Roads and Car Park Mtnce Annual"
Wyre Council,http://opendatacommunities.org/doc/district-council/wyre,29/06/2023,People and Places,Parking Services,133F,TARMAC TRADING LTD,09/06/2023,PE150011,542.54,0.00,Aggregate limestone  Ticket no 1003307272 23.05.2023  Sea cadet carpark,"Paths, Roads and Car Park Mtnce Annual"
Wyre Council,http://opendatacommunities.org/doc/district-council/wyre,29/06/2023,People and Places,Parking Services,133F,SHARD SURFACING LTD,12/06/2023,PE149802,1149.84,0.00,*** Confirmation or verbal instruction from Bob Greaves and Maria Leeder * Undertake miscellaneous pot hole repairs to Marine Hall and Poulton YMCA car parks as provided details 72% labour,"Paths, Roads and Car Park Mtnce Annual"
Wyre Council,http://opendatacommunities.org/doc/district-council/wyre,29/06/2023,People and Places,Cultural and Related Services,132A,SHARD SURFACING LTD,16/06/2023,PE150472,2566.90,0.00,Labour: tarmac around the cafe,"Paths, Roads and Car Park Mtnce Annual"
Wyre Council,http://opendatacommunities.org/doc/district-council/wyre,29/06/2023,People and Places,Cultural and Related Services,132A,SHARD SURFACING LTD,16/06/2023,PE150472,4188.08,0.00,Material: tarmac around the cafe,"Paths, Roads and Car Park Mtnce Annual"
Wyre Council,http://opendatacommunities.org/doc/district-council/wyre,29/06/2023,People and Places,Parking Services,133F,SHARD SURFACING LTD,12/06/2023,PE149802,447.16,0.00,*** Confirmation or verbal instruction from Bob Greaves and Maria Leeder * Undertake miscellaneous pot hole repairs to Marine Hall and Poulton YMCA car parks as provided details 28% materials,"Paths, Roads and Car Park Mtnce Annual"
Wyre Council,http://opendatacommunities.org/doc/district-council/wyre,29/06/2023,People and Places,Planning and Development Servs,132C,PPL PRS Ltd,06/06/2023,PE150047,2265.78,0.00,CHARGES  FOR ROYALTIESand licence,Performing Rights
Wyre Council,http://opendatacommunities.org/doc/district-council/wyre,29/06/2023,People and Places,Support Services,135B,Allstar Business Solutions LTD,21/06/2023,PE149962,201.28,0.00,Fuel to 30/05/23,Petrol
Wyre Council,http://opendatacommunities.org/doc/district-council/wyre,29/06/2023,People and Places,Support Services,135B,Allstar Business Solutions LTD,16/06/2023,PE150468,144.51,0.00,Fuel to 13/06/23,Petrol
Wyre Council,http://opendatacommunities.org/doc/district-council/wyre,29/06/2023,People and Places,Support Services,135B,Allstar Business Solutions LTD,16/06/2023,PE150468,67.22,0.00,Fuel to 13/06/23,Petrol
Wyre Council,http://opendatacommunities.org/doc/district-council/wyre,29/06/2023,People and Places,Support Services,135B,Allstar Business Solutions LTD,21/06/2023,PE149962,110.22,0.00,Fuel to 30/05/23,Petrol
Wyre Council,http://opendatacommunities.org/doc/district-council/wyre,29/06/2023,People and Places,Support Services,135B,Allstar Business Solutions LTD,16/06/2023,PE150468,53.23,0.00,Fuel to 13/06/23,Petrol
Wyre Council,http://opendatacommunities.org/doc/district-council/wyre,29/06/2023,People and Places,Support Services,135B,Allstar Business Solutions LTD,21/06/2023,PE149962,47.46,0.00,Fuel to 30/05/23,Petrol
Wyre Council,http://opendatacommunities.org/doc/district-council/wyre,29/06/2023,People and Places,Cultural and Related Services,132A,Allstar Business Solutions LTD,16/06/2023,PE150468,67.90,0.00,Fuel to 13/06/23,Petrol
Wyre Council,http://opendatacommunities.org/doc/district-council/wyre,29/06/2023,People and Places,Support Services,135B,Allstar Business Solutions LTD,16/06/2023,PE150468,154.30,0.00,Fuel to 13/06/23,Petrol
Wyre Council,http://opendatacommunities.org/doc/district-council/wyre,29/06/2023,People and Places,Support Services,135B,Allstar Business Solutions LTD,21/06/2023,PE149962,174.57,0.00,Fuel to 30/05/23,Petrol
Wyre Council,http://opendatacommunities.org/doc/district-council/wyre,29/06/2023,People and Places,Support Services,135B,Allstar Business Solutions LTD,16/06/2023,PE150468,128.92,0.00,Fuel to 13/06/23,Petrol
Wyre Council,http://opendatacommunities.org/doc/district-council/wyre,29/06/2023,People and Places,Support Services,135B,Allstar Business Solutions LTD,21/06/2023,PE149962,26.09,0.00,Fuel to 30/05/23,Petrol
Wyre Council,http://opendatacommunities.org/doc/district-council/wyre,29/06/2023,People and Places,Support Services,135B,Allstar Business Solutions LTD,21/06/2023,PE149962,43.53,0.00,Fuel to 30/05/23,Petrol
Wyre Council,http://opendatacommunities.org/doc/district-council/wyre,29/06/2023,People and Places,Cultural and Related Services,132A,COWLEY FIRE,07/06/2023,PE149867,133.29,0.00,Cottam Hall Fields: Service fire equipment,Planned Building Maintenance
Wyre Council,http://opendatacommunities.org/doc/district-council/wyre,29/06/2023,People and Places,Cultural and Related Services,132A,COWLEY FIRE,13/06/2023,PE149685,51.50,0.00,Call out charge and disposal of parts. Environmentally friendly recovery.,Planned Building Maintenance
Wyre Council,http://opendatacommunities.org/doc/district-council/wyre,29/06/2023,People and Places,Planning and Development Servs,132C,COWLEY FIRE,09/06/2023,PE149943,650.17,0.00,Fire Cerificate-Wyre Borough Council Copse Road Depot,Planned Building Maintenance
Wyre Council,http://opendatacommunities.org/doc/district-council/wyre,29/06/2023,People and Places,Planning and Development Servs,132C,RENTOKIL INITIAL UK LTD,15/06/2023,PE150283,314.45,0.00,Premises: 3 Contract: C/90302367.  R14122,Planned Building Maintenance
Wyre Council,http://opendatacommunities.org/doc/district-council/wyre,29/06/2023,People and Places,Support Services,135B,RENTOKIL INITIAL UK LTD,15/06/2023,PE150283,669.19,0.00,Premises: 1 Contract: C/90302367. R14120,Planned Building Maintenance
Wyre Council,http://opendatacommunities.org/doc/district-council/wyre,29/06/2023,People and Places,Cultural and Related Services,132A,RENTOKIL INITIAL UK LTD,15/06/2023,PE150283,233.31,0.00,Premises: 4 Contract: C/90302367. R14123,Planned Building Maintenance
Wyre Council,http://opendatacommunities.org/doc/district-council/wyre,29/06/2023,People and Places,Planning and Development Servs,132C,RENTOKIL INITIAL UK LTD,15/06/2023,PE150283,229.28,0.00,Premises: 2 Contract: C/90302369. R14121,Planned Building Maintenance
Wyre Council,http://opendatacommunities.org/doc/district-council/wyre,29/06/2023,People and Places,Cultural and Related Services,132A,RENTOKIL INITIAL UK LTD,15/06/2023,PE150283,20.13,0.00,Premises: 5Contract: C/90302367. R14124,Planned Building Maintenance
Wyre Council,http://opendatacommunities.org/doc/district-council/wyre,29/06/2023,People and Places,Environmental Services,132B,The Columbaria Company,19/06/2023,PE149614,293.30,0.00,REDACT,Plaque Inscriptions and Furniture
Wyre Council,http://opendatacommunities.org/doc/district-council/wyre,29/06/2023,People and Places,Environmental Services,132B,The Columbaria Company,19/06/2023,PE150427,183.00,0.00,REDACT,Plaque Inscriptions and Furniture
Wyre Council,http://opendatacommunities.org/doc/district-council/wyre,29/06/2023,People and Places,Environmental Services,132B,The Columbaria Company,19/06/2023,PE150130,110.50,0.00,REDACT,Plaque Inscriptions and Furniture
Wyre Council,http://opendatacommunities.org/doc/district-council/wyre,29/06/2023,People and Places,Environmental Services,132B,The Columbaria Company,19/06/2023,PE150436,125.10,0.00,REDACT,Plaque Inscriptions and Furniture
Wyre Council,http://opendatacommunities.org/doc/district-council/wyre,29/06/2023,People and Places,Environmental Services,132B,The Columbaria Company,19/06/2023,PE150497,75.00,0.00,REDACT,Plaque Inscriptions and Furniture
Wyre Council,http://opendatacommunities.org/doc/district-council/wyre,29/06/2023,People and Places,Environmental Services,132B,The Columbaria Company,19/06/2023,PE149801,202.90,0.00,REDACT,Plaque Inscriptions and Furniture
Wyre Council,http://opendatacommunities.org/doc/district-council/wyre,29/06/2023,People and Places,Environmental Services,132B,The Columbaria Company,26/06/2023,PE150659,81.10,0.00,REDACT,Plaque Inscriptions and Furniture
Wyre Council,http://opendatacommunities.org/doc/district-council/wyre,29/06/2023,People and Places,Environmental Services,132B,The Columbaria Company,23/06/2023,PE150670,82.00,0.00,REDACT,Plaque Inscriptions and Furniture
Wyre Council,http://opendatacommunities.org/doc/district-council/wyre,29/06/2023,People and Places,Environmental Services,132B,The Columbaria Company,27/06/2023,PE150658,243.90,0.00,REDACT,Plaque Inscriptions and Furniture
Wyre Council,http://opendatacommunities.org/doc/district-council/wyre,29/06/2023,People and Places,Environmental Services,132B,The Columbaria Company,05/06/2023,PE149823,3903.00,0.00,REDACT,Plaque Inscriptions and Furniture
Wyre Council,http://opendatacommunities.org/doc/district-council/wyre,29/06/2023,Finance,Central Services to the Public,131C,SANTANDER,09/06/2023,WPST00109312,852.42,0.00,07/06/23 SAN UK ACC RECEIVE,Plastic Cards Processing Fees
Wyre Council,http://opendatacommunities.org/doc/district-council/wyre,29/06/2023,People and Places,Support Services,135B,GB  Sport & Leisure UK LTD,15/06/2023,PE150426,232.20,0.00,SP-02-007 Flat Seat Tail Chains - pair,Playground Equipment
Wyre Council,http://opendatacommunities.org/doc/district-council/wyre,29/06/2023,People and Places,Support Services,135B,GB  Sport & Leisure UK LTD,15/06/2023,PE150426,444.00,0.00,SP-01-011 Pod Cradle Seat 8mm,Playground Equipment
Wyre Council,http://opendatacommunities.org/doc/district-council/wyre,29/06/2023,People and Places,Support Services,135B,GB  Sport & Leisure UK LTD,15/06/2023,PE150426,222.00,0.00,SP-01-054A Curve Large Flat Seat,Playground Equipment
Wyre Council,http://opendatacommunities.org/doc/district-council/wyre,29/06/2023,People and Places,Support Services,135B,GB  Sport & Leisure UK LTD,15/06/2023,PE150426,1370.00,0.00,SP-01-024 1.0m Birds Nest Seat - Cantilever,Playground Equipment
Wyre Council,http://opendatacommunities.org/doc/district-council/wyre,29/06/2023,People and Places,Support Services,135B,GB  Sport & Leisure UK LTD,15/06/2023,PE150426,595.00,0.00,SP-01-018A 1.0m Birds Nest Seat Rosette - A Frame,Playground Equipment
Wyre Council,http://opendatacommunities.org/doc/district-council/wyre,29/06/2023,People and Places,Support Services,135B,GB  Sport & Leisure UK LTD,15/06/2023,PE150426,1996.50,0.00,SP-01-014A 1.2m Birds Nest Seat Rosette- A Frame,Playground Equipment
Wyre Council,http://opendatacommunities.org/doc/district-council/wyre,29/06/2023,People and Places,Support Services,135B,GB  Sport & Leisure UK LTD,15/06/2023,PE150426,180.00,0.00,SP-05-023 Jockey c/w Safety Chain (1 x 12 link x 6mm galvanised chain x 23mm long) & Playlock Washer,Playground Equipment
Wyre Council,http://opendatacommunities.org/doc/district-council/wyre,29/06/2023,People and Places,Support Services,135B,GB  Sport & Leisure UK LTD,15/06/2023,PE150426,475.00,0.00,SP-36-022 Monohinge Gate Complete Closer Set & Damper Kit - Right Hand Open In / Left Hand Open Out - Gate B or C,Playground Equipment
Wyre Council,http://opendatacommunities.org/doc/district-council/wyre,29/06/2023,People and Places,Support Services,135B,GB  Sport & Leisure UK LTD,15/06/2023,PE150426,114.00,0.00,SP-08-032 Sit In Spring Rider Bottom Part Seat Support Bracket,Playground Equipment
Wyre Council,http://opendatacommunities.org/doc/district-council/wyre,29/06/2023,People and Places,Support Services,135B,GB  Sport & Leisure UK LTD,15/06/2023,PE150426,245.00,0.00,SP-08-028 Spring Rider Perch - Single Spring Fixing Plate - Heavy Duty,Playground Equipment
Wyre Council,http://opendatacommunities.org/doc/district-council/wyre,29/06/2023,People and Places,Support Services,135B,GB  Sport & Leisure UK LTD,15/06/2023,PE150426,322.50,0.00,SP-08-026 Spring Rider 400mm Spring - Heavy Duty,Playground Equipment
Wyre Council,http://opendatacommunities.org/doc/district-council/wyre,29/06/2023,People and Places,Support Services,135B,GB  Sport & Leisure UK LTD,15/06/2023,PE150426,82.30,0.00,REC-SPARES 16mm combi rope - green - 2.8m c/w M12 x 180mm eyebolt at each end.,Playground Equipment
Wyre Council,http://opendatacommunities.org/doc/district-council/wyre,29/06/2023,People and Places,Support Services,135B,GB  Sport & Leisure UK LTD,15/06/2023,PE150426,165.00,0.00,SP-02-022 8mm Sheradised Chain - 25m,Playground Equipment
Wyre Council,http://opendatacommunities.org/doc/district-council/wyre,29/06/2023,People and Places,Support Services,135B,GB  Sport & Leisure UK LTD,15/06/2023,PE150426,13.44,0.00,SP-03-056 Kompan Specialist Tool,Playground Equipment
Wyre Council,http://opendatacommunities.org/doc/district-council/wyre,29/06/2023,People and Places,Support Services,135B,GB  Sport & Leisure UK LTD,15/06/2023,PE150426,32.00,0.00,SP-43-002A Rubber Crumb - Black - Base - 25kgs,Playground Equipment
Wyre Council,http://opendatacommunities.org/doc/district-council/wyre,29/06/2023,People and Places,Support Services,135B,GB  Sport & Leisure UK LTD,15/06/2023,PE150426,333.80,0.00,Delivery,Playground Equipment
Wyre Council,http://opendatacommunities.org/doc/district-council/wyre,29/06/2023,People and Places,Support Services,135B,GB  Sport & Leisure UK LTD,15/06/2023,PE150426,187.00,0.00,SP-43-028U Fast Cure Resin - 25kg,Playground Equipment
Wyre Council,http://opendatacommunities.org/doc/district-council/wyre,29/06/2023,Resources,Central Services to the Public,131C,Royal Mail Group PLC,21/06/2023,RS149725,90.00,0.00,Electoral Registration weekday postage - Monthly Licence Fee - June 2023,Postage
Wyre Council,http://opendatacommunities.org/doc/district-council/wyre,29/06/2023,Resources,Central Services to the Public,131C,Royal Mail Group PLC,21/06/2023,RS149024,90.00,0.00,Electoral Registration Post Weekday collection - Monthly Licence Fee - May 2023,Postage
Wyre Council,http://opendatacommunities.org/doc/district-council/wyre,29/06/2023,Resources,Central Services to the Public,131C,Royal Mail Group PLC,21/06/2023,RS149155,318.79,0.00,Wyre Council Elections - postage on 2nd issue postal votes - 449 items  - 24/04/2023,Postage
Wyre Council,http://opendatacommunities.org/doc/district-council/wyre,29/06/2023,Resources,Central Services to the Public,131C,Royal Mail Group PLC,21/06/2023,RS149114,3888.56,0.00,Wyre Council Elections - return postage of postal votes - response plus service  For period w/e 22/04/2023,Postage
Wyre Council,http://opendatacommunities.org/doc/district-council/wyre,29/06/2023,Resources,Central Services to the Public,131C,Royal Mail Group PLC,21/06/2023,RS149417,1420.00,0.00,Wyre Council Elections - return postage costs postal votes w/e 06/05/2023,Postage
Wyre Council,http://opendatacommunities.org/doc/district-council/wyre,29/06/2023,Resources,Central Services to the Public,131C,Royal Mail Group PLC,21/06/2023,RS150434,502.68,0.00,Warren Ward Election 22 June 2023 - outward postage postal votes - 708 items,Postage
Wyre Council,http://opendatacommunities.org/doc/district-council/wyre,29/06/2023,Resources,Central Services to the Public,131C,Royal Mail Group PLC,26/06/2023,RS149023,13915.61,0.00,Wyre Council Elections- Postal Votes 1st Issue postage  18/04/2023,Postage
Wyre Council,http://opendatacommunities.org/doc/district-council/wyre,29/06/2023,Resources,Central Services to the Public,131C,Royal Mail Group PLC,23/06/2023,RS149251,5395.12,0.00,Wyre Council Elections - return postage postal votes - w/e 29/04/2023,Postage
Wyre Council,http://opendatacommunities.org/doc/district-council/wyre,29/06/2023,People and Places,Central Services to the Public,131C,Royal Mail Group PLC,21/06/2023,PE150001,2116.06,0.00,Wyre Council Elections - return postage costs for postal votes - w/c 13/05/2023,Postage
Wyre Council,http://opendatacommunities.org/doc/district-council/wyre,29/06/2023,Resources,Central Services to the Public,131C,Print Image Facilities LLP,13/06/2023,RS150291,1757.15,0.00,Wyre Warren Ward Election 22 June 2023 - Poll Card  - Postage  - 3285,Postage
Wyre Council,http://opendatacommunities.org/doc/district-council/wyre,29/06/2023,People and Places,Environmental Services,132B,PermiServ Ltd,08/06/2023,PE150124,6428.12,0.00,"27,000 Production, Postage and Management of Green Waste  Subscription Stickers/Portal, as per Lancashire Agreement (Unit cost 1.02 per sticker)  Please leave PO open as it will be drawn-off each month  e-mail address: Rebecca Padgham rebecca@permiserv.c",Postage
Wyre Council,http://opendatacommunities.org/doc/district-council/wyre,29/06/2023,People and Places,Cultural and Related Services,132A,Bates Office Services Ltd,07/06/2023,PE150062,150.00,0.00,Book of 50 second class stamps,Postage
Wyre Council,http://opendatacommunities.org/doc/district-council/wyre,29/06/2023,People and Places,Cultural and Related Services,132A,Bates Office Services Ltd,07/06/2023,PE150062,4.99,0.00,Delivery charge,Postage
Wyre Council,http://opendatacommunities.org/doc/district-council/wyre,29/06/2023,People and Places,Central Services to the Public,131C,Print Image Network LTD,02/06/2023,PE149974,12449.00,0.00,Wyre Council Elections 2023 - Printing of Poll Cards  -  86216 Ordinary oversize A5 and postal A5,Printing
Wyre Council,http://opendatacommunities.org/doc/district-council/wyre,29/06/2023,Resources,Central Services to the Public,131C,Print Image Network LTD,05/06/2023,RS149983,1291.00,0.00,Wyre Council Elections - Large Print Ballot Papers  - 150,Printing
Wyre Council,http://opendatacommunities.org/doc/district-council/wyre,29/06/2023,Resources,Central Services to the Public,131C,Print Image Network LTD,07/06/2023,RS150078,16183.45,0.00,Wyre Council Elections 2023 - Local Voterpeel Plus Postal Vote Mailings21483 Postal Votes,Printing
Wyre Council,http://opendatacommunities.org/doc/district-council/wyre,29/06/2023,Resources,Central Services to the Public,131C,Print Image Network LTD,07/06/2023,RS150077,9927.50,0.00,Wyre Election 2023 - Wyre Local Ballot Books,Printing
Wyre Council,http://opendatacommunities.org/doc/district-council/wyre,29/06/2023,People and Places,Central Services to the Public,131C,Print Image Facilities LLP,05/06/2023,PE149972,1838.22,0.00,Wyre Council Elections 2023 - Grass Skirts counting strips,Printing
Wyre Council,http://opendatacommunities.org/doc/district-council/wyre,29/06/2023,People and Places,Parking Services,133F,FLOWBIRD SMART CITY UK LTD,22/06/2023,PE150662,1837.00,0.00,"Provide 12 boxes HYBRID4 100mm single issue, non-adhesive tickets, REVERSE WOUND for use in CWT machines, as per your quotation 220523MMWYRE01Delivery to Paul LongRoom 135Wyre Civic CentreBreck RoadPoulton-le-FyldeFY6 7PU",Printing
Wyre Council,http://opendatacommunities.org/doc/district-council/wyre,29/06/2023,Finance,Housing General Fund,134A,,15/06/2023,WPST00109860,1688.88,0.00,HB Payments - Ukraine,Private Contractors
Wyre Council,http://opendatacommunities.org/doc/district-council/wyre,29/06/2023,Finance,Housing General Fund,134A,,08/06/2023,WPST00109217,8750.00,0.00,HB Payments Ukraine Scheme,Private Contractors
Wyre Council,http://opendatacommunities.org/doc/district-council/wyre,29/06/2023,People and Places,Support Services,135B,EAS Electrical Mechanical,07/06/2023,PE150098,48.00,0.00,"Investigate fault on sump float, check floats are working as should and adjust location off float with steve, test on completion",Private Contractors
Wyre Council,http://opendatacommunities.org/doc/district-council/wyre,29/06/2023,People and Places,Environmental Services,132B,EAS Electrical Mechanical,12/06/2023,PE150140,72.00,0.00,S Buschini attended emergency call out 8th May `23 to investigate fault with pump. Believed to be caused by pump coming `unseated` off the guide. Team developed 9th May `23 to investigate further-investigation and repairs invoiced to R16517,Private Contractors
Wyre Council,http://opendatacommunities.org/doc/district-council/wyre,29/06/2023,People and Places,Public Transport,133G,Wyre Marine Services,16/06/2023,PE150474,19036.66,0.00,Fleetwood - Knott End Ferry Service Schedule of payments April - Sep 2023  12 Apr 2023 - 11 May 2023 = 9518.33 12 May 2023 - 11 Jun 2023 = 9518.33 12 Jun 2023 - 11 Jul 2023 = 9518.33 12 Jul 2023 - 11 Aug  2023 = 9518.33 12 Aug 2023 - 11 Sep 2023 = 95,Private Contractors
Wyre Council,http://opendatacommunities.org/doc/district-council/wyre,29/06/2023,People and Places,Parking Services,133F,NSL Services Group,08/06/2023,PE150128,4434.40,0.00,Provide enforcement officer for Wyre Council car parks - 1 April 2023 - 31 March 2024,Private Contractors
Wyre Council,http://opendatacommunities.org/doc/district-council/wyre,29/06/2023,People and Places,Environmental Services,132B,Floating Pontoon Solutions,06/06/2023,PE150038,340.00,0.00,"Carry out strimming works to the watercourse banks at the YMCA Royles Brook watercourse, Thornton-Cleveleys:-Please note: A comprehensive bird nesting survey is to be carried out prior/during the works by Chris Atherton & Steve Wilson.--Strim en",Private Contractors
Wyre Council,http://opendatacommunities.org/doc/district-council/wyre,29/06/2023,People and Places,Environmental Services,132B,Floating Pontoon Solutions,09/06/2023,PE149888,1074.00,0.00,"Carry out strimming works to the watercourse banks at the following areas of Swan Drive, Thornton-Cleveleys:-  Please note: A comprehensive bird nesting survey is to be carried out prior to the works by Chris Atherton & Steve Wilson. Currently the western",Private Contractors
Wyre Council,http://opendatacommunities.org/doc/district-council/wyre,29/06/2023,People and Places,Parking Services,133F,CHIPSIDE LTD,09/06/2023,PE150080,51.55,0.00,Wyre Council bank transaction fees 1 April 2023 - 31 March 2024,Private Contractors
Wyre Council,http://opendatacommunities.org/doc/district-council/wyre,29/06/2023,People and Places,Parking Services,133F,CHIPSIDE LTD,16/06/2023,PE150471,744.99,0.00,provision of notice processing services 1 April 2023 - 31 March 2024; including postage,Private Contractors
Wyre Council,http://opendatacommunities.org/doc/district-council/wyre,29/06/2023,Resources,Planning and Development Servs,132C,Fleetwood Festival Of Transport CIC,06/06/2023,RS150052,5000.00,0.00,Tram Sunday Fleetwood Festival of Transport,Project Costs
Wyre Council,http://opendatacommunities.org/doc/district-council/wyre,29/06/2023,People and Places,Planning and Development Servs,132C,A T Graphics LTD,01/06/2023,PE149926,360.00,0.00,Advert in Coach Tours UK FM - June edition,Promotions - General
Wyre Council,http://opendatacommunities.org/doc/district-council/wyre,29/06/2023,Resources,Environmental Services,132B,Preston City Council,23/06/2023,RS150682,724.00,0.00,"15000 x Green bin non-payment stickers, 100x150mm 1pp full colour on white synthetic mid-tack Supplied in rolls of 500",Promotions - General
Wyre Council,http://opendatacommunities.org/doc/district-council/wyre,29/06/2023,Resources,Cultural and Related Services,132A,Preston City Council,26/06/2023,RS150681,32.50,0.00,500 x Social Rides A5 1pp,Promotions - General
Wyre Council,http://opendatacommunities.org/doc/district-council/wyre,29/06/2023,People and Places,Environmental Services,132B,PermiServ Ltd,08/06/2023,PE150124,6382.06,0.00,"27,000 Production, Postage and Management of Green Waste  Subscription Stickers/Portal, as per Lancashire Agreement (Unit cost 1.02 per sticker)  Please leave PO open as it will be drawn-off each month  e-mail address: Rebecca Padgham rebecca@permiserv.c",Promotions - General
Wyre Council,http://opendatacommunities.org/doc/district-council/wyre,29/06/2023,People and Places,Environmental Services,132B,PermiServ Ltd,08/06/2023,PE150125,46.06,0.00,"27,000 Production, Postage and Management of Green Waste  Subscription Stickers/Portal, as per Lancashire Agreement (Unit cost 1.02 per sticker)  Please leave PO open as it will be drawn-off each month  e-mail address: Rebecca Padgham rebecca@permiserv.c",Promotions - General
Wyre Council,http://opendatacommunities.org/doc/district-council/wyre,29/06/2023,People and Places,Support Services,135B,Key Engineering & Hygiene Supplies LTD,16/06/2023,PE150461,99.90,0.00,Supply and deliver as per quotation 19300,Protective Clothing
Wyre Council,http://opendatacommunities.org/doc/district-council/wyre,29/06/2023,People and Places,Environmental Services,132B,Key Engineering & Hygiene Supplies LTD,20/06/2023,PE150552,40.05,0.00,"Urgent supply of Goliath Groundmasters EL170DDR Chukka Boot size 12, code GOLEL170DDR/12** NEEDED BY FRIDAY 16TH JUNE PLEASE **Delivery FAO Phil Gooden, Wyre Council, Copse Road Depot, Copse Road, Fleetwood, FY7 6RP.",Protective Clothing
Wyre Council,http://opendatacommunities.org/doc/district-council/wyre,29/06/2023,People and Places,Environmental Services,132B,Key Engineering & Hygiene Supplies LTD,16/06/2023,PE150461,120.15,0.00,Supply and deliver as per quotation 19300,Protective Clothing
Wyre Council,http://opendatacommunities.org/doc/district-council/wyre,29/06/2023,People and Places,Environmental Services,132B,Key Engineering & Hygiene Supplies LTD,16/06/2023,PE150457,883.00,0.00,"Supply the following Refuse bags 50 no Blue Refuse bags, code BLO9OC1 @ price quoted 17.66 per box of 200","Provision of Bins, Boxes and Sacks"
Wyre Council,http://opendatacommunities.org/doc/district-council/wyre,29/06/2023,People and Places,Environmental Services,132B,Key Engineering & Hygiene Supplies LTD,27/06/2023,PE150723,579.00,0.00,"30 no Green Refuse bags, code GNO90C1 @ 19.30 per box of 200  Delivery to Wyre Council, Copse Road Depot, Copse Road, Fleetwood, FY7 6RP","Provision of Bins, Boxes and Sacks"
Wyre Council,http://opendatacommunities.org/doc/district-council/wyre,29/06/2023,People and Places,Environmental Services,132B,UK Container Maintenance LTD,26/06/2023,PE150705,2750.00,0.00,"1100ltr Olive Green Bulk Containers (with Black trade lid, Logos, Lid lock and Key)  @ 275.00 per container  e-mail address - www.ukcontainers.co.uk Telephone Number: 01606 723020 Please send a copy of the order to: Victoria Whitaker  victoria@ukcontaine","Provision of Bins, Boxes and Sacks"
Wyre Council,http://opendatacommunities.org/doc/district-council/wyre,29/06/2023,People and Places,Environmental Services,132B,UK Container Maintenance LTD,26/06/2023,PE150705,4400.00,0.00,"1100ltr Sliver Sheen Bulk Containers (with Black trade lid, Logos, Lid lock and Key) @ 275.00 per container","Provision of Bins, Boxes and Sacks"
Wyre Council,http://opendatacommunities.org/doc/district-council/wyre,29/06/2023,People and Places,Environmental Services,132B,Veolia ES (UK) LTD,12/06/2023,PE150213,4977.81,0.00,Bin Provision,"Provision of Bins, Boxes and Sacks"
Wyre Council,http://opendatacommunities.org/doc/district-council/wyre,29/06/2023,People and Places,Cultural and Related Services,132A,HUWS GRAY LTD,26/06/2023,PE150721,56.62,0.00,"wood stain, brushes and pots",Public Footpaths/Rights Of Way
Wyre Council,http://opendatacommunities.org/doc/district-council/wyre,29/06/2023,Resources,Support Services,135B,Preston City Council,23/06/2023,RS150682,45.00,0.00,Big green week leaflets x 1000,Public Relations
Wyre Council,http://opendatacommunities.org/doc/district-council/wyre,29/06/2023,Resources,Support Services,135B,Preston City Council,23/06/2023,RS150682,48.95,0.00, 2 x six sheet bus stop poster,Public Relations
Wyre Council,http://opendatacommunities.org/doc/district-council/wyre,29/06/2023,People and Places,Support Services,135B,Amazon Business,14/06/2023,PE150376,8.23,0.00,Ribbon and scissors,Public Relations
Wyre Council,http://opendatacommunities.org/doc/district-council/wyre,29/06/2023,People and Places,Support Services,135B,Amazon Business,19/06/2023,PE150435,45.72,0.00,3 fans ( 2 beldray  oscillating pedestal fan ) and 1 cooling fan for EEOs  room 131 under Alan fitzpatricks instruction,Purchase Furniture
Wyre Council,http://opendatacommunities.org/doc/district-council/wyre,29/06/2023,People and Places,Support Services,135B,Amazon Business,19/06/2023,PE150441,49.97,0.00,3 fans ( 2 beldray  oscillating pedestal fan ) and 1 cooling fan for EEOs  room 131 under Alan fitzpatricks instruction,Purchase Furniture
Wyre Council,http://opendatacommunities.org/doc/district-council/wyre,29/06/2023,People and Places,Support Services,135B,Preston City Council,26/06/2023,PE150710,75.40,0.00, as per Quote  4392 from B Albin .4x pads shellfish Registration DocumentA4 2pp printed black on 3 part NCRPads of 50 sets,Purchase of Publications
Wyre Council,http://opendatacommunities.org/doc/district-council/wyre,29/06/2023,People and Places,Support Services,135B,Indespension LTD,19/06/2023,PE149859,3486.00,0.00, To Supply 1 X GT26126S  @ 3256.00 + vat  Complete with Prop Stands @ 80.00 + vat  Delivery 150.00 + vat  Delivery Address :-  Wyre Council Copse Road Depot Fleetwood Lancashire FY76RP  Total Cost 3486.00 + vat  Reference Quotation 02/02/2023,Purchase of Tools or Equipment
Wyre Council,http://opendatacommunities.org/doc/district-council/wyre,29/06/2023,People and Places,Planning and Development Servs,132C,NABMA,07/06/2023,PE150068,1000.00,0.00,nabma DIPLOMA IN MARKET ADMINISTRATION,Purchase of Tools or Equipment
Wyre Council,http://opendatacommunities.org/doc/district-council/wyre,29/06/2023,People and Places,Cultural and Related Services,132A,Fylde Coast YMCA,27/06/2023,PE150743,8750.00,0.00,To Supply and installation of new Oxford Dipper pool hoist,Purchase of Tools or Equipment
Wyre Council,http://opendatacommunities.org/doc/district-council/wyre,29/06/2023,People and Places,Central Services to the Public,131C,Print Image Facilities LLP,05/06/2023,PE149973,1087.50,0.00,Wyre Election - Polling Staff Election Badges - 300,Purchase of Tools or Equipment
Wyre Council,http://opendatacommunities.org/doc/district-council/wyre,29/06/2023,People and Places,Cultural and Related Services,132A,HUWS GRAY LTD,05/06/2023,PE150004,41.78,0.00,10x 3.6x3``x1`` Rough Sawn Timber200x 1.5`` Screws0.5KG 1.5`` Round Head Nails,Purchase of Tools or Equipment
Wyre Council,http://opendatacommunities.org/doc/district-council/wyre,29/06/2023,Resources,Support Services,135B,Amazon Business,19/06/2023,RS150475,46.64,0.00,"Hi-Spec 9 Piece Network Cable Tester, Computer Maintenance & Wiring Repair Tool Kit. Rapid RJ11, RJ45 LAN Continuity LED Test. Crimper, Cutter & Punch Down Tools in a Zipper Case.",Purchase of Tools or Equipment
Wyre Council,http://opendatacommunities.org/doc/district-council/wyre,29/06/2023,Resources,Support Services,135B,Amazon Business,19/06/2023,RS150504,29.38,0.00,"SHARDEN 122-Piece Precision Screwdriver Set, Magnetic Small Screwdriver Set, Electronic Repair Tool Kit DIY Screwdriver Kit for Phone, PC, Laptop, iPhone, Computer, MacBook, PS4, Nintendo, Xbox, Ring.",Purchase of Tools or Equipment
Wyre Council,http://opendatacommunities.org/doc/district-council/wyre,29/06/2023,Resources,Support Services,135B,Amazon Business,19/06/2023,RS150506,6.64,0.00,LUPO Anti Static Wrist Strap ESD Grounding PC Earthing Adjustable Wrist Strap Band - Prevents Build up of Static Electricity.,Purchase of Tools or Equipment
Wyre Council,http://opendatacommunities.org/doc/district-council/wyre,29/06/2023,Resources,Support Services,135B,Amazon Business,19/06/2023,RS150505,83.32,0.00,NOYAFA-NF-8209 Advanced Cable Tester with PoE Multifunction Wire Tracker Network Cable Tester for LAN CAT5 CAT6 Tracker.,Purchase of Tools or Equipment
Wyre Council,http://opendatacommunities.org/doc/district-council/wyre,29/06/2023,Resources,Support Services,135B,Amazon Business,19/06/2023,RS150382,55.52,0.00,INGCO 9Pcs 1000V VDE Insulated Hand Tools Set with 5Pcs Insulated Screwdriver and 3Pcs Insulated Plier Set 1Pcs Test Pencil HKTV01H091.,Purchase of Tools or Equipment
Wyre Council,http://opendatacommunities.org/doc/district-council/wyre,29/06/2023,Resources,Support Services,135B,Amazon Business,19/06/2023,RS150386,51.64,0.00,QT&QY 45L Tactical Military Backpacks For Men Camping Hiking Trekking Daypack Bug Out Bag Lage MOLLE 3 Day Assault Pack.,Purchase of Tools or Equipment
Wyre Council,http://opendatacommunities.org/doc/district-council/wyre,29/06/2023,Resources,Support Services,135B,Amazon Business,19/06/2023,RS150384,12.90,0.00,"WORKPRO Magnetic Spirit Level 23 cm, Mini Spirit Level Magnetic Torpedo Level with 3 Vials 45�/90�/180�, Impact-Resistant Block Level, Aluminium Frame, Strong Magnet, Readable Top for Builders.",Purchase of Tools or Equipment
Wyre Council,http://opendatacommunities.org/doc/district-council/wyre,29/06/2023,Resources,Support Services,135B,Amazon Business,19/06/2023,RS150407,24.96,0.00,"Power Meter Plug Energy Monitor Watt Meter Backlight LCD Display Electricity Usage Monitor Consumption Analyzer Voltage Amps Wattage KWH Outlet Power Meter Socket, Updated Version 180� Viewing Angle.",Purchase of Tools or Equipment
Wyre Council,http://opendatacommunities.org/doc/district-council/wyre,29/06/2023,Resources,Support Services,135B,Amazon Business,19/06/2023,RS150405,59.98,0.00,"Electric Compressed Air Duster Cleaner for PC - Rechargeable Cordless Compressed Air Cleaner Blower for Laptop, Keyboard, Electronics, Home Cleaning, Alternative to Canned Air Duster.",Purchase of Tools or Equipment
Wyre Council,http://opendatacommunities.org/doc/district-council/wyre,29/06/2023,Resources,Support Services,135B,Amazon Business,19/06/2023,RS150387,15.66,0.00,"STANLEY 0-10-825 FATMAX Retractable Folding Knife, Yellow/Silver.",Purchase of Tools or Equipment
Wyre Council,http://opendatacommunities.org/doc/district-council/wyre,29/06/2023,Resources,Support Services,135B,Amazon Business,21/06/2023,RS150556,4.03,0.00,VILEDA ULTRA MAX REFILL,Purchase of Tools or Equipment
Wyre Council,http://opendatacommunities.org/doc/district-council/wyre,29/06/2023,Resources,Support Services,135B,Amazon Business,21/06/2023,RS150542,49.98,0.00,VILEDA ULTRAMAX 2-IN-1 COMPLETE SET OF MOP AND BUCKET WITH WRINGER,Purchase of Tools or Equipment
Wyre Council,http://opendatacommunities.org/doc/district-council/wyre,29/06/2023,People and Places,Cultural and Related Services,132A,QUBICAAMF UK Ltd,08/06/2023,PE150145,-8355.00,0.00,"EZ Touch Lane Machine, 220V CE - European Edition. PLease deliver to Thornton YMCA, Victoria Road East, Thornton Cleveleys, FY5 3SX",Purchase of Tools or Equipment
Wyre Council,http://opendatacommunities.org/doc/district-council/wyre,29/06/2023,People and Places,Cultural and Related Services,132A,QUBICAAMF UK Ltd,08/06/2023,PE150146,-8355.00,0.00,"EZ Touch Lane Machine, 220V CE - European Edition. PLease deliver to Thornton YMCA, Victoria Road East, Thornton Cleveleys, FY5 3SX",Purchase of Tools or Equipment
Wyre Council,http://opendatacommunities.org/doc/district-council/wyre,29/06/2023,People and Places,Cultural and Related Services,132A,Thornton Cleveleys Operatic Society,01/06/2023,PE149890,8383.00,0.00,Thornton Little Theatre 23/04/23 to 29/04/23 ticket sales,Refund of Ticket Sales to Ext Promoters
Wyre Council,http://opendatacommunities.org/doc/district-council/wyre,29/06/2023,People and Places,Cultural and Related Services,132A,Charlotte Longworth,13/06/2023,PE150158,3410.00,0.00,Musical Mash Up 14/19/20 May 23 ticket sales,Refund of Ticket Sales to Ext Promoters
Wyre Council,http://opendatacommunities.org/doc/district-council/wyre,29/06/2023,People and Places,Environmental Services,132B,Veolia ES (UK) LTD,12/06/2023,PE150213,4017.15,0.00,Pension Pass Through,Refuse Collection Contract
Wyre Council,http://opendatacommunities.org/doc/district-council/wyre,29/06/2023,People and Places,Environmental Services,132B,Veolia ES (UK) LTD,12/06/2023,PE150213,8431.94,0.00,Bank Holiday,Refuse Collection Contract
Wyre Council,http://opendatacommunities.org/doc/district-council/wyre,29/06/2023,People and Places,Environmental Services,132B,Veolia ES (UK) LTD,12/06/2023,PE150213,193845.40,0.00,Domestic Waste Management Collection Contract 2023/24,Refuse Collection Contract
Wyre Council,http://opendatacommunities.org/doc/district-council/wyre,29/06/2023,People and Places,Environmental Services,132B,Calico Enterprise,12/06/2023,PE149882,2141.31,0.00,Bulky Matters Contract Calico 2023/24,Refuse Collection Contract
Wyre Council,http://opendatacommunities.org/doc/district-council/wyre,29/06/2023,Resources,Central Services to the Public,131C,The Royal Venue,13/06/2023,RS150315,1000.00,0.00,Wyre Council Elections - 4 May 2023 - Use of the Spirit Function Room as a  polling place.,Rents
Wyre Council,http://opendatacommunities.org/doc/district-council/wyre,29/06/2023,Resources,Central Services to the Public,131C,1St Thornton Scout Group,13/06/2023,RS150316,600.00,0.00,Wyre Council Elections - 4 May 2023 - Use of the scout hut as a polling place.,Rents
Wyre Council,http://opendatacommunities.org/doc/district-council/wyre,29/06/2023,Resources,Central Services to the Public,131C,Fleetwood Sea Cadet Corps,13/06/2023,RS150305,575.00,0.00,Wyre Elections 22 June 2023 - Use of Sea Cadet Base as a polling place,Rents
Wyre Council,http://opendatacommunities.org/doc/district-council/wyre,29/06/2023,Resources,Central Services to the Public,131C,Senior Citizens Assoc Hall,13/06/2023,RS150319,500.00,0.00,Wyre Council Elections - 4 May 2023 - Use of hall as a polling place.,Rents
Wyre Council,http://opendatacommunities.org/doc/district-council/wyre,29/06/2023,Resources,Central Services to the Public,131C,Baines School,13/06/2023,RS150309,600.00,0.00,Wyre Council Elections - Use of school as a polling place.,Rents
Wyre Council,http://opendatacommunities.org/doc/district-council/wyre,29/06/2023,Resources,Central Services to the Public,131C,Carr Head Primary School,13/06/2023,RS150308,1190.00,0.00,Wyre Council Elections - 4 May 2023 - Use of school as a polling place.,Rents
Wyre Council,http://opendatacommunities.org/doc/district-council/wyre,29/06/2023,Resources,Central Services to the Public,131C,Methodist Church Hall,13/06/2023,RS150310,525.00,0.00,Wyre Council Elections - 4 May 2023 - Use of the church hall as a polling place.,Rents
Wyre Council,http://opendatacommunities.org/doc/district-council/wyre,29/06/2023,Resources,Central Services to the Public,131C,St Marys Catholic Primary School,14/06/2023,RS150403,506.70,0.00,Wyre Council Elections - 4 May 2023 - Use of the school as a polling place.,Rents
Wyre Council,http://opendatacommunities.org/doc/district-council/wyre,29/06/2023,People and Places,Cultural and Related Services,132A,EAS Electrical Mechanical,08/06/2023,PE150121,290.81,0.00,Replace 5ft vapour proof light as is water damaged with a led vapour proof. Replaced micc cable from db to light and from switch to light as cable had snapped from light falling ceiling.,Responsive Building Maintenance
Wyre Council,http://opendatacommunities.org/doc/district-council/wyre,29/06/2023,People and Places,Cultural and Related Services,132A,EAS Electrical Mechanical,08/06/2023,PE150122,255.83,0.00,inspect and make safe electrical and water supplies to chalets to following recent fire,Responsive Building Maintenance
Wyre Council,http://opendatacommunities.org/doc/district-council/wyre,29/06/2023,People and Places,Cultural and Related Services,132A,EAS Electrical Mechanical,09/06/2023,PE150171,96.00,0.00,"Phase 2 beach bungalows, Fleetwood: disconnect cables",Responsive Building Maintenance
Wyre Council,http://opendatacommunities.org/doc/district-council/wyre,29/06/2023,People and Places,Cultural and Related Services,132A,EAS Electrical Mechanical,12/06/2023,PE150270,48.00,0.00,Attended to reports of splash area loosing water. Found root cause and repaired,Responsive Building Maintenance
Wyre Council,http://opendatacommunities.org/doc/district-council/wyre,29/06/2023,People and Places,Cultural and Related Services,132A,EAS Electrical Mechanical,08/06/2023,PE150120,5833.03,0.00,Additional repairs to sump pumps at marine hall following emergency call out 08/05/23. Equipment hire for lifting equipment used throughout the complete job from,Responsive Building Maintenance
Wyre Council,http://opendatacommunities.org/doc/district-council/wyre,29/06/2023,People and Places,Cultural and Related Services,132A,EAS Electrical Mechanical,07/06/2023,PE150053,90.84,0.00,Removed Cistern and replaced Syphon,Responsive Building Maintenance
Wyre Council,http://opendatacommunities.org/doc/district-council/wyre,29/06/2023,People and Places,Cultural and Related Services,132A,EAS Electrical Mechanical,12/06/2023,PE150193,415.00,0.00,"Waterfront Cafe Bar: isolate water supply, drain and remove faulty water heater, adjust pipework to install expansion vessel and install new heater and test",Responsive Building Maintenance
Wyre Council,http://opendatacommunities.org/doc/district-council/wyre,29/06/2023,People and Places,Cultural and Related Services,132A,EAS Electrical Mechanical,08/06/2023,PE150054,70.46,0.00,"Isolate cold main to building, remove and replace faulty stop tap and test",Responsive Building Maintenance
Wyre Council,http://opendatacommunities.org/doc/district-council/wyre,29/06/2023,People and Places,Cultural and Related Services,132A,EAS Electrical Mechanical,07/06/2023,PE150065,48.00,0.00,YMCA Fleetwood: Investigate fault to toilets assoc with external pumps.  Pumps working and fault with toilets so YMCA to complete repairs,Responsive Building Maintenance
Wyre Council,http://opendatacommunities.org/doc/district-council/wyre,29/06/2023,People and Places,Cultural and Related Services,132A,EAS Electrical Mechanical,07/06/2023,PE150100,84.32,0.00,"Adaptable box under seating hanging off wall, refixed 16amp bs88 fuse blown, replaced fuse and tested. left twinkle lights unplugged to see if fuse doesn`t blow",Responsive Building Maintenance
Wyre Council,http://opendatacommunities.org/doc/district-council/wyre,29/06/2023,People and Places,Support Services,135B,EAS Electrical Mechanical,09/06/2023,PE150159,48.00,0.00,"Removed TRV head and oiled pin, replaced head working fine",Responsive Building Maintenance
Wyre Council,http://opendatacommunities.org/doc/district-council/wyre,29/06/2023,People and Places,Support Services,135B,EAS Electrical Mechanical,08/06/2023,PE150123,177.33,0.00,"Remove the traps, and cut the pipework back to where it was good as the rest was snagging and warped falling the wrong way. Fitted new pipework with extra clips and new activic bottle traps and tested.",Responsive Building Maintenance
Wyre Council,http://opendatacommunities.org/doc/district-council/wyre,29/06/2023,People and Places,Support Services,135B,EAS Electrical Mechanical,20/06/2023,PE150539,458.30,0.00,"Civic Centre. Materials, Labour, Labour- Trainee",Responsive Building Maintenance
Wyre Council,http://opendatacommunities.org/doc/district-council/wyre,29/06/2023,People and Places,Environmental Services,132B,EAS Electrical Mechanical,21/06/2023,PE150549,24.00,0.00,Spoke to site staff and nobody aware of leak?,Responsive Building Maintenance
Wyre Council,http://opendatacommunities.org/doc/district-council/wyre,29/06/2023,People and Places,Planning and Development Servs,132C,EAS Electrical Mechanical,07/06/2023,PE150099,48.00,0.00,"Remove fan cover and disconnect, reattach fan and test",Responsive Building Maintenance
Wyre Council,http://opendatacommunities.org/doc/district-council/wyre,29/06/2023,People and Places,Planning and Development Servs,132C,EAS Electrical Mechanical,21/06/2023,PE150550,48.00,0.00,investigate and rectify leak in outdoor unit,Responsive Building Maintenance
Wyre Council,http://opendatacommunities.org/doc/district-council/wyre,29/06/2023,People and Places,Planning and Development Servs,132C,Blackpool Skip Hire LTD,19/06/2023,PE149966,900.00,0.00,skip hire / rubbish removal  NEPTUNE fish park,Responsive Building Maintenance
Wyre Council,http://opendatacommunities.org/doc/district-council/wyre,29/06/2023,People and Places,Cultural and Related Services,132A,GARRY CARR BUILDING SERVICES LTD,09/06/2023,PE149734,210.00,0.00,Garstang Leisure Centre: Repair Gym floor,Responsive Building Maintenance
Wyre Council,http://opendatacommunities.org/doc/district-council/wyre,29/06/2023,People and Places,Cultural and Related Services,132A,GARRY CARR BUILDING SERVICES LTD,07/06/2023,PE149738,305.00,0.00,CArry out full clean up of all footpaths and communal areas following fire. clean remaining chalets,Responsive Building Maintenance
Wyre Council,http://opendatacommunities.org/doc/district-council/wyre,29/06/2023,People and Places,Cultural and Related Services,132A,GARRY CARR BUILDING SERVICES LTD,13/06/2023,PE149992,492.00,0.00,"Repairs to locks various doors. 1/. \replaced. hook locks, barrels & esctcheons back of stage. 2/. front doors. replace bottom lock & realign doors. 3/. Replace bottom lock bin store. Labour",Responsive Building Maintenance
Wyre Council,http://opendatacommunities.org/doc/district-council/wyre,29/06/2023,People and Places,Cultural and Related Services,132A,GARRY CARR BUILDING SERVICES LTD,13/06/2023,PE149930,4411.00,0.00,Replacement of 2 no. bay windows to waterfront cafe all as quoted for 27/02/2023. Optional extra over for laminated glass,Responsive Building Maintenance
Wyre Council,http://opendatacommunities.org/doc/district-council/wyre,29/06/2023,People and Places,Cultural and Related Services,132A,GARRY CARR BUILDING SERVICES LTD,07/06/2023,PE149876,126.00,0.00,Thornton Little Theatre: paint out 4 skylights in black,Responsive Building Maintenance
